{"text_format":"3","workbook":"xlsx","n_sheets":1,"sheets":["Carbon Steel Sections"],"not_rendered":{"defined_names":54},"read":"whole","date_system":"1900"}

{"sheet":"Carbon Steel Sections","index":0,"n_rows":246,"n_cols":36,"rows_kept":246,"merged":[[0,19,0,21],[0,22,0,24],[0,25,0,27],[0,28,0,30],[0,31,0,33],[0,34,0,35],[245,0,258,10]]}
[{"$nulls":19},"Year 1",null,null,"Year 2",null,null,"Year  3",null,null,"Year 4",null,null,"Year 5",null,null,"5 Year Totals"]
["Executive","ITEM NUMBER","ITEM DESCRIPTION","R/Y","Long text","Search1","UOM","Not steel item?","Spec","Grouping","Grade","Type","Seifsa","YEAR 1\n2025/26","YEAR 2\n2026/27","YEAR 3\n2027/28","YEAR 4\n2028/29","YEAR 5\n2029/30","TOTAL","Item Price Excl VAT","Total Excl VAT","Total Including 15% VAT","Item Price Excl VAT","Total Excl VAT","Total Including 15% VAT","Item Price Excl VAT","Total Excl VAT","Total Including 15% VAT","Item Price Excl VAT","Total Excl VAT","Total Including 15% VAT","Item Price Excl VAT","Total Excl VAT","Total Including 15% VAT","Total Excl VAT","Total Including 15% VAT"]
["Manufacturing","811800316","BAR METAL;WD 40 X LG 6000 X THK 16 MM",null,"BAR, METALLIC; DIMENSIONS: WD 40 X LG 6000 X THK 16 MM, SHAPE: FLAT; MATERIAL GRADE NEW: EN 10025 S355 JR+AR MATERIAL GRADE OLD: SABS 1431 300 WA; GENERAL: MATERIAL CERTIFICATE TO EN 10204 TYPE 3.1 TO BE SUPPLIED. NO RUST OR CORROSION ON THE SURFACE ALLOW","BAR, ","M",null,"EN 10025 S355 JR+AR","Carbon Steel Sections","Structural steel","Sections",null,135,135,135,135,135,{"$f":"N3+O3+P3+Q3+R3","v":675},null,{"$f":"+T3*N3","v":0},{"$f":"U3*1.15","v":0},{"$f":"T3*1.06","v":0},{"$f":"(W3*O3)","v":0},{"$f":"X3*1.15","v":0},{"$f":"W3*1.06","v":0},{"$f":"(+Z3)*P3","v":0},{"$f":"AA3*1.15","v":0},{"$f":"Z3*1.06","v":0},{"$f":"(AC3)*Q3","v":0},{"$f":"AD3*1.15","v":0},{"$f":"AC3*1.06","v":0},{"$f":"(+AF3)*R3","v":0},{"$f":"AG3*1.15","v":0},{"$f":"AG3+AD3+AA3+X3+U3","v":0},{"$f":"AI3*1.15","v":0}]
["Manufacturing","001050096","ANGLE STRUCTURAL;EQUAL,HT:120 MM,120 MM",null,"ANGLE, STRUCTURAL; TYPE: EQUAL, MATERIAL: STEEL, WIDTH: 120 MM, LENGTH: 1300 MM, THICKNESS: 10 MM, ANGLE HEIGHT: 120 MM, MATERIAL GRADE: SANS 50025/EN 10025 GRADE S355 JR+AR; MATERIAL GRADE OLD: EN 10025 / SANS 50025 S355 JR+AR OR EN 10028 P355NL1; GENERA","ANGLE","M",null,"EN 10025 S355 JR+AR","Carbon Steel Sections","Structural steel","Sections",null,1,1,1,2,2,{"$f":"N4+O4+P4+Q4+R4","v":7},null,{"$f":"+T4*N4","v":0},{"$f":"U4*1.15","v":0},{"$f":"T4*1.06","v":0},{"$f":"(W4*O4)","v":0},{"$f":"X4*1.15","v":0},{"$f":"W4*1.06","v":0},{"$f":"(+Z4)*P4","v":0},{"$f":"AA4*1.15","v":0},{"$f":"Z4*1.06","v":0},{"$f":"(AC4)*Q4","v":0},{"$f":"AD4*1.15","v":0},{"$f":"AC4*1.06","v":0},{"$f":"(+AF4)*R4","v":0},{"$f":"AG4*1.15","v":0},{"$f":"AG4+AD4+AA4+X4+U4","v":0},{"$f":"AI4*1.15","v":0}]
["Manufacturing","611001771","BAR METAL;DIA 16 X LG 6000 MM,RND",null,"BAR, METALLIC; DIMENSIONS: DIA 16 X LG 6000 MM, SHAPE: ROUND; MATERIAL GRADE NEW:  BS 970 709M40 MATERIAL GRADE OLD: BRIGHT BAR; GENERAL: MATERIAL CERTIFICATE TO EN 10204 TYPE 3.1 TO BE SUPPLIED. NO RUST OR CORROSION ON THE SURFACE ALLOWED. BRIGHT BAR","BAR, ","M",null," BS 970 709M40","Carbon Steel Sections","Chromium-Molybdenum alloy steel","Sections",null,4,4,4,4,4,20,null,{"$f":"+T5*N5","v":0},0,{"$f":"T5*1.06","v":0},{"$f":"(W5*O5)","v":0},0,{"$f":"W5*1.06","v":0},{"$f":"(+Z5)*P5","v":0},0,0,{"$f":"(AC5)*Q5","v":0},0,{"$f":"AC5*1.06","v":0},{"$f":"(+AF5)*R5","v":0},0,{"$f":"AG5+AD5+AA5+X5+U5","v":0},0]
["Manufacturing","011014671","ANGLE STRUCTURAL;UNEQUAL,HT:150 MM,90 MM",null,"ANGLE, STRUCTURAL; TYPE: UNEQUAL, MATERIAL: STEEL, WIDTH: 90 MM, LENGTH: 13000 MM, THICKNESS: 12 MM, ANGLE HEIGHT: 150 MM, MATERIAL GRADE: EN 10025 S355 JR+AR; GENERAL: MATERIAL CERTIFICATE TO EN 10204 TYPE 3.1 TO BE SUPPLIED. NO RUST OR CORROSION ON THE","ANGLE","M",null,"EN 10025 S355 JR+AR","Carbon Steel Sections","Structural steel","Sections",null,905,905,905,905,905,4525,null,{"$f":"+T6*N6","v":0},0,{"$f":"T6*1.06","v":0},{"$f":"(W6*O6)","v":0},0,{"$f":"W6*1.06","v":0},{"$f":"(+Z6)*P6","v":0},0,0,{"$f":"(AC6)*Q6","v":0},0,{"$f":"AC6*1.06","v":0},{"$f":"(+AF6)*R6","v":0},0,{"$f":"AG6+AD6+AA6+X6+U6","v":0},0]
["Manufacturing","511665039","BEAM STRUCTURAL;I,WD:146 MM,HT:254 MM",null,"BEAM, STRUCTURAL; TYPE: I, OVERALL WIDTH: 146 MM, OVERALL HEIGHT: 254 MM, OVERALL LENGTH: 1500 MM; MATERIAL GRADE NEW: EN 10025 S355 JR+AR MATERIAL GRADE OLD: SABS 1431 300 WA; GENERAL: MATERIAL CERTIFICATE TO EN 10204 TYPE 3.1 TO BE SUPPLIED. NO RUST OR","BEAM,","M",null,"EN 10025 S355 JR+AR","Carbon Steel Sections","Structural steel","Sections",null,385,385,385,385,385,1925,null,{"$f":"+T7*N7","v":0},0,{"$f":"T7*1.06","v":0},{"$f":"(W7*O7)","v":0},0,{"$f":"W7*1.06","v":0},{"$f":"(+Z7)*P7","v":0},0,0,{"$f":"(AC7)*Q7","v":0},0,{"$f":"AC7*1.06","v":0},{"$f":"(+AF7)*R7","v":0},0,{"$f":"AG7+AD7+AA7+X7+U7","v":0},0]
["Manufacturing","011665926","BAR METAL;DIA 100 X LG 6000 MM,RND",null,"BAR, METALLIC; DIMENSIONS: DIA 100 X LG 6000 MM, SHAPE: ROUND; MATERIAL GRADE NEW: BS 970 709M40 MATERIAL GRADE OLD: BS 970 0709M40 ; GENERAL: MATERIAL CERTIFICATE TO EN 10204 TYPE 3.1 TO BE SUPPLIED. NO RUST OR CORROSION ON THE SURFACE ALLOWED. MATERIAL","BAR, ","M",null," BS 970 709M40","Carbon Steel Sections","Chromium-Molybdenum alloy steel","Sections",null,2,2,2,2,2,10,null,{"$f":"+T8*N8","v":0},0,{"$f":"T8*1.06","v":0},{"$f":"(W8*O8)","v":0},0,{"$f":"W8*1.06","v":0},{"$f":"(+Z8)*P8","v":0},0,0,{"$f":"(AC8)*Q8","v":0},0,{"$f":"AC8*1.06","v":0},{"$f":"(+AF8)*R8","v":0},0,{"$f":"AG8+AD8+AA8+X8+U8","v":0},0]
["Project Wagons 1000","011665926","BAR METAL;DIA 100 X LG 6000 MM,RND",null,"BAR, METALLIC; DIMENSIONS: DIA 100 X LG 6000 MM, SHAPE: ROUND; MATERIAL GRADE NEW: BS 970 709M40 MATERIAL GRADE OLD: BS 970 0709M40 ; GENERAL: MATERIAL CERTIFICATE TO EN 10204 TYPE 3.1 TO BE SUPPLIED. NO RUST OR CORROSION ON THE SURFACE ALLOWED. MATERIAL","BAR, ","M",null," BS 970 709M40","Carbon Steel Sections","Chromium-Molybdenum alloy steel","Sections",null,140,140,{"$nulls":3},280,null,{"$f":"+T9*N9","v":0},0,{"$f":"T9*1.06","v":0},{"$f":"(W9*O9)","v":0},0,{"$f":"W9*1.06","v":0},{"$f":"(+Z9)*P9","v":0},0,0,{"$f":"(AC9)*Q9","v":0},0,{"$f":"AC9*1.06","v":0},{"$f":"(+AF9)*R9","v":0},0,{"$f":"AG9+AD9+AA9+X9+U9","v":0},0]
["Manufacturing","111200089","BAR METAL;IA 80 X LG 6000 MM,RND",null,"BAR, METALLIC; DIMENSIONS: IA 80 X LG 6000 MM, SHAPE: ROUND; MATERIAL GRADE NEW: BS970 070M20; GENERAL: MATERIAL CERTIFICATE TO EN 10204 TYPE 3.1 TO BE SUPPLIED. NO RUST OR CORROSION ON THE SURFACE ALLOWED","BAR, ","M",null," BS 970 070M20","Carbon Steel Sections","Low carbon mild steel","Sections",null,6,6,6,6,6,30,null,{"$f":"+T10*N10","v":0},0,{"$f":"T10*1.06","v":0},{"$f":"(W10*O10)","v":0},0,{"$f":"W10*1.06","v":0},{"$f":"(+Z10)*P10","v":0},0,0,{"$f":"(AC10)*Q10","v":0},0,{"$f":"AC10*1.06","v":0},{"$f":"(+AF10)*R10","v":0},0,{"$f":"AG10+AD10+AA10+X10+U10","v":0},0]
["Manufacturing","011000555","BAR METAL;WD 50 X LG 6000 X THK 12 MM",null,"BAR, METALLIC; DIMENSIONS: WD 50 X LG 6000 X THK 12 MM, SHAPE: FLAT; MATERIAL GRADE NEW: COMMERCIAL QUALITY; MATERIAL GRADE OLD: COMMERCIAL QUALITY; GENERAL: MATERIAL CERTIFICATE TO EN 10204 TYPE 3.1 TO BE SUPPLIED. NO RUST OR CORROSION ON THE SURFACE ALL","BAR, ","M",null,"commercial quality","Carbon Steel Sections","commercial quality","Sections",null,25,25,25,25,25,125,null,{"$f":"+T11*N11","v":0},0,{"$f":"T11*1.06","v":0},{"$f":"(W11*O11)","v":0},0,{"$f":"W11*1.06","v":0},{"$f":"(+Z11)*P11","v":0},0,0,{"$f":"(AC11)*Q11","v":0},0,{"$f":"AC11*1.06","v":0},{"$f":"(+AF11)*R11","v":0},0,{"$f":"AG11+AD11+AA11+X11+U11","v":0},0]
["Manufacturing","311111014","BAR METAL;WD 60 X LG 6000 X THK 6 MM",null,"BAR, METALLIC; DIMENSIONS: WD 60 X LG 6000 X THK 6 MM, SHAPE: FLAT; MATERIAL GRADE NEW: EN 10025 S355 JR+AR MATERIAL GRADE OLD: SABS 1431 GR 300WA; GENERAL: MATERIAL CERTIFICATE TO EN 10204 TYPE 3.1 TO BE SUPPLIED. NO RUST OR CORROSION ON THE SURFACE ALLO","BAR, ","M",null,"EN 10025 S355 JR+AR","Carbon Steel Sections","Structural steel","Sections",null,1,1,1,1,1,5,null,{"$f":"+T12*N12","v":0},0,{"$f":"T12*1.06","v":0},{"$f":"(W12*O12)","v":0},0,{"$f":"W12*1.06","v":0},{"$f":"(+Z12)*P12","v":0},0,0,{"$f":"(AC12)*Q12","v":0},0,{"$f":"AC12*1.06","v":0},{"$f":"(+AF12)*R12","v":0},0,{"$f":"AG12+AD12+AA12+X12+U12","v":0},0]
["Manufacturing","311200176","ANGLE STEEL  70x70x6  SYM 6",null,"ANGLE 70 X 70 X 6 SYM6","ANGLE","M",null,"Not Specfied","Carbon Steel Sections","Not Specified type of Steel","Sections",null,79,49,81,103,60,372,null,{"$f":"+T13*N13","v":0},0,{"$f":"T13*1.06","v":0},{"$f":"(W13*O13)","v":0},0,{"$f":"W13*1.06","v":0},{"$f":"(+Z13)*P13","v":0},0,0,{"$f":"(AC13)*Q13","v":0},0,{"$f":"AC13*1.06","v":0},{"$f":"(+AF13)*R13","v":0},0,{"$f":"AG13+AD13+AA13+X13+U13","v":0},0]
["Manufacturing","311200030","ANGLE STRUCTURAL;HT 70 MM,THK 8 MM",null,"ANGLE, STRUCTURAL MATERIAL STEEL SABS 1431 WIDTH 70 MM THICKNESS 8 MM ANGLE HEIGHT 70 MM MATERIAL GRADE 300WA","ANGLE","M",null," EN 10025 S355 JR","Carbon Steel Sections","Structural steel","Sections",null,492,492,492,492,492,2460,null,{"$f":"+T14*N14","v":0},0,{"$f":"T14*1.06","v":0},{"$f":"(W14*O14)","v":0},0,{"$f":"W14*1.06","v":0},{"$f":"(+Z14)*P14","v":0},0,0,{"$f":"(AC14)*Q14","v":0},0,{"$f":"AC14*1.06","v":0},{"$f":"(+AF14)*R14","v":0},0,{"$f":"AG14+AD14+AA14+X14+U14","v":0},0]
["Manufacturing","311009710","BAR METAL;WD 50 X LG 6000 X THK 5 MM",null,"BAR, METALLIC; DIMENSIONS: WD 50 X LG 6000 X THK 5 MM, SHAPE: FLAT; MATERIAL GRADE: EN 10025 S275 JR GENERAL: MATERIAL CERTIFICATE TO EN 10204 TYPE 3.1 TO BE SUPPLIED. NO RUST OR CORROSION ON THE SURFACE ALLOWED","BAR, ","M",null,"EN 10025 S275 JR","Carbon Steel Sections","Structural steel","Sections",null,89,89,89,89,89,445,null,{"$f":"+T15*N15","v":0},0,{"$f":"T15*1.06","v":0},{"$f":"(W15*O15)","v":0},0,{"$f":"W15*1.06","v":0},{"$f":"(+Z15)*P15","v":0},0,0,{"$f":"(AC15)*Q15","v":0},0,{"$f":"AC15*1.06","v":0},{"$f":"(+AF15)*R15","v":0},0,{"$f":"AG15+AD15+AA15+X15+U15","v":0},0]
["Manufacturing","011014622","ANGLE STRUCTURAL;UNEQUAL,HT:100 MM,65 MM",null,"ANGLE, STRUCTURAL; TYPE: UNEQUAL, MATERIAL: STEEL, WIDTH: 65 MM, LENGTH: 13000 MM, THICKNESS: 10 MM, ANGLE HEIGHT: 100 MM, MATERIAL GRADE: EN 10025 S355 JR+AR; GENERAL: MATERIAL CERTIFICATE TO EN 10204 TYPE 3.1 TO BE SUPPLIED. NO RUST OR CORROSION ON THE","ANGLE","M",null,"EN 10025 S355 JR+AR","Carbon Steel Sections","Structural steel","Sections",null,741,741,741,741,741,3705,null,{"$f":"+T16*N16","v":0},0,{"$f":"T16*1.06","v":0},{"$f":"(W16*O16)","v":0},0,{"$f":"W16*1.06","v":0},{"$f":"(+Z16)*P16","v":0},0,0,{"$f":"(AC16)*Q16","v":0},0,{"$f":"AC16*1.06","v":0},{"$f":"(+AF16)*R16","v":0},0,{"$f":"AG16+AD16+AA16+X16+U16","v":0},0]
["Manufacturing","311112503","TUBE METAL;RECT,40 MM,60 MM,STL GR 300WA",null,"TUBE, METALLIC; SHAPE: RECTANGULAR, WIDTH: 40 MM, HEIGHT: 60 MM, WALL THICKNESS: 3 MM, TUBE MATERIAL: STEEL GRADE 300WA;  SABS 1431","TUBE,","M",null," EN 10025 S355 JR","Carbon Steel Sections","Structural steel","Pipe & Tube",null,2,2,2,2,2,10,null,{"$f":"+T17*N17","v":0},0,{"$f":"T17*1.06","v":0},{"$f":"(W17*O17)","v":0},0,{"$f":"W17*1.06","v":0},{"$f":"(+Z17)*P17","v":0},0,0,{"$f":"(AC17)*Q17","v":0},0,{"$f":"AC17*1.06","v":0},{"$f":"(+AF17)*R17","v":0},0,{"$f":"AG17+AD17+AA17+X17+U17","v":0},0]
["Manufacturing","611000272","BAR METAL;DIA 55 X LG 6000 MM,RND",null,"BAR, METALLIC; DIMENSIONS: DIA 55 X LG 6000 MM, SHAPE: ROUND; MATERIAL GRADE NEW:  BS 970 709M40 MATERIAL GRADE OLD: BAR MATERIAL STEEL  GR EN 19; GENERAL: MATERIAL CERTIFICATE TO EN 10204 TYPE 3.1 TO BE SUPPLIED. NO RUST OR CORROSION ON THE SURFACE ALLOW","BAR, ","M",null,"BS 970 709M40","Carbon Steel Sections","Chromium-Molybdenum alloy steel","Sections",null,23,23,23,23,23,115,null,{"$f":"+T18*N18","v":0},0,{"$f":"T18*1.06","v":0},{"$f":"(W18*O18)","v":0},0,{"$f":"W18*1.06","v":0},{"$f":"(+Z18)*P18","v":0},0,0,{"$f":"(AC18)*Q18","v":0},0,{"$f":"AC18*1.06","v":0},{"$f":"(+AF18)*R18","v":0},0,{"$f":"AG18+AD18+AA18+X18+U18","v":0},0]
["Manufacturing","611000207","BAR ROUND STEEL 55mm DIA 3% NICKLE CHROM",null,"BAR ROUND STEEL 55mm DIA 3% NICKLE CHROME <H>TO BE SUPPLIED IN 6m LENGHTS</>","BAR R","M",null,"NICKLE CHROME","Carbon Steel Sections","NICKLE CHROME","Sections",null,137,137,137,137,137,685,null,{"$f":"+T19*N19","v":0},0,{"$f":"T19*1.06","v":0},{"$f":"(W19*O19)","v":0},0,{"$f":"W19*1.06","v":0},{"$f":"(+Z19)*P19","v":0},0,0,{"$f":"(AC19)*Q19","v":0},0,{"$f":"AC19*1.06","v":0},{"$f":"(+AF19)*R19","v":0},0,{"$f":"AG19+AD19+AA19+X19+U19","v":0},0]
["Manufacturing","311202289","BAR METAL;WD 35 X THK 35 MM,SQ",null,"BAR, METALLIC; DIMENSIONS: WD 35 X THK 35 MM, SHAPE: SQUARE; MATERIAL GRADE NEW: EN 10025 S355 JR+AR / BS 970 070M20 MATERIAL GRADE OLD: BS 970 070M20 OR SANS 1431 240WA; GENERAL: MATERIAL CERTIFICATE TO EN 10204 TYPE 3.1 TO BE SUPPLIED. NO RUST OR CORROS","BAR, ","M",null,"EN 10025 S355 JR+AR","Carbon Steel Sections","Structural Steel","Sections",null,5,5,5,5,5,25,null,{"$f":"+T20*N20","v":0},0,{"$f":"T20*1.06","v":0},{"$f":"(W20*O20)","v":0},0,{"$f":"W20*1.06","v":0},{"$f":"(+Z20)*P20","v":0},0,0,{"$f":"(AC20)*Q20","v":0},0,{"$f":"AC20*1.06","v":0},{"$f":"(+AF20)*R20","v":0},0,{"$f":"AG20+AD20+AA20+X20+U20","v":0},0]
["Manufacturing","011804413","TUBE METAL;SQ, Superseded by 511662586",null,"TUBE, METALLIC; SHAPE: SQUARE, WIDTH: 25.4 MM, HEIGHT: 25.4 MM, TUBE LENGTH: 6 M, WALL THICKNESS: 1.6 MM, TUBE MATERIAL: STEEL","TUBE,","M",null,"Not Specfied","Carbon Steel Sections","Not Specified type of Steel","Pipe & Tube",null,20,20,20,20,20,100,null,{"$f":"+T21*N21","v":0},0,{"$f":"T21*1.06","v":0},{"$f":"(W21*O21)","v":0},0,{"$f":"W21*1.06","v":0},{"$f":"(+Z21)*P21","v":0},0,0,{"$f":"(AC21)*Q21","v":0},0,{"$f":"AC21*1.06","v":0},{"$f":"(+AF21)*R21","v":0},0,{"$f":"AG21+AD21+AA21+X21+U21","v":0},0]
["Manufacturing","111000430","BAR METAL;LG 6 M,RND",null,"BAR, METALLIC; DIMENSIONS: LG 6 M, MATERIAL: STEEL BS970 GRADE 070M20 (EN3A), SHAPE: ROUND; 025 3.85KG/M","BAR, ","M",null," BS 970 070M20","Carbon Steel Sections","Low carbon mild steel","Sections",null,7,7,7,7,7,35,null,{"$f":"+T22*N22","v":0},0,{"$f":"T22*1.06","v":0},{"$f":"(W22*O22)","v":0},0,{"$f":"W22*1.06","v":0},{"$f":"(+Z22)*P22","v":0},0,0,{"$f":"(AC22)*Q22","v":0},0,{"$f":"AC22*1.06","v":0},{"$f":"(+AF22)*R22","v":0},0,{"$f":"AG22+AD22+AA22+X22+U22","v":0},0]
["Manufacturing","511662821","BAR METAL;WD 60 X LG 6000 X THK 10 MM",null,"BAR, METALLIC; DIMENSIONS: WD 60 X LG 6000 X THK 10 MM, SHAPE: FLAT; MATERIAL GRADE NEW: EN 10025 S355 JR+AR MATERIAL GRADE OLD: SABS 1431 300 WA; GENERAL: MATERIAL CERTIFICATE TO EN 10204 TYPE 3.1 TO BE SUPPLIED. NO RUST OR CORROSION ON THE SURFACE ALLOW","BAR, ","M",null,"EN 10025 S355 JR+AR","Carbon Steel Sections","Structural steel","Sections",null,86,86,86,86,86,430,null,{"$f":"+T23*N23","v":0},0,{"$f":"T23*1.06","v":0},{"$f":"(W23*O23)","v":0},0,{"$f":"W23*1.06","v":0},{"$f":"(+Z23)*P23","v":0},0,0,{"$f":"(AC23)*Q23","v":0},0,{"$f":"AC23*1.06","v":0},{"$f":"(+AF23)*R23","v":0},0,{"$f":"AG23+AD23+AA23+X23+U23","v":0},0]
["Manufacturing","313200009","PIPE METAL;M QUALITY,PIPE SZ:32 MM,BLACK",null,"PIPE, METALLIC; TYPE: MEDIUM QUALITY, PIPE SIZE: 32 MM, PIPE MATERIAL: STEEL SABS 62, COLOR: BLACK; SPECIFICATION: SABS 62, 0, ITEM : 0","PIPE,","M",null,"SABS 62","Carbon Steel Sections","Structural steel","Pipe & Tube",null,94,81,94,0,0,269,null,{"$f":"+T24*N24","v":0},0,{"$f":"T24*1.06","v":0},{"$f":"(W24*O24)","v":0},0,{"$f":"W24*1.06","v":0},{"$f":"(+Z24)*P24","v":0},0,0,{"$f":"(AC24)*Q24","v":0},0,{"$f":"AC24*1.06","v":0},{"$f":"(+AF24)*R24","v":0},0,{"$f":"AG24+AD24+AA24+X24+U24","v":0},0]
["Manufacturing","013671593","PIPE METAL;SEAMLESS,PIPE SZ:168.3 MM,STL",null,"PIPE, METALLIC; TYPE: SEAMLESS, PIPE SIZE: 168.3 MM, LENGTH: 76 MM, WALL THICKNESS: 12.5 MM, PIPE MATERIAL: STEEL, MATERIAL GRADE: EN10025 S355J2+N; ALTERNATIVELY EN10210-1 S355J2H+N, SURFACE TREATMENT: RUST PROTECTION OILED SUFACE AFTER CUT, SPECIAL FEAT","PIPE,","EA",null,"EN 10025 S355 J2+N","Carbon Steel Sections","Structural steel","Pipe & Tube",null,600,600,584,600,600,2984,null,{"$f":"+T25*N25","v":0},0,{"$f":"T25*1.06","v":0},{"$f":"(W25*O25)","v":0},0,{"$f":"W25*1.06","v":0},{"$f":"(+Z25)*P25","v":0},0,0,{"$f":"(AC25)*Q25","v":0},0,{"$f":"AC25*1.06","v":0},{"$f":"(+AF25)*R25","v":0},0,{"$f":"AG25+AD25+AA25+X25+U25","v":0},0]
["Manufacturing","013671592","PIPE METAL;SMLS,66 MM,WALL THK:16 MM",null,"PIPE, METALLIC; TYPE: SEAMLESS, PIPE SIZE: ID 145.8 X OD 177.8 MM, LENGTH: 66 MM, WALL THICKNESS: 16 MM, MATERIAL GRADE: EN 10025 S355 J2+N / EN 10028 P355 NL1 / EN 10210-1 S355 J2H+N; GENERAL: MATERIAL CERTIFICATE TO EN 10204 TYPE 3.1 TO BE SUPPLIED. NO","PIPE,","EA",null,"EN 10025 S355 J2+N","Carbon Steel Sections","Structural steel","Pipe & Tube",null,400,400,92,400,400,1692,null,{"$f":"+T26*N26","v":0},0,{"$f":"T26*1.06","v":0},{"$f":"(W26*O26)","v":0},0,{"$f":"W26*1.06","v":0},{"$f":"(+Z26)*P26","v":0},0,0,{"$f":"(AC26)*Q26","v":0},0,{"$f":"AC26*1.06","v":0},{"$f":"(+AF26)*R26","v":0},0,{"$f":"AG26+AD26+AA26+X26+U26","v":0},0]
["Manufacturing","011007124","BAR METAL;DIA 36 X LG 5300 MM,RND",null,"BAR, METALLIC; DIMENSIONS: DIA 36 X LG 5300 MM, SHAPE: ROUND; MATERIAL GRADE NEW: BS 970 735A54 MATERIAL GRADE OLD: BS 970 735A54 GENERAL: MATERIAL CERTIFICATE TO EN 10204 TYPE 3.1 TO BE SUPPLIED. NO RUST OR CORROSION ON THE SURFACE ALLOWED. MATERIALS TO","BAR, ","M",null,"BS 970 735A54","Carbon Steel Sections","Nickel-Chromium-Molybdenum Alloy Steel","Sections",null,157,157,157,157,157,785,null,{"$f":"+T27*N27","v":0},0,{"$f":"T27*1.06","v":0},{"$f":"(W27*O27)","v":0},0,{"$f":"W27*1.06","v":0},{"$f":"(+Z27)*P27","v":0},0,0,{"$f":"(AC27)*Q27","v":0},0,{"$f":"AC27*1.06","v":0},{"$f":"(+AF27)*R27","v":0},0,{"$f":"AG27+AD27+AA27+X27+U27","v":0},0]
["Manufacturing","311027786","ANGLE STRUCTURAL;UNEQUAL,HT:150 MM,75 MM",null,"ANGLE, STRUCTURAL; TYPE: UNEQUAL, MATERIAL: NEW: EN 10025 S355 JR+AR, OLD GRADE: SABS 1431 300WA, WIDTH: 75 MM, LENGTH: 1300 MM, THICKNESS: 10 MM, ANGLE HEIGHT: 150 MM; GENERAL: MATERIAL CERTIFICATE TO EN 10204 TYPE 3.1 TO BE SUPPLIED. NO RUST OR CORROSIO","ANGLE","M",null,"EN 10025 S355 JR+AR","Carbon Steel Sections","Structural steel","Sections",null,871,871,871,871,871,4355,null,{"$f":"+T28*N28","v":0},0,{"$f":"T28*1.06","v":0},{"$f":"(W28*O28)","v":0},0,{"$f":"W28*1.06","v":0},{"$f":"(+Z28)*P28","v":0},0,0,{"$f":"(AC28)*Q28","v":0},0,{"$f":"AC28*1.06","v":0},{"$f":"(+AF28)*R28","v":0},0,{"$f":"AG28+AD28+AA28+X28+U28","v":0},0]
["Manufacturing","313110596","PIPE METAL;H/DUTY,PIPE SZ:50 MM,STL",null,"PIPE, METALLIC; TYPE: HEAVY DUTY, PIPE SIZE: 50 MM, PIPE MATERIAL: STEEL, COLOR: BLACK","PIPE,","M",null,"COLOR BLACK","Carbon Steel Sections","Carbon Steel","Pipe & Tube",null,1,1,2,3,3,10,null,{"$f":"+T29*N29","v":0},0,{"$f":"T29*1.06","v":0},{"$f":"(W29*O29)","v":0},0,{"$f":"W29*1.06","v":0},{"$f":"(+Z29)*P29","v":0},0,0,{"$f":"(AC29)*Q29","v":0},0,{"$f":"AC29*1.06","v":0},{"$f":"(+AF29)*R29","v":0},0,{"$f":"AG29+AD29+AA29+X29+U29","v":0},0]
["Manufacturing","313200008","PIPE METAL;M QUALITY,PIPE SZ:25 MM,STL",null,"PIPE, METALLIC; TYPE: MEDIUM QUALITY, PIPE SIZE: 25 MM, PIPE MATERIAL: STEEL, MATERIAL GRADE: BS1387, COLOR: BLACK","PIPE,","M",null," BS 1387 S195T","Carbon Steel Sections","Carbon steel – non-alloy structural steel","Pipe & Tube",null,7,7,7,7,7,35,null,{"$f":"+T30*N30","v":0},0,{"$f":"T30*1.06","v":0},{"$f":"(W30*O30)","v":0},0,{"$f":"W30*1.06","v":0},{"$f":"(+Z30)*P30","v":0},0,0,{"$f":"(AC30)*Q30","v":0},0,{"$f":"AC30*1.06","v":0},{"$f":"(+AF30)*R30","v":0},0,{"$f":"AG30+AD30+AA30+X30+U30","v":0},0]
["Manufacturing","511050183","BAR METAL;WD 50 X LG 6000 X THK 8 MM",null,"BAR, METALLIC; DIMENSIONS: WD 50 X LG 6000 X THK 8 MM, SHAPE: FLAT; MATERIAL GRADE NEW: COMMERCIAL QUALITY; GENERAL: MATERIAL CERTIFICATE TO EN 10204 TYPE 3.1 TO BE SUPPLIED. NO RUST OR CORROSION ON THE SURFACE ALLOWED","BAR, ","M",null,"commercial quality","Carbon Steel Sections","commercial quality","Sections",null,178,178,178,178,178,890,null,{"$f":"+T31*N31","v":0},0,{"$f":"T31*1.06","v":0},{"$f":"(W31*O31)","v":0},0,{"$f":"W31*1.06","v":0},{"$f":"(+Z31)*P31","v":0},0,0,{"$f":"(AC31)*Q31","v":0},0,{"$f":"AC31*1.06","v":0},{"$f":"(+AF31)*R31","v":0},0,{"$f":"AG31+AD31+AA31+X31+U31","v":0},0]
["Manufacturing","011014508","ANGLE STRUCTURAL;EQUAL,HT:70 MM,70 MM",null,"ANGLE, STRUCTURAL; TYPE: EQUAL, MATERIAL: STEEL, WIDTH: 70 MM, LENGTH: 6000 MM, THICKNESS: 10 MM, ANGLE HEIGHT: 70 MM; MATERIAL GRADE NEW: EN 10025 S355 JR+AR MATERIAL GRADE OLD: SABS 1431 300WA; GENERAL: MATERIAL CERTIFICATE TO EN 10204 TYPE 3.1 TO BE SU","ANGLE","M",null,"EN 10025 S355 JR+AR","Carbon Steel Sections","Structural steel","Sections",null,986,986,986,986,986,4930,null,{"$f":"+T32*N32","v":0},0,{"$f":"T32*1.06","v":0},{"$f":"(W32*O32)","v":0},0,{"$f":"W32*1.06","v":0},{"$f":"(+Z32)*P32","v":0},0,0,{"$f":"(AC32)*Q32","v":0},0,{"$f":"AC32*1.06","v":0},{"$f":"(+AF32)*R32","v":0},0,{"$f":"AG32+AD32+AA32+X32+U32","v":0},0]
["Manufacturing","011002930","BAR METAL;DIA 90 X LG 6000 MM,RND",null,"BAR, METALLIC; DIMENSIONS: DIA 90 X LG 6000 MM, SHAPE: ROUND; MATERIAL GRADE NEW: BS 970 070M20; MATERIAL GRADE OLD: BS 970 070M20 OR SANS 1431 240WA OR SYM6; GENERAL: MATERIAL CERTIFICATE TO EN 10204 TYPE 3.1 TO BE SUPPLIED. NO RUST OR CORROSION ON THE S","BAR, ","M",null," BS 970 070M20","Carbon Steel Sections","Low carbon mild steel","Sections",null,87,87,87,87,87,435,null,{"$f":"+T33*N33","v":0},0,{"$f":"T33*1.06","v":0},{"$f":"(W33*O33)","v":0},0,{"$f":"W33*1.06","v":0},{"$f":"(+Z33)*P33","v":0},0,0,{"$f":"(AC33)*Q33","v":0},0,{"$f":"AC33*1.06","v":0},{"$f":"(+AF33)*R33","v":0},0,{"$f":"AG33+AD33+AA33+X33+U33","v":0},0]
["Manufacturing","513663090","TUBE METAL;6000 MM,15 MM",null,"TUBE, METALLIC; TUBE LENGTH: 6000 MM, OUTSIDE DIAMETER: 15 MM; (TUBE=PIPE); MATERIAL GRADE NEW: ASTM A53 GR A MATERIAL GRADE OLD: A STM A53 GRADE A/GRADE B; THICKNESS: REFER TO SCHEDULE 40. GENERAL: MATERIAL CERTIFICATE TO EN 10204 TYPE 3.1 TO BE SUPPLIED","TUBE,","M",null,"ASTM A53 GR A","Carbon Steel Sections","Carbon Steel","Pipe & Tube",null,135,135,135,135,135,675,null,{"$f":"+T34*N34","v":0},0,{"$f":"T34*1.06","v":0},{"$f":"(W34*O34)","v":0},0,{"$f":"W34*1.06","v":0},{"$f":"(+Z34)*P34","v":0},0,0,{"$f":"(AC34)*Q34","v":0},0,{"$f":"AC34*1.06","v":0},{"$f":"(+AF34)*R34","v":0},0,{"$f":"AG34+AD34+AA34+X34+U34","v":0},0]
["Manufacturing","313030294","PIPE METAL;PIPE SZ:25 MM,STL,SCHDL:40",null,"PIPE, METALLIC; PIPE SIZE: 25 MM, PIPE MATERIAL: STEEL, SCHEDULE: 40, CONSTRUCTION: SEAMLESS","PIPE,","M",null,"SCHEDULE 40","Carbon Steel Sections","Seamless pipe","Pipe & Tube",null,12,12,27,39,40,130,null,{"$f":"+T35*N35","v":0},0,{"$f":"T35*1.06","v":0},{"$f":"(W35*O35)","v":0},0,{"$f":"W35*1.06","v":0},{"$f":"(+Z35)*P35","v":0},0,0,{"$f":"(AC35)*Q35","v":0},0,{"$f":"AC35*1.06","v":0},{"$f":"(+AF35)*R35","v":0},0,{"$f":"AG35+AD35+AA35+X35+U35","v":0},0]
["Manufacturing","011669264","CHANNEL STRUCTURAL;TAPER,U,127 MM,64 MM",null,"CHANNEL, STRUCTURAL; TYPE: TAPER, CROSS SECTION SHAPE: U, WIDTH: 127 MM, HEIGHT: 64 MM, LENGTH: 9000 MM, MATERIAL: STEEL; MATERIAL GRADE NEW:  EN 10025 S355 JR+AR MATERIAL GRADE OLD: SABS 1431 300WA; GENERAL: MATERIAL CERTIFICATE TO EN 10204 TYPE 3.1 TO B","CHANN","EA",null,"EN 10025 S355 JR+AR","Carbon Steel Sections","Structural steel","Sections",null,55,55,123,176,180,589,null,{"$f":"+T36*N36","v":0},0,{"$f":"T36*1.06","v":0},{"$f":"(W36*O36)","v":0},0,{"$f":"W36*1.06","v":0},{"$f":"(+Z36)*P36","v":0},0,0,{"$f":"(AC36)*Q36","v":0},0,{"$f":"AC36*1.06","v":0},{"$f":"(+AF36)*R36","v":0},0,{"$f":"AG36+AD36+AA36+X36+U36","v":0},0]
["Manufacturing","011202519","BAR METAL;WD 30 X LG 6000 X THK 12 MM",null,"BAR, METALLIC; DIMENSIONS: WD 30 X LG 6000 X THK 12 MM, SHAPE: FLAT; MATERIAL GRADE NEW: EN 10025 S355 JR+AR MATERIAL GRADE OLD: SABS 1431 300WA; GENERAL: MATERIAL CERTIFICATE TO EN 10204 TYPE 3.1 TO BE SUPPLIED. NO RUST OR CORROSION ON THE SURFACE ALLOWE","BAR, ","M",null,"EN 10025 S355 JR+AR","Carbon Steel Sections","Structural steel","Sections",null,39,39,39,39,39,195,null,{"$f":"+T37*N37","v":0},0,{"$f":"T37*1.06","v":0},{"$f":"(W37*O37)","v":0},0,{"$f":"W37*1.06","v":0},{"$f":"(+Z37)*P37","v":0},0,0,{"$f":"(AC37)*Q37","v":0},0,{"$f":"AC37*1.06","v":0},{"$f":"(+AF37)*R37","v":0},0,{"$f":"AG37+AD37+AA37+X37+U37","v":0},0]
["Manufacturing","511663741","BAR METAL;WD 80 MM X LG 6 M X THK 8 MM",null,"BAR, METALLIC; DIMENSIONS: WD 80 MM X LG 6 M X THK 8 MM, MATERIAL: STEEL GRADE 300WA, SHAPE: FLAT; P/N: UKNOWN, TRIDENT STEEL (PTY)  LTD; SABS 1431","BAR, ","M",null,"EN 10025 S355 JR+AR","Carbon Steel Sections","Structural steel","Sections",null,7,7,7,7,7,35,null,{"$f":"+T38*N38","v":0},0,{"$f":"T38*1.06","v":0},{"$f":"(W38*O38)","v":0},0,{"$f":"W38*1.06","v":0},{"$f":"(+Z38)*P38","v":0},0,0,{"$f":"(AC38)*Q38","v":0},0,{"$f":"AC38*1.06","v":0},{"$f":"(+AF38)*R38","v":0},0,{"$f":"AG38+AD38+AA38+X38+U38","v":0},0]
["Manufacturing","011014432","ANGLE STRUCTURAL;EQUAL,HT:25 MM,25 MM",null,"ANGLE, STRUCTURAL; TYPE: EQUAL, MATERIAL: STEEL, WIDTH: 25 MM, LENGTH: 6000 MM, THICKNESS: 3 MM, ANGLE HEIGHT: 25 MM, MATERIAL GRADE: EN 10025 S355 JR+AR; GENERAL: MATERIAL CERTIFICATE TO EN 10204 TYPE 3.1 TO BE SUPPLIED. NO RUST OR CORROSION ON THE SURFA","ANGLE","M",null,"EN 10025 S355 JR+AR","Carbon Steel Sections","Structural steel","Sections",null,11,11,11,11,11,55,null,{"$f":"+T39*N39","v":0},0,{"$f":"T39*1.06","v":0},{"$f":"(W39*O39)","v":0},0,{"$f":"W39*1.06","v":0},{"$f":"(+Z39)*P39","v":0},0,0,{"$f":"(AC39)*Q39","v":0},0,{"$f":"AC39*1.06","v":0},{"$f":"(+AF39)*R39","v":0},0,{"$f":"AG39+AD39+AA39+X39+U39","v":0},0]
["Manufacturing","811012583","BAR METAL;WD 50 X LG 6000 X THK 25 MM",null,"BAR, METALLIC; DIMENSIONS: WD 50 X LG 6000 X THK 25 MM, SHAPE: FLAT; MATERIAL GRADE NEW: EN 10025 S355 JR+AR MATERIAL GRADE OLD: SABS 1431 300 WA; GENERAL: MATERIAL CERTIFICATE TO EN 10204 TYPE 3.1 TO BE SUPPLIED. NO RUST OR CORROSION ON THE SURFACE ALLOW","BAR, ","M",null,"EN 10025 S355 JR+AR","Carbon Steel Sections","Structural steel","Sections",null,504,504,504,504,504,2520,null,{"$f":"+T40*N40","v":0},0,{"$f":"T40*1.06","v":0},{"$f":"(W40*O40)","v":0},0,{"$f":"W40*1.06","v":0},{"$f":"(+Z40)*P40","v":0},0,0,{"$f":"(AC40)*Q40","v":0},0,{"$f":"AC40*1.06","v":0},{"$f":"(+AF40)*R40","v":0},0,{"$f":"AG40+AD40+AA40+X40+U40","v":0},0]
["Manufacturing","311111149","CHANNEL STRUCTURAL;PARALLEL,U,260 MM,STL",null,"CHANNEL, STRUCTURAL; TYPE: PARALLEL, CROSS SECTION SHAPE: U, WIDTH: 260 MM, HEIGHT: 90 MM, LENGTH: 1400 MM, MATERIAL: STEEL, MATERIAL GRADE: EN 10025 GRADE S355 JR+AR; GENERAL: MATERIAL CERTIFICATE TO EN 10204 TYPE 3.1 TO BE SUPPLIED. NO RUST OR CORROSION","CHANN","M",null,"EN 10025 S355 JR+AR","Carbon Steel Sections","Structural steel","Sections",null,854,854,854,854,854,4270,null,{"$f":"+T41*N41","v":0},0,{"$f":"T41*1.06","v":0},{"$f":"(W41*O41)","v":0},0,{"$f":"W41*1.06","v":0},{"$f":"(+Z41)*P41","v":0},0,0,{"$f":"(AC41)*Q41","v":0},0,{"$f":"AC41*1.06","v":0},{"$f":"(+AF41)*R41","v":0},0,{"$f":"AG41+AD41+AA41+X41+U41","v":0},0]
["Manufacturing","911500567","CHANNEL STRUCTURAL;PARALLEL,U,300 MM,STL",null,"CHANNEL, STRUCTURAL; TYPE: PARALLEL, CROSS SECTION SHAPE: U, WIDTH: 300 MM, HEIGHT: 100 MM, LENGTH: 9700 MM, MATERIAL: STEEL, MATERIAL THICKNESS: 16.5 MM; GENERAL: MATERIAL CERTIFICATE TO EN 10204 TYPE 3.1 TO BE SUPPLIED. NO RUST OR CORROSION ON THE SURFA","CHANN","EA",null,"STEEL TH400","Carbon Steel Sections","Carbon Section_Wear-resistant steel","Sections",null,103,63,105,134,78,483,null,{"$f":"+T42*N42","v":0},0,{"$f":"T42*1.06","v":0},{"$f":"(W42*O42)","v":0},0,{"$f":"W42*1.06","v":0},{"$f":"(+Z42)*P42","v":0},0,0,{"$f":"(AC42)*Q42","v":0},0,{"$f":"AC42*1.06","v":0},{"$f":"(+AF42)*R42","v":0},0,{"$f":"AG42+AD42+AA42+X42+U42","v":0},0]
["Project Wagons 1000","911500567","CHANNEL STRUCTURAL;PARALLEL,U,300 MM,STL",null,"CHANNEL, STRUCTURAL; TYPE: PARALLEL, CROSS SECTION SHAPE: U, WIDTH: 300 MM, HEIGHT: 100 MM, LENGTH: 9700 MM, MATERIAL: STEEL, MATERIAL THICKNESS: 16.5 MM; GENERAL: MATERIAL CERTIFICATE TO EN 10204 TYPE 3.1 TO BE SUPPLIED. NO RUST OR CORROSION ON THE SURFA","CHANN","EA",null,"STEEL TH400","Carbon Steel Sections","Carbon Section_Wear-resistant steel","Sections",null,500,500,{"$nulls":3},1000,null,{"$f":"+T43*N43","v":0},0,{"$f":"T43*1.06","v":0},{"$f":"(W43*O43)","v":0},0,{"$f":"W43*1.06","v":0},{"$f":"(+Z43)*P43","v":0},0,0,{"$f":"(AC43)*Q43","v":0},0,{"$f":"AC43*1.06","v":0},{"$f":"(+AF43)*R43","v":0},0,{"$f":"AG43+AD43+AA43+X43+U43","v":0},0]
["Manufacturing","311200912","BAR METAL;WD 30 X LG 6000 MM,RND",null,"BAR, METALLIC; DIMENSIONS: WD 30 X LG 6000 MM, SHAPE: ROUND; MATERIAL GRADE NEW: EN 10025 S355JR +AR MATERIAL GRADE OLD: SABS 1431 300 WA; GENERAL: MATERIAL CERTIFICATE TO EN 10204 TYPE 3.1 TO BE SUPPLIED. NO RUST OR CORROSION ON THE SURFACE ALLOWED","BAR, ","M",null,"EN 10025 S355 JR+AR","Carbon Steel Sections","Structural steel","Sections",null,7,7,15,22,22,73,null,{"$f":"+T44*N44","v":0},0,{"$f":"T44*1.06","v":0},{"$f":"(W44*O44)","v":0},0,{"$f":"W44*1.06","v":0},{"$f":"(+Z44)*P44","v":0},0,0,{"$f":"(AC44)*Q44","v":0},0,{"$f":"AC44*1.06","v":0},{"$f":"(+AF44)*R44","v":0},0,{"$f":"AG44+AD44+AA44+X44+U44","v":0},0]
["Manufacturing","0110115680","CHANNEL STEEL;U,WD:200 MM,LG:10 M,LIPPED",null,"CHANNEL, STEEL; TYPE: LIPPED, CROSS SECTION SHAPE: U, MATERIAL: STEEL SANS 50025/EN 10025 GRADE S355 JR+AR, WIDTH: 200 MM, LENGTH: 10 M, HEIGHT: 50 MM, MATERIAL THICKNESS: 2 MM; LIP 20MM, ISQ 230 Z275","CHANN","EA",null,"EN 10025 S355 JR+AR","Carbon Steel Sections","Structural steel","Sections",null,2,2,2,2,2,10,null,{"$f":"+T45*N45","v":0},0,{"$f":"T45*1.06","v":0},{"$f":"(W45*O45)","v":0},0,{"$f":"W45*1.06","v":0},{"$f":"(+Z45)*P45","v":0},0,0,{"$f":"(AC45)*Q45","v":0},0,{"$f":"AC45*1.06","v":0},{"$f":"(+AF45)*R45","v":0},0,{"$f":"AG45+AD45+AA45+X45+U45","v":0},0]
["Manufacturing","011011173","ANGLE STRUCTURAL;EQUAL,HT:120 MM,120 MM",null,"ANGLE, STRUCTURAL; TYPE: EQUAL, MATERIAL: EN 10025 S355 JR+AR, WIDTH: 120 MM, LENGTH: 13000 MM, THICKNESS: 10 MM, ANGLE HEIGHT: 120 MM; GENERAL: MATERIAL CERTIFICATE TO EN 10204 TYPE 3.1 TO BE SUPPLIED. NO RUST OR CORROSION ON THE SURFACE ALLOWED. MASS 18","ANGLE","M",null,"EN 10025 S355 JR+AR","Carbon Steel Sections","Structural steel","Sections",null,51,51,51,51,51,255,null,{"$f":"+T46*N46","v":0},0,{"$f":"T46*1.06","v":0},{"$f":"(W46*O46)","v":0},0,{"$f":"W46*1.06","v":0},{"$f":"(+Z46)*P46","v":0},0,0,{"$f":"(AC46)*Q46","v":0},0,{"$f":"AC46*1.06","v":0},{"$f":"(+AF46)*R46","v":0},0,{"$f":"AG46+AD46+AA46+X46+U46","v":0},0]
["Manufacturing","111000387","BAR METAL;WD 30 X LG 6000 X THK 8 MM",null,"BAR, METALLIC; DIMENSIONS: WD 30 X LG 6000 X THK 8 MM, SHAPE: FLAT; MATERIAL GRADE NEW: COMMERCIAL QUALITY; GENERAL: MATERIAL CERTIFICATE TO EN 10204 TYPE 3.1 TO BE SUPPLIED. NO RUST OR CORROSION ON THE SURFACE ALLOWED","BAR, ","M",null,"commercial quality","Carbon Steel Sections","commercial quality","Sections",null,34,10,34,34,34,146,null,{"$f":"+T47*N47","v":0},0,{"$f":"T47*1.06","v":0},{"$f":"(W47*O47)","v":0},0,{"$f":"W47*1.06","v":0},{"$f":"(+Z47)*P47","v":0},0,0,{"$f":"(AC47)*Q47","v":0},0,{"$f":"AC47*1.06","v":0},{"$f":"(+AF47)*R47","v":0},0,{"$f":"AG47+AD47+AA47+X47+U47","v":0},0]
["Manufacturing","911500174","ANGLE STRUCTURAL;EQUAL,HT:40 MM,40 MM",null,"ANGLE, STRUCTURAL; TYPE: EQUAL, MATERIAL: STEEL, WIDTH: 40 MM, LENGTH: 6000 MM, THICKNESS: 5 MM, ANGLE HEIGHT: 40 MM; MATERIAL GRADE NEW: EN 10025 S355 JR+AR MATERIAL GRADE OLD: SABS 1431 300 WA; GENERAL: MATERIAL CERTIFICATE TO EN 10204 TYPE 3.1 TO BE SU","ANGLE","M",null,"EN 10025 S355 JR+AR","Carbon Steel Sections","Structural steel","Sections",null,113,113,113,113,113,565,null,{"$f":"+T48*N48","v":0},0,{"$f":"T48*1.06","v":0},{"$f":"(W48*O48)","v":0},0,{"$f":"W48*1.06","v":0},{"$f":"(+Z48)*P48","v":0},0,0,{"$f":"(AC48)*Q48","v":0},0,{"$f":"AC48*1.06","v":0},{"$f":"(+AF48)*R48","v":0},0,{"$f":"AG48+AD48+AA48+X48+U48","v":0},0]
["Project Wagons 1000","911500174","ANGLE STRUCTURAL;EQUAL,HT:40 MM,40 MM",null,"ANGLE, STRUCTURAL; TYPE: EQUAL, MATERIAL: STEEL, WIDTH: 40 MM, LENGTH: 6000 MM, THICKNESS: 5 MM, ANGLE HEIGHT: 40 MM; MATERIAL GRADE NEW: EN 10025 S355 JR+AR MATERIAL GRADE OLD: SABS 1431 300 WA; GENERAL: MATERIAL CERTIFICATE TO EN 10204 TYPE 3.1 TO BE SU","ANGLE","M",null,"EN 10025 S355 JR+AR","Carbon Steel Sections","Structural steel","Sections",null,856,856,{"$nulls":3},1712,null,{"$f":"+T49*N49","v":0},0,{"$f":"T49*1.06","v":0},{"$f":"(W49*O49)","v":0},0,{"$f":"W49*1.06","v":0},{"$f":"(+Z49)*P49","v":0},0,0,{"$f":"(AC49)*Q49","v":0},0,{"$f":"AC49*1.06","v":0},{"$f":"(+AF49)*R49","v":0},0,{"$f":"AG49+AD49+AA49+X49+U49","v":0},0]
["Manufacturing","011112894","BAR METAL FLAT STEEL 8x20          300WA",null,"BAR FLAT STEEL 8x20x6000mm SABS 1431 GR 300WA CERTIFICATE TO BE SENT WITH STEEL MATERIAL DELIVERED MAX LOAD ON PALLETS MAY NOT EXEED 4 TONS","BAR F","M",null,"EN 10025 S355 JR+AR","Carbon Steel Sections","Structural steel","Sections",null,1,1,1,1,1,5,null,{"$f":"+T50*N50","v":0},0,{"$f":"T50*1.06","v":0},{"$f":"(W50*O50)","v":0},0,{"$f":"W50*1.06","v":0},{"$f":"(+Z50)*P50","v":0},0,0,{"$f":"(AC50)*Q50","v":0},0,{"$f":"AC50*1.06","v":0},{"$f":"(+AF50)*R50","v":0},0,{"$f":"AG50+AD50+AA50+X50+U50","v":0},0]
["Manufacturing","011012280","BAR METAL;WD 65 X LG 6000 X THK 6 MM",null,"BAR, METALLIC; DIMENSIONS: WD 65 X LG 6000 X THK 6 MM, MATERIAL: BS 4360 43A, SHAPE: FLAT; GENERAL: MATERIAL CERTIFICATE TO EN 10204 TYPE 3.1 TO BE SUPPLIED. NO RUST OR CORROSION ON THE SURFACE ALLOWED. MAX LOAD ON PALLETS MAY NOT EXCEED 4 TONS.","BAR, ","M",null,"BS 4360 GRADE 43A","Carbon Steel Sections","structural mild steel","Sections",null,410,410,410,410,410,2050,null,{"$f":"+T51*N51","v":0},0,{"$f":"T51*1.06","v":0},{"$f":"(W51*O51)","v":0},0,{"$f":"W51*1.06","v":0},{"$f":"(+Z51)*P51","v":0},0,0,{"$f":"(AC51)*Q51","v":0},0,{"$f":"AC51*1.06","v":0},{"$f":"(+AF51)*R51","v":0},0,{"$f":"AG51+AD51+AA51+X51+U51","v":0},0]
["Manufacturing","011009564","BAR METAL;DIA 44 X LG 6200 MM,RND",null,"BAR, METALLIC; DIMENSIONS: DIA 44 X LG 6200 MM, SHAPE: ROUND; MATERIAL GRADE NEW:  BS 970 735A54 MATERIAL GRADE OLD:  BS 970 735A54; GENERAL: MATERIAL CERTIFICATE TO EN 10204 TYPE 3.1 TO BE SUPPLIED. NO RUST OR CORROSION ON THE SURFACE ALLOWED. MATERIALS","BAR, ","M",null,"BS 970 735A54","Carbon Steel Sections","Nickel-Chromium-Molybdenum Alloy Steel","Sections",null,321,321,321,321,321,1605,null,{"$f":"+T52*N52","v":0},0,{"$f":"T52*1.06","v":0},{"$f":"(W52*O52)","v":0},0,{"$f":"W52*1.06","v":0},{"$f":"(+Z52)*P52","v":0},0,0,{"$f":"(AC52)*Q52","v":0},0,{"$f":"AC52*1.06","v":0},{"$f":"(+AF52)*R52","v":0},0,{"$f":"AG52+AD52+AA52+X52+U52","v":0},0]
["Manufacturing","011014456","ANGLE STRUCTURAL;EQUAL,HT:40 MM,40 MM",null,"ANGLE, STRUCTURAL; TYPE: EQUAL, MATERIAL: STEEL, WIDTH: 40 MM, LENGTH: 6000 MM, THICKNESS: 5 MM, ANGLE HEIGHT: 40 MM; MATERIAL GRADE NEW: EN 10025 S355 JR+AR MATERIAL GRADE OLD: SABS 1431 300WA; GENERAL: MATERIAL CERTIFICATE TO EN 10204 TYPE 3.1 TO BE SUP","ANGLE","M",null,"EN 10025 S355 JR+AR","Carbon Steel Sections","Structural steel","Sections",null,10,10,10,10,10,50,null,{"$f":"+T53*N53","v":0},0,{"$f":"T53*1.06","v":0},{"$f":"(W53*O53)","v":0},0,{"$f":"W53*1.06","v":0},{"$f":"(+Z53)*P53","v":0},0,0,{"$f":"(AC53)*Q53","v":0},0,{"$f":"AC53*1.06","v":0},{"$f":"(+AF53)*R53","v":0},0,{"$f":"AG53+AD53+AA53+X53+U53","v":0},0]
["Manufacturing","011012393","BAR METAL;WD 65 X LG 6000 X THK 10 MM",null,"BAR, METALLIC; DIMENSIONS: WD 65 X LG 6000 X THK 10 MM, SHAPE: FLAT; MATERIAL GRADE: COMMERCIAL QUALITY. GENERAL: MATERIAL CERTIFICATE TO EN 10204 TYPE 3.1 TO BE SUPPLIED. NO RUST OR CORROSION ON THE SURFACE ALLOWED. MAX LOAD ON PALLETS MAY NOT EXCEED 4 T","BAR, ","M",null,"commercial quality","Carbon Steel Sections","commercial quality","Sections",null,890,890,890,890,890,4450,null,{"$f":"+T54*N54","v":0},0,{"$f":"T54*1.06","v":0},{"$f":"(W54*O54)","v":0},0,{"$f":"W54*1.06","v":0},{"$f":"(+Z54)*P54","v":0},0,0,{"$f":"(AC54)*Q54","v":0},0,{"$f":"AC54*1.06","v":0},{"$f":"(+AF54)*R54","v":0},0,{"$f":"AG54+AD54+AA54+X54+U54","v":0},0]
["Project Wagons 1000","011012393","BAR METAL;WD 65 X LG 6000 X THK 10 MM",null,"BAR, METALLIC; DIMENSIONS: WD 65 X LG 6000 X THK 10 MM, SHAPE: FLAT; MATERIAL GRADE: COMMERCIAL QUALITY. GENERAL: MATERIAL CERTIFICATE TO EN 10204 TYPE 3.1 TO BE SUPPLIED. NO RUST OR CORROSION ON THE SURFACE ALLOWED. MAX LOAD ON PALLETS MAY NOT EXCEED 4 T","BAR, ","M",null,"commercial quality","Carbon Steel Sections","commercial quality","Sections",null,207,207,{"$nulls":3},414,null,{"$f":"+T55*N55","v":0},0,{"$f":"T55*1.06","v":0},{"$f":"(W55*O55)","v":0},0,{"$f":"W55*1.06","v":0},{"$f":"(+Z55)*P55","v":0},0,0,{"$f":"(AC55)*Q55","v":0},0,{"$f":"AC55*1.06","v":0},{"$f":"(+AF55)*R55","v":0},0,{"$f":"AG55+AD55+AA55+X55+U55","v":0},0]
["Manufacturing","011009552","BAR METAL;DIA 42 X LG 4200 MM,RND",null,"BAR, METALLIC; DIMENSIONS: DIA 42 X LG 4200 MM, SHAPE: ROUND; MATERIAL GRADE NEW: BS 970 735A54 MATERIAL GRADE OLD:  BS 970 735A54; GENERAL: MATERIAL CERTIFICATE TO EN 10204 TYPE 3.1 TO BE SUPPLIED. NO RUST OR CORROSION ON THE SURFACE ALLOWED. MATERIALS T","BAR, ","M",null,"BS 970 735A54","Carbon Steel Sections","Nickel-Chromium-Molybdenum Alloy Steel","Sections",null,549,549,549,549,549,2745,null,{"$f":"+T56*N56","v":0},0,{"$f":"T56*1.06","v":0},{"$f":"(W56*O56)","v":0},0,{"$f":"W56*1.06","v":0},{"$f":"(+Z56)*P56","v":0},0,0,{"$f":"(AC56)*Q56","v":0},0,{"$f":"AC56*1.06","v":0},{"$f":"(+AF56)*R56","v":0},0,{"$f":"AG56+AD56+AA56+X56+U56","v":0},0]
["Manufacturing","011113636","BAR METAL;WD 90 X LG 6000 X THK 12 MM",null,"BAR, METALLIC; DIMENSIONS: WD 90 X LG 6000 X THK 12 MM, SHAPE: FLAT; MATERIAL GRADE NEW: EN 10025 S355 JR+AR; GENERAL: MATERIAL CERTIFICATE TO EN 10204 TYPE 3.1 TO BE SUPPLIED. NO RUST OR CORROSION ON THE SURFACE ALLOWED","BAR, ","M",null,"EN 10025 S355 JR+AR","Carbon Steel Sections","Structural steel","Sections",null,664,664,664,664,664,3320,null,{"$f":"+T57*N57","v":0},0,{"$f":"T57*1.06","v":0},{"$f":"(W57*O57)","v":0},0,{"$f":"W57*1.06","v":0},{"$f":"(+Z57)*P57","v":0},0,0,{"$f":"(AC57)*Q57","v":0},0,{"$f":"AC57*1.06","v":0},{"$f":"(+AF57)*R57","v":0},0,{"$f":"AG57+AD57+AA57+X57+U57","v":0},0]
["Manufacturing","911500016","CHANNEL STRUCTURAL;UNEQUAL,U,100 MM,STL",null,"CHANNEL, STRUCTURAL; TYPE: UNEQUAL, CROSS SECTION SHAPE: U, WIDTH: 100 MM, HEIGHT: 50 MM, LENGTH: 11200 MM, MATERIAL: STEEL, MATERIAL THICKNESS: 6 MM; MATERIAL GRADE NEW: EN 10025 S355 JR+AR MATERIAL GRADE OLD: SABS 1431 CORTEN  OR SABS 1431 350 WA; GENER","CHANN","EA",null,"EN 10025 S355 JR+AR","Carbon Steel Sections","Structural steel","Sections",null,7,7,7,7,7,35,null,{"$f":"+T58*N58","v":0},0,{"$f":"T58*1.06","v":0},{"$f":"(W58*O58)","v":0},0,{"$f":"W58*1.06","v":0},{"$f":"(+Z58)*P58","v":0},0,0,{"$f":"(AC58)*Q58","v":0},0,{"$f":"AC58*1.06","v":0},{"$f":"(+AF58)*R58","v":0},0,{"$f":"AG58+AD58+AA58+X58+U58","v":0},0]
["Project Wagons 1000","911500016","CHANNEL STRUCTURAL;UNEQUAL,U,100 MM,STL",null,"CHANNEL, STRUCTURAL; TYPE: UNEQUAL, CROSS SECTION SHAPE: U, WIDTH: 100 MM, HEIGHT: 50 MM, LENGTH: 11200 MM, MATERIAL: STEEL, MATERIAL THICKNESS: 6 MM; MATERIAL GRADE NEW: EN 10025 S355 JR+AR MATERIAL GRADE OLD: SABS 1431 CORTEN  OR SABS 1431 350 WA; GENER","CHANN","EA",null,"EN 10025 S355 JR+AR","Carbon Steel Sections","Structural steel","Sections",null,1000,1000,{"$nulls":3},2000,null,{"$f":"+T59*N59","v":0},0,{"$f":"T59*1.06","v":0},{"$f":"(W59*O59)","v":0},0,{"$f":"W59*1.06","v":0},{"$f":"(+Z59)*P59","v":0},0,0,{"$f":"(AC59)*Q59","v":0},0,{"$f":"AC59*1.06","v":0},{"$f":"(+AF59)*R59","v":0},0,{"$f":"AG59+AD59+AA59+X59+U59","v":0},0]
["Manufacturing","311110724","BAR METAL;WD 60 X LG 6000 X THK 12 MM",null,"BAR, METALLIC; DIMENSIONS: WD 60 X LG 6000 X THK 12 MM, SHAPE: FLAT; MATERIAL GRADE NEW:  EN 10025 S355 JR+AR MATERIAL GRADE OLD: SABS 1431 GR 300WA; GENERAL: MATERIAL CERTIFICATE TO EN 10204 TYPE 3.1 TO BE SUPPLIED. NO RUST OR CORROSION ON THE SURFACE AL","BAR, ","M",null,"EN 10025 S355 JR+AR","Carbon Steel Sections","Structural steel","Sections",null,45,45,45,45,45,225,null,{"$f":"+T60*N60","v":0},0,{"$f":"T60*1.06","v":0},{"$f":"(W60*O60)","v":0},0,{"$f":"W60*1.06","v":0},{"$f":"(+Z60)*P60","v":0},0,0,{"$f":"(AC60)*Q60","v":0},0,{"$f":"AC60*1.06","v":0},{"$f":"(+AF60)*R60","v":0},0,{"$f":"AG60+AD60+AA60+X60+U60","v":0},0]
["Manufacturing","311200035","BAR METAL;DIA 30 X LG 6000 MM,RND",null,"BAR, METALLIC; DIMENSIONS: DIA 30 X LG 6000 MM, SHAPE: ROUND; MATERIAL GRADE NEW: BS 970 070M20; GENERAL: MATERIAL CERTIFICATE TO EN 10204 TYPE 3.1 TO BE SUPPLIED. NO RUST OR CORROSION ON THE SURFACE ALLOWED","BAR, ","M",null," BS 970 070M20","Carbon Steel Sections","Low carbon mild steel","Sections",null,344,344,344,344,344,1720,null,{"$f":"+T61*N61","v":0},0,{"$f":"T61*1.06","v":0},{"$f":"(W61*O61)","v":0},0,{"$f":"W61*1.06","v":0},{"$f":"(+Z61)*P61","v":0},0,0,{"$f":"(AC61)*Q61","v":0},0,{"$f":"AC61*1.06","v":0},{"$f":"(+AF61)*R61","v":0},0,{"$f":"AG61+AD61+AA61+X61+U61","v":0},0]
["Manufacturing","011014582","ANGLE STRUCTURAL;UNEQUAL,HT:65 MM,50 MM",null,"ANGLE, STRUCTURAL; TYPE: UNEQUAL, MATERIAL: STEEL, WIDTH: 50 MM, LENGTH: 6000 MM, THICKNESS: 8 MM, ANGLE HEIGHT: 65 MM; MATERIAL GRADE NEW: EN 10025 S355 JR+AR MATERIAL GRADE OLD: SABS 1431 300WA; GENERAL: MATERIAL CERTIFICATE TO EN 10204 TYPE 3.1 TO BE S","ANGLE","M",null,"EN 10025 S355 JR+AR","Carbon Steel Sections","Structural steel","Sections",null,412,412,412,412,412,2060,null,{"$f":"+T62*N62","v":0},0,{"$f":"T62*1.06","v":0},{"$f":"(W62*O62)","v":0},0,{"$f":"W62*1.06","v":0},{"$f":"(+Z62)*P62","v":0},0,0,{"$f":"(AC62)*Q62","v":0},0,{"$f":"AC62*1.06","v":0},{"$f":"(+AF62)*R62","v":0},0,{"$f":"AG62+AD62+AA62+X62+U62","v":0},0]
["Manufacturing","011900002","BAR METAL;WD 50 X LG 6000 X THK 5 MM",null,"BAR, METALLIC; DIMENSIONS: WD 50 X LG 6000 X THK 5 MM, SHAPE: FLAT; GENERAL: MATERIAL CERTIFICATE TO EN 10204 TYPE 3.1 TO BE SUPPLIED. NO RUST OR CORROSION ON THE SURFACE ALLOWED. COACH BUSSNESS: NB:BFX. MUST BE S/BLASTED TO SA 2-1/2. PRIMED WITH NS4 RED","BAR, ","M",null,"Not Specfied","Carbon Steel Sections","Not Specified type of Steel","Sections",null,509,509,509,509,509,2545,null,{"$f":"+T63*N63","v":0},0,{"$f":"T63*1.06","v":0},{"$f":"(W63*O63)","v":0},0,{"$f":"W63*1.06","v":0},{"$f":"(+Z63)*P63","v":0},0,0,{"$f":"(AC63)*Q63","v":0},0,{"$f":"AC63*1.06","v":0},{"$f":"(+AF63)*R63","v":0},0,{"$f":"AG63+AD63+AA63+X63+U63","v":0},0]
["Manufacturing","611000142","BAR METAL;WD 70 X LG 6000 X THK 10 MM",null,"BAR, METALLIC; DIMENSIONS: WD 70 X LG 6000 X THK 10 MM, SHAPE: FLAT; MATERIAL GRADE NEW: EN 10025 S355 JR MATERIAL GRADE OLD: SYM8; GENERAL: MATERIAL CERTIFICATE TO EN 10204 TYPE 3.1 TO BE SUPPLIED. NO RUST OR CORROSION ON THE SURFACE ALLOWED","BAR, ","M",null," EN 10025 S355 JR","Carbon Steel Sections","Structural steel","Sections",null,102,102,102,102,102,510,null,{"$f":"+T64*N64","v":0},0,{"$f":"T64*1.06","v":0},{"$f":"(W64*O64)","v":0},0,{"$f":"W64*1.06","v":0},{"$f":"(+Z64)*P64","v":0},0,0,{"$f":"(AC64)*Q64","v":0},0,{"$f":"AC64*1.06","v":0},{"$f":"(+AF64)*R64","v":0},0,{"$f":"AG64+AD64+AA64+X64+U64","v":0},0]
["Manufacturing","011823125","BAR METAL;WD 40 X LG 6000 X THK 10 MM",null,"BAR, METALLIC; DIMENSIONS: WD 40 X LG 6000 X THK 10 MM, SHAPE: FLAT; MATERIAL GRADE NEW: EN 10025 S355 JR+AR; GENERAL: MATERIAL CERTIFICATE TO EN 10204 TYPE 3.1 TO BE SUPPLIED. NO RUST OR CORROSION ON THE SURFACE ALLOWED","BAR, ","EA",null,"EN 10025 S355 JR+AR","Carbon Steel Sections","Structural steel","Sections",null,2,2,2,2,2,10,null,{"$f":"+T65*N65","v":0},0,{"$f":"T65*1.06","v":0},{"$f":"(W65*O65)","v":0},0,{"$f":"W65*1.06","v":0},{"$f":"(+Z65)*P65","v":0},0,0,{"$f":"(AC65)*Q65","v":0},0,{"$f":"AC65*1.06","v":0},{"$f":"(+AF65)*R65","v":0},0,{"$f":"AG65+AD65+AA65+X65+U65","v":0},0]
["Manufacturing","011671582","BAR METAL;DIA 30 X LG 6000 MM,RND",null,"BAR, METALLIC; DIMENSIONS: DIA 30 X LG 6000 MM, MATERIAL: EN 10088 X6CRNITI 18-10, SHAPE: ROUND; GENERAL: MATERIAL CERTIFICATE TO E N 10204 TYPE 3.1 TO BE SUPPLIED. NO RUST OR CORROSION ON THE SURFACE ALLOWED. MATERIAL MUST BE ULTRASONIC TESTED INSPECTION","BAR, ","M",null," EN 10088 X6CRNITI 18-10","Carbon Steel Sections","Stainless Steel","Sections",null,24,18,0,24,18,84,null,{"$f":"+T66*N66","v":0},0,{"$f":"T66*1.06","v":0},{"$f":"(W66*O66)","v":0},0,{"$f":"W66*1.06","v":0},{"$f":"(+Z66)*P66","v":0},0,0,{"$f":"(AC66)*Q66","v":0},0,{"$f":"AC66*1.06","v":0},{"$f":"(+AF66)*R66","v":0},0,{"$f":"AG66+AD66+AA66+X66+U66","v":0},0]
["Manufacturing","611201468","ANGLE STRUCTURAL;EQUAL,HT:50 MM,50 MM",null,"ANGLE, STRUCTURAL; TYPE: EQUAL, MATERIAL: STEEL, WIDTH: 50 MM, LENGTH: 6 M, THICKNESS: 5 MM, ANGLE HEIGHT: 50 MM,","ANGLE","M",null,"not specified","Carbon Steel Sections","Structural steel","Sections",null,5,0,5,5,5,20,null,{"$f":"+T67*N67","v":0},0,{"$f":"T67*1.06","v":0},{"$f":"(W67*O67)","v":0},0,{"$f":"W67*1.06","v":0},{"$f":"(+Z67)*P67","v":0},0,0,{"$f":"(AC67)*Q67","v":0},0,{"$f":"AC67*1.06","v":0},{"$f":"(+AF67)*R67","v":0},0,{"$f":"AG67+AD67+AA67+X67+U67","v":0},0]
["Manufacturing","011115619","ANGLE STRUCTURAL;EQUAL,HT:50 MM,50 MM",null,"ANGLE, STRUCTURAL; TYPE: EQUAL, MATERIAL: STEEL, WIDTH: 50 MM, LENGTH: 13000 MM, THICKNESS: 3 MM, ANGLE HEIGHT: 50 MM, MATERIAL GRADE: EN 10025 GRADE S355 JR+AR; GENERAL: MATERIAL CERTIFICATE TO EN 10204 TYPE 3.1 TO BE SUPPLIED. NO RUST OR CORROSION ON TH","ANGLE","M",null,"EN 10025 S355 JR+AR","Carbon Steel Sections","Structural steel","Sections",null,109,109,109,109,109,{"$f":"N68+O68+P68+Q68+R68","v":545},null,{"$f":"+T68*N68","v":0},{"$f":"U68*1.15","v":0},{"$f":"T68*1.06","v":0},{"$f":"(W68*O68)","v":0},{"$f":"X68*1.15","v":0},{"$f":"W68*1.06","v":0},{"$f":"(+Z68)*P68","v":0},{"$f":"AA68*1.15","v":0},{"$f":"Z68*1.06","v":0},{"$f":"(AC68)*Q68","v":0},{"$f":"AD68*1.15","v":0},{"$f":"AC68*1.06","v":0},{"$f":"(+AF68)*R68","v":0},{"$f":"AG68*1.15","v":0},{"$f":"AG68+AD68+AA68+X68+U68","v":0},{"$f":"AI68*1.15","v":0}]
["Manufacturing","811011339","ANGLE STRUCTURAL;EQUAL,HT:30 MM,30 MM",null,"ANGLE, STRUCTURAL; TYPE: EQUAL, MATERIAL: STEEL, WIDTH: 30 MM, LENGTH: 6000 MM, THICKNESS: 3 MM, ANGLE HEIGHT: 30 MM; MATERIAL GRADE NEW: EN 10025 S355 JR+AR MATERIAL GRADE OLD: SABS 1431 300WA OR SYM8; GENERAL: MATERIAL CERTIFICATE TO EN 10204 TYPE 3.1 T","ANGLE","M",null,"EN 10025 S355 JR+AR","Carbon Steel Sections","Structural steel","Sections",null,9,9,9,9,9,45,null,{"$f":"+T69*N69","v":0},0,{"$f":"T69*1.06","v":0},{"$f":"(W69*O69)","v":0},0,{"$f":"W69*1.06","v":0},{"$f":"(+Z69)*P69","v":0},0,0,{"$f":"(AC69)*Q69","v":0},0,{"$f":"AC69*1.06","v":0},{"$f":"(+AF69)*R69","v":0},0,{"$f":"AG69+AD69+AA69+X69+U69","v":0},0]
["Manufacturing","011012611","BAR METAL;WD 80 X LG 6000 X THK 16 MM",null,"BAR, METALLIC; DIMENSIONS: WD 80 X LG 6000 X THK 16 MM, SHAPE: FLAT; MATERIAL GRADE NEW: EN 10025 S355 JR+AR MATERIAL GRADE OLD: SABS 1431 300WA; GENERAL: MATERIAL CERTIFICATE TO EN 10204 TYPE 3.1 TO BE SUPPLIED. NO RUST OR CORROSION ON THE SURFACE ALLOWE","BAR, ","M",null,"EN 10025 S355 JR+AR","Carbon Steel Sections","Structural steel","Sections",null,262,262,262,262,262,1310,null,{"$f":"+T70*N70","v":0},0,{"$f":"T70*1.06","v":0},{"$f":"(W70*O70)","v":0},0,{"$f":"W70*1.06","v":0},{"$f":"(+Z70)*P70","v":0},0,0,{"$f":"(AC70)*Q70","v":0},0,{"$f":"AC70*1.06","v":0},{"$f":"(+AF70)*R70","v":0},0,{"$f":"AG70+AD70+AA70+X70+U70","v":0},0]
["Manufacturing","011011589","BAR METAL;DIA 60 X LG 6000 MM,RND",null,"BAR, METALLIC; DIMENSIONS: DIA 60 X LG 6000 MM, SHAPE: ROUND; MATERIAL GRADE NEW: BS 970 817M40; GENERAL: MATERIAL CERTIFICATE TO EN 10204 TYPE 3.1 TO BE SUPPLIED. NO RUST OR CORROSION ON THE SURFACE ALLOWED. PEELED. MAX LOAD ON PALLETS MAY NOT EXCEED 4 T","BAR, ","M",null," BS 970 817M40","Carbon Steel Sections","Medium Carbon alloy steel ","Sections",null,256,256,256,256,256,1280,null,{"$f":"+T71*N71","v":0},0,{"$f":"T71*1.06","v":0},{"$f":"(W71*O71)","v":0},0,{"$f":"W71*1.06","v":0},{"$f":"(+Z71)*P71","v":0},0,0,{"$f":"(AC71)*Q71","v":0},0,{"$f":"AC71*1.06","v":0},{"$f":"(+AF71)*R71","v":0},0,{"$f":"AG71+AD71+AA71+X71+U71","v":0},0]
["Manufacturing","011012445","BAR METAL;WD 100 X LG 6000 X THK 10 MM",null,"BAR, METALLIC; DIMENSIONS: WD 100 X LG 6000 X THK 10 MM, SHAPE: FLAT; MATERIAL GRADE NEW: EN 10025 S355 JR+AR MATERIAL GRADE OLD: SABS 1431 300WA; GENERAL: MATERIAL CERTIFICATE TO EN 10204 TYPE 3.1 TO BE SUPPLIED. NO RUST OR CORROSION ON THE SURFACE ALLOW","BAR, ","M",null,"EN 10025 S355 JR+AR","Carbon Steel Sections","Structural steel","Sections",null,4,4,4,4,4,20,null,{"$f":"+T72*N72","v":0},0,{"$f":"T72*1.06","v":0},{"$f":"(W72*O72)","v":0},0,{"$f":"W72*1.06","v":0},{"$f":"(+Z72)*P72","v":0},0,0,{"$f":"(AC72)*Q72","v":0},0,{"$f":"AC72*1.06","v":0},{"$f":"(+AF72)*R72","v":0},0,{"$f":"AG72+AD72+AA72+X72+U72","v":0},0]
["Maritime","011853888","BAR METAL;WD 66 MM X LG 6.5M X THK 20 MM",null,"BAR, METALLIC; DIMENSIONS: WD 66 MM X LG 6.5 M X THK 20 MM, MATERIAL: STEEL GRADE HARDOX 400, SHAPE: FLAT","BAR, ","M",null,"HARDOX 400","Carbon Steel Sections","Carbon Section_Wear-resistant steel","Sections",null,24,24,24,24,24,120,null,{"$f":"+T73*N73","v":0},0,{"$f":"T73*1.06","v":0},{"$f":"(W73*O73)","v":0},0,{"$f":"W73*1.06","v":0},{"$f":"(+Z73)*P73","v":0},0,0,{"$f":"(AC73)*Q73","v":0},0,{"$f":"AC73*1.06","v":0},{"$f":"(+AF73)*R73","v":0},0,{"$f":"AG73+AD73+AA73+X73+U73","v":0},0]
["Manufacturing","011202434","ANGLE STRUCTURAL;EQUAL,HT:50 MM,50 MM",null,"ANGLE, STRUCTURAL; TYPE: EQUAL, MATERIAL: STEEL, WIDTH: 50 MM, LENGTH: 6000 MM, THICKNESS: 5 MM, ANGLE HEIGHT: 50 MM; MATERIAL GRADE NEW: COMMERCIAL QUALITY GENERAL: MATERIAL CERTIFICATE TO EN 10204 TYPE 3.1 TO BE SUPPLIED. NO RUST OR CORROSION ON THE SUR","ANGLE","M",null,"commercial quality","Carbon Steel Sections","commercial quality","Sections",null,6,6,6,6,6,30,null,{"$f":"+T74*N74","v":0},0,{"$f":"T74*1.06","v":0},{"$f":"(W74*O74)","v":0},0,{"$f":"W74*1.06","v":0},{"$f":"(+Z74)*P74","v":0},0,0,{"$f":"(AC74)*Q74","v":0},0,{"$f":"AC74*1.06","v":0},{"$f":"(+AF74)*R74","v":0},0,{"$f":"AG74+AD74+AA74+X74+U74","v":0},0]
["Manufacturing","011014610","ANGLE STRUCTURAL;UNEQUAL,HT:90 MM,65 MM",null,"ANGLE, STRUCTURAL; TYPE: UNEQUAL, MATERIAL: STEEL, WIDTH: 65 MM, LENGTH: 6000 MM, THICKNESS: 10 MM, ANGLE HEIGHT: 90 MM; MATERIAL GRADE NEW: EN 10025 S355 JR+AR MATERIAL GRADE OLD: SABS 1431 300WA; GENERAL: MATERIAL CERTIFICATE TO EN 10204 TYPE 3.1 TO BE","ANGLE","M",null,"EN 10025 S355 JR+AR","Carbon Steel Sections","Structural steel","Sections",null,994,994,994,994,994,4970,null,{"$f":"+T75*N75","v":0},0,{"$f":"T75*1.06","v":0},{"$f":"(W75*O75)","v":0},0,{"$f":"W75*1.06","v":0},{"$f":"(+Z75)*P75","v":0},0,0,{"$f":"(AC75)*Q75","v":0},0,{"$f":"AC75*1.06","v":0},{"$f":"(+AF75)*R75","v":0},0,{"$f":"AG75+AD75+AA75+X75+U75","v":0},0]
["Manufacturing","711050053","BAR METAL;WD 40 MM X LG 6 M X THK 8 MM",null,"BAR, METALLIC; DIMENSIONS: WD 40 MM X LG 6 M X THK 8 MM, MATERIAL: MILD STEEL GRADE 43A, SHAPE: FLAT, HARDNESS RATING: 300WA","BAR, ","M",null,"EN 10025 S355 JR+AR","Carbon Steel Sections","Structural steel","Sections",null,141,141,141,141,141,705,null,{"$f":"+T76*N76","v":0},0,{"$f":"T76*1.06","v":0},{"$f":"(W76*O76)","v":0},0,{"$f":"W76*1.06","v":0},{"$f":"(+Z76)*P76","v":0},0,0,{"$f":"(AC76)*Q76","v":0},0,{"$f":"AC76*1.06","v":0},{"$f":"(+AF76)*R76","v":0},0,{"$f":"AG76+AD76+AA76+X76+U76","v":0},0]
["Maritime","311110575","ANGLE STRUCTURAL;EQUAL,HT:100 MM,100 MM",null,"ANGLE, STRUCTURAL; TYPE: EQUAL, MATERIAL: STEEL, WIDTH: 100 MM, LENGTH: 6000 MM, THICKNESS: 8 MM, ANGLE HEIGHT: 100 MM, MATERIAL GRADE: EN 10025 S355 JR+AR; GENERAL: MATERIAL CERTIFICATE TO EN 10204 TYPE 3.1 TO BE SUPPLIED. NO RUST OR CORROSION ON THE SUR","ANGLE","M",null,"EN 10025 S355 JR+AR","Carbon Steel Sections","Structural steel","Sections",null,24,24,24,24,24,120,null,{"$f":"+T77*N77","v":0},0,{"$f":"T77*1.06","v":0},{"$f":"(W77*O77)","v":0},0,{"$f":"W77*1.06","v":0},{"$f":"(+Z77)*P77","v":0},0,0,{"$f":"(AC77)*Q77","v":0},0,{"$f":"AC77*1.06","v":0},{"$f":"(+AF77)*R77","v":0},0,{"$f":"AG77+AD77+AA77+X77+U77","v":0},0]
["Manufacturing","311112391","CHANNEL STRUCTURAL;PARALLEL,U,WD:120 MM",null,"CHANNEL, STRUCTURAL; TYPE: PARALLEL, CROSS SECTION SHAPE: U, WIDTH: 120 MM, HEIGHT: 55 MM, LENGTH: 6 M, MATERIAL: STEEL SANS 50025 S355, SPECIAL FEATURES: 15.3 KG/M","CHANN","M",null,"EN 10025 S355 JR+AR","Carbon Steel Sections","Structural steel","Sections",null,4,1,4,4,4,17,null,{"$f":"+T78*N78","v":0},0,{"$f":"T78*1.06","v":0},{"$f":"(W78*O78)","v":0},0,{"$f":"W78*1.06","v":0},{"$f":"(+Z78)*P78","v":0},0,0,{"$f":"(AC78)*Q78","v":0},0,{"$f":"AC78*1.06","v":0},{"$f":"(+AF78)*R78","v":0},0,{"$f":"AG78+AD78+AA78+X78+U78","v":0},0]
["Manufacturing","011807390","CHANNEL STEEL;U,300 MM,9000 MM,100 MM",null,"CHANNEL, STEEL; TYPE: TAPER FLANGE, CROSS SECTION SHAPE: U, WIDTH: 300 MM, LENGTH: 9000 MM, HEIGHT: 100 MM, MATERIAL THICKNESS: 45.4 KG/M; MATERIAL GRADE NEW: EN 10025 S355 JR MATERIAL GRADE OLD: SABS 1431 350WA; GENERAL: MATERIAL CERTIFICATE TO EN 10204","CHANN","M",null," EN 10025 S355 JR","Carbon Steel Sections","Structural steel","Sections",null,51,31,52,67,39,240,null,{"$f":"+T79*N79","v":0},0,{"$f":"T79*1.06","v":0},{"$f":"(W79*O79)","v":0},0,{"$f":"W79*1.06","v":0},{"$f":"(+Z79)*P79","v":0},0,0,{"$f":"(AC79)*Q79","v":0},0,{"$f":"AC79*1.06","v":0},{"$f":"(+AF79)*R79","v":0},0,{"$f":"AG79+AD79+AA79+X79+U79","v":0},0]
["Manufacturing","011000664","BAR METAL;DIA 25 X LG 6000 MM,RND",null,"BAR, METALLIC; DIMENSIONS: DIA 25 X LG 6000 MM, SHAPE: ROUND; MATERIAL GRADE NEW: BS 970 080M40; MATERIAL GRADE OLD: BS 970 080M40; GENERAL: MATERIAL CERTIFICATE TO EN 10204 TYPE 3.1 TO BE SUPPLIED. NO RUST OR CORROSION ON THE SURFACE ALLOWED. MATERIAL TO","BAR, ","M",null,"BS 970 080M40","Carbon Steel Sections","Medium Carbon alloy steel ","Sections",null,20,12,20,25,15,92,null,{"$f":"+T80*N80","v":0},0,{"$f":"T80*1.06","v":0},{"$f":"(W80*O80)","v":0},0,{"$f":"W80*1.06","v":0},{"$f":"(+Z80)*P80","v":0},0,0,{"$f":"(AC80)*Q80","v":0},0,{"$f":"AC80*1.06","v":0},{"$f":"(+AF80)*R80","v":0},0,{"$f":"AG80+AD80+AA80+X80+U80","v":0},0]
["Manufacturing","811012197","ANGLE STRUCTURAL;EQUAL,HT:40 MM,40 MM",null,"ANGLE, STRUCTURAL; TYPE: EQUAL, MATERIAL: STEEL, WIDTH: 40 MM, LENGTH: 6000 MM, THICKNESS: 6 MM, ANGLE HEIGHT: 40 MM, MATERIAL GRADE: EN10025 S355 JR+AR; GENERAL: MATERIAL CERTIFICATE TO EN 10204 TYPE 3.1 TO BE SUPPLIED. NO RUST OR CORROSION ON THE SURFAC","ANGLE","M",null,"EN 10025 S355 JR+AR","Carbon Steel Sections","Structural steel","Sections",null,276,276,276,276,276,1380,null,{"$f":"+T81*N81","v":0},0,{"$f":"T81*1.06","v":0},{"$f":"(W81*O81)","v":0},0,{"$f":"W81*1.06","v":0},{"$f":"(+Z81)*P81","v":0},0,0,{"$f":"(AC81)*Q81","v":0},0,{"$f":"AC81*1.06","v":0},{"$f":"(+AF81)*R81","v":0},0,{"$f":"AG81+AD81+AA81+X81+U81","v":0},0]
["Manufacturing","011012696","BAR METAL;WD 50 X LG 6000 X THK 25 MM",null,"BAR, METALLIC; DIMENSIONS: WD 50 X LG 6000 X THK 25 MM, MATERIAL: BS 4360 43A, SHAPE: FLAT; GENERAL: MATERIAL CERTIFICATE TO EN 10204 TYPE 3.1 TO BE SUPPLIED. NO RUST OR CORROSION ON THE SURFACE ALLOWED. MAX LOAD ON PALLETS MAY NOT EXCEED 4 TONS","BAR, ","M",null,"BS 4360 GRADE 43A","Carbon Steel Sections","structural mild steel","Sections",null,364,364,364,364,364,1820,null,{"$f":"+T82*N82","v":0},0,{"$f":"T82*1.06","v":0},{"$f":"(W82*O82)","v":0},0,{"$f":"W82*1.06","v":0},{"$f":"(+Z82)*P82","v":0},0,0,{"$f":"(AC82)*Q82","v":0},0,{"$f":"AC82*1.06","v":0},{"$f":"(+AF82)*R82","v":0},0,{"$f":"AG82+AD82+AA82+X82+U82","v":0},0]
["Manufacturing","611000063","PIPE METAL;PIPE SZ:32 MM,6100 MM,STL",null,"PIPE, METALLIC; PIPE SIZE: 32 MM, LENGTH: 6100 MM, WALL THICKNESS: 3.5 MM, PIPE MATERIAL: STEEL, SCHEDULE: 40; MATERIAL GRADE NEW: BS1387 GR S195T\nMATERIAL GRADE OLD:  BS1387 STEEL;\nTHICKNESS: REFER TO SPECIFICATION;\nGENERAL: MATERIAL CERTIFICATE TO EN 10","PIPE,","M",null," BS 1387 S195T","Carbon Steel Sections","Carbon steel – non-alloy structural steel","Pipe & Tube",null,31,0,31,31,31,124,null,{"$f":"+T83*N83","v":0},0,{"$f":"T83*1.06","v":0},{"$f":"(W83*O83)","v":0},0,{"$f":"W83*1.06","v":0},{"$f":"(+Z83)*P83","v":0},0,0,{"$f":"(AC83)*Q83","v":0},0,{"$f":"AC83*1.06","v":0},{"$f":"(+AF83)*R83","v":0},0,{"$f":"AG83+AD83+AA83+X83+U83","v":0},0]
["Manufacturing","011000741","BAR METAL;DIA 55 X LG 6000 MM,RND",null,"BAR, METALLIC; DIMENSIONS: DIA 55 X LG 6000 MM, SHAPE: ROUND; MATERIAL GRADE NEW: BS 970 080M40; MATERIAL GRADE OLD: BS 970 080M40; GENERAL: MATERIAL CERTIFICATE TO EN 10204 TYPE 3.1 TO BE SUPPLIED. NO RUST OR CORROSION ON THE SURFACE ALLOWED. MATERIALS T","BAR, ","M",null,"BS 970 080M40","Carbon Steel Sections","Medium Carbon alloy steel ","Sections",null,5,0,5,5,5,20,null,{"$f":"+T84*N84","v":0},0,{"$f":"T84*1.06","v":0},{"$f":"(W84*O84)","v":0},0,{"$f":"W84*1.06","v":0},{"$f":"(+Z84)*P84","v":0},0,0,{"$f":"(AC84)*Q84","v":0},0,{"$f":"AC84*1.06","v":0},{"$f":"(+AF84)*R84","v":0},0,{"$f":"AG84+AD84+AA84+X84+U84","v":0},0]
["Manufacturing","011002905","BAR METAL;WD 65 X LG 6000 MM,RND",null,"BAR, METALLIC; DIMENSIONS: WD 65 X LG 6000 MM, SHAPE: ROUND; MATERIAL GRADE NEW: BS 970 070M20; MATERIAL GRADE OLD: BS 970 070M20 OR SANS 1431 240WA OR SYM6; GENERAL: MATERIAL CERTIFICATE TO EN 10204 TYPE 3.1 TO BE SUPPLIED. NO RUST OR CORROSION ON THE SU","BAR, ","M",null," BS 970 070M20","Carbon Steel Sections","Low carbon mild steel","Sections",null,216,216,216,216,216,1080,null,{"$f":"+T85*N85","v":0},0,{"$f":"T85*1.06","v":0},{"$f":"(W85*O85)","v":0},0,{"$f":"W85*1.06","v":0},{"$f":"(+Z85)*P85","v":0},0,0,{"$f":"(AC85)*Q85","v":0},0,{"$f":"AC85*1.06","v":0},{"$f":"(+AF85)*R85","v":0},0,{"$f":"AG85+AD85+AA85+X85+U85","v":0},0]
["Manufacturing","313200000","PIPE METAL;H/DUTY,PIPE SZ:15 MM,STL",null,"PIPE, METALLIC; TYPE: HEAVY DUTY, PIPE SIZE: 15 MM, PIPE LENGTH:6 M PIPE MATERIAL: STEEL, COLOR: BLACK","PIPE,","M",null,"COLOR BLACK","Carbon Steel Sections","Carbon Steel","Pipe & Tube",null,2,2,2,2,2,10,null,{"$f":"+T86*N86","v":0},0,{"$f":"T86*1.06","v":0},{"$f":"(W86*O86)","v":0},0,{"$f":"W86*1.06","v":0},{"$f":"(+Z86)*P86","v":0},0,0,{"$f":"(AC86)*Q86","v":0},0,{"$f":"AC86*1.06","v":0},{"$f":"(+AF86)*R86","v":0},0,{"$f":"AG86+AD86+AA86+X86+U86","v":0},0]
["Manufacturing","011003050","BAR METAL;DIA 28 X LG 6000 MM,RND",null,"BAR, METALLIC; DIMENSIONS: DIA 28 X LG 6000 MM, SHAPE: ROUND; MATERIAL GRADE NEW: BS 970 070M20; MATERIAL GRADE OLD: BS 970 070M20 OR SANS 1431 240WA OR SYM6; GENERAL: MATERIAL CERTIFICATE TO EN 10204 TYPE 3.1 TO BE SUPPLIED. NO RUST OR CORROSION ON THE S","BAR, ","M",null," BS 970 070M20","Carbon Steel Sections","Low carbon mild steel","Sections",null,24,24,24,24,24,120,null,{"$f":"+T87*N87","v":0},0,{"$f":"T87*1.06","v":0},{"$f":"(W87*O87)","v":0},0,{"$f":"W87*1.06","v":0},{"$f":"(+Z87)*P87","v":0},0,0,{"$f":"(AC87)*Q87","v":0},0,{"$f":"AC87*1.06","v":0},{"$f":"(+AF87)*R87","v":0},0,{"$f":"AG87+AD87+AA87+X87+U87","v":0},0]
["Manufacturing","311112183","BAR METAL;DIA 60 X LG 6000 MM,RND",null,"BAR, METALLIC; DIMENSIONS: DIA 60 X LG 6000 MM, SHAPE: ROUND; MATERIAL GRADE NEW:BS 970 709M40 MATERIAL GRADE OLD: BS970 GR709N40 EN19; DIAMETER: 60MM GENERAL: MATERIAL CERTIFICATE TO EN 10204 TYPE 3.1 TO BE SUPPLIED. NO RUST OR CORROSION ON THE SURFACE A","BAR, ","M",null,"BS 970 709M40","Carbon Steel Sections","Chromium-Molybdenum alloy steel","Sections",null,23,23,26,29,29,130,null,{"$f":"+T88*N88","v":0},0,{"$f":"T88*1.06","v":0},{"$f":"(W88*O88)","v":0},0,{"$f":"W88*1.06","v":0},{"$f":"(+Z88)*P88","v":0},0,0,{"$f":"(AC88)*Q88","v":0},0,{"$f":"AC88*1.06","v":0},{"$f":"(+AF88)*R88","v":0},0,{"$f":"AG88+AD88+AA88+X88+U88","v":0},0]
["Manufacturing","311111627","BAR METAL;WD 70 X LG 6000 X THK 16 MM",null,"BAR, METALLIC; DIMENSIONS: WD 70 X LG 6000 X THK 16 MM, SHAPE: FLAT; MATERIAL GRADE NEW:  EN 10025 S355 JR+AR MATERIAL GRADE OLD: SABS 1431 GR 300WA; GENERAL: MATERIAL CERTIFICATE TO EN 10204 TYPE 3.1 TO BE SUPPLIED. NO RUST OR CORROSION ON THE SURFACE AL","BAR, ","M",null,"EN 10025 S355 JR+AR","Carbon Steel Sections","Structural steel","Sections",null,28,24,46,48,49,195,null,{"$f":"+T89*N89","v":0},0,{"$f":"T89*1.06","v":0},{"$f":"(W89*O89)","v":0},0,{"$f":"W89*1.06","v":0},{"$f":"(+Z89)*P89","v":0},0,0,{"$f":"(AC89)*Q89","v":0},0,{"$f":"AC89*1.06","v":0},{"$f":"(+AF89)*R89","v":0},0,{"$f":"AG89+AD89+AA89+X89+U89","v":0},0]
["Manufacturing","311010121","BAR METAL;WD 50 X LG 6000 X THK 10 MM",null,"BAR, METALLIC; DIMENSIONS: WD 50 X LG 6000 X THK 10 MM, SHAPE: FLAT; MATERIAL GRADE NEW: EN 10025 S355 JR+AR MATERIAL GRADE OLD: SABS 1431 300WA; GENERAL: MATERIAL CERTIFICATE TO EN 10204 TYPE 3.1 TO BE SUPPLIED. NO RUST OR CORROSION ON THE SURFACE ALLOWE","BAR, ","M",null,"EN 10025 S355 JR+AR","Carbon Steel Sections","Structural steel","Sections",null,652,652,652,652,652,3260,null,{"$f":"+T90*N90","v":0},0,{"$f":"T90*1.06","v":0},{"$f":"(W90*O90)","v":0},0,{"$f":"W90*1.06","v":0},{"$f":"(+Z90)*P90","v":0},0,0,{"$f":"(AC90)*Q90","v":0},0,{"$f":"AC90*1.06","v":0},{"$f":"(+AF90)*R90","v":0},0,{"$f":"AG90+AD90+AA90+X90+U90","v":0},0]
["Manufacturing","511664521","BAR METAL;WD 70 X LG 6000 X THK 8 MM",null,"BAR, METALLIC; DIMENSIONS: WD 70 X LG 6000 X THK 8 MM, SHAPE: FLAT; MATERIAL GRADE NEW: EN 10025 S355 JR+AR MATERIAL GRADE OLD: SABS 1431 300 WA; GENERAL: MATERIAL CERTIFICATE TO EN 10204 TYPE 3.1 TO BE SUPPLIED. NO RUST OR CORROSION ON THE SURFACE ALLOWE","BAR, ","M",null,"EN 10025 S355 JR+AR","Carbon Steel Sections","Structural steel","Sections",null,66,26,66,66,66,290,null,{"$f":"+T91*N91","v":0},0,{"$f":"T91*1.06","v":0},{"$f":"(W91*O91)","v":0},0,{"$f":"W91*1.06","v":0},{"$f":"(+Z91)*P91","v":0},0,0,{"$f":"(AC91)*Q91","v":0},0,{"$f":"AC91*1.06","v":0},{"$f":"(+AF91)*R91","v":0},0,{"$f":"AG91+AD91+AA91+X91+U91","v":0},0]
["Manufacturing","011014735","CHANNEL STRUCTURAL;PARALLEL FLANGE,U,STL",null,"CHANNEL, STRUCTURAL; TYPE: PARALLEL FLANGE, CROSS SECTION SHAPE: U, WIDTH: 260 MM, HEIGHT: 90 MM, LENGTH: 13000 MM, MATERIAL: STEEL, MATERIAL THICKNESS: 10 MM; MATERIAL GRADE NEW: EN 10025 S355 JR+AR MATERIAL GRADE OLD: SABS 1431 300WA; GENERAL: MATERIAL","CHANN","M",null,"EN 10025 S355 JR+AR","Carbon Steel Sections","Structural steel","Sections",null,5489,5489,5489,5489,5489,27445,null,{"$f":"+T92*N92","v":0},0,{"$f":"T92*1.06","v":0},{"$f":"(W92*O92)","v":0},0,{"$f":"W92*1.06","v":0},{"$f":"(+Z92)*P92","v":0},0,0,{"$f":"(AC92)*Q92","v":0},0,{"$f":"AC92*1.06","v":0},{"$f":"(+AF92)*R92","v":0},0,{"$f":"AG92+AD92+AA92+X92+U92","v":0},0]
["Manufacturing","511663643","BAR METAL;DIA 25 X LG 6000 MM,RND",null,"BAR, METALLIC; DIMENSIONS: DIA 25 X LG 6000 MM, SHAPE: ROUND; MATERIAL GRADE NEW: EN 10025 S355 JR+AR MATERIAL GRADE OLD: SABS 1431 300 WA; GENERAL: MATERIAL CERTIFICATE TO EN 10204 TYPE 3.1 TO BE SUPPLIED. NO RUST OR CORROSION ON THE SURFACE ALLOWED. MAT","BAR, ","M",null,"EN 10025 S355 JR+AR","Carbon Steel Sections","Structural steel","Sections",null,230,230,230,230,230,1150,null,{"$f":"+T93*N93","v":0},0,{"$f":"T93*1.06","v":0},{"$f":"(W93*O93)","v":0},0,{"$f":"W93*1.06","v":0},{"$f":"(+Z93)*P93","v":0},0,0,{"$f":"(AC93)*Q93","v":0},0,{"$f":"AC93*1.06","v":0},{"$f":"(+AF93)*R93","v":0},0,{"$f":"AG93+AD93+AA93+X93+U93","v":0},0]
["Manufacturing","811012379","BAR METAL;DIA 32 X LG 6000 MM,RND",null,"BAR, METALLIC; DIMENSIONS: DIA 32 X LG 6000 MM, SHAPE: ROUND; MATERIAL GRADE NEW: BS 970 070M55 MATERIAL GRADE OLD: BS970-3 070M55; GENERAL: MATERIAL CERTIFICATE TO EN 10204 TYPE 3.1 TO BE SUPPLIED. NO RUST OR CORROSION ON THE SURFACE ALLOWED","BAR, ","M",null,"BS 970 070M55 EN9","Carbon Steel Sections","High Carbon Alloy steel","Sections",null,6949,4766,8375,5412,6066,31568,null,{"$f":"+T94*N94","v":0},0,{"$f":"T94*1.06","v":0},{"$f":"(W94*O94)","v":0},0,{"$f":"W94*1.06","v":0},{"$f":"(+Z94)*P94","v":0},0,0,{"$f":"(AC94)*Q94","v":0},0,{"$f":"AC94*1.06","v":0},{"$f":"(+AF94)*R94","v":0},0,{"$f":"AG94+AD94+AA94+X94+U94","v":0},0]
["Manufacturing","611000273","BAR METAL;DIA 55 X LG 6000 MM,RND",null,"BAR, METALLIC; DIMENSIONS: DIA 55 X LG 6000 MM, SHAPE: ROUND; MATERIAL GRADE NEW:  BS 970 709M40 MATERIAL GRADE OLD: BAR MATERIAL STEEL  GR EN 19; GENERAL: MATERIAL CERTIFICATE TO EN 10204 TYPE 3.1 TO BE SUPPLIED. NO RUST OR CORROSION ON THE SURFACE ALLOW","BAR, ","M",null,"BS 970 709M40","Carbon Steel Sections","Chromium-Molybdenum alloy steel","Sections",null,15,15,15,15,15,75,null,{"$f":"+T95*N95","v":0},0,{"$f":"T95*1.06","v":0},{"$f":"(W95*O95)","v":0},0,{"$f":"W95*1.06","v":0},{"$f":"(+Z95)*P95","v":0},0,0,{"$f":"(AC95)*Q95","v":0},0,{"$f":"AC95*1.06","v":0},{"$f":"(+AF95)*R95","v":0},0,{"$f":"AG95+AD95+AA95+X95+U95","v":0},0]
["Manufacturing","011000789","BAR METAL;DIA 80 X LG 6000 MM,RND",null,"BAR, METALLIC; DIMENSIONS: DIA 80 X LG 6000 MM, SHAPE: ROUND; MATERIAL GRADE NEW: BS 970 080M40; MATERIAL GRADE OLD: BS 970 080M40 OR EN8 SYM4; GENERAL: MATERIAL CERTIFICATE TO EN 10204 TYPE 3.1 TO BE SUPPLIED. NO RUST OR CORROSION ON THE SURFACE ALLOWED.","BAR, ","M",null,"BS 970 080M40","Carbon Steel Sections","Medium Carbon alloy steel ","Sections",null,43,43,43,43,43,215,null,{"$f":"+T96*N96","v":0},0,{"$f":"T96*1.06","v":0},{"$f":"(W96*O96)","v":0},0,{"$f":"W96*1.06","v":0},{"$f":"(+Z96)*P96","v":0},0,0,{"$f":"(AC96)*Q96","v":0},0,{"$f":"AC96*1.06","v":0},{"$f":"(+AF96)*R96","v":0},0,{"$f":"AG96+AD96+AA96+X96+U96","v":0},0]
["Manufacturing","011014594","ANGLE STRUCTURAL;UNEQUAL,HT:75 MM,50 MM",null,"ANGLE, STRUCTURAL; TYPE: UNEQUAL, MATERIAL: STEEL, WIDTH: 50 MM, LENGTH: 6000 MM, THICKNESS: 8 MM, ANGLE HEIGHT: 75 MM; MATERIAL GRADE NEW: EN 10025 S355 JR+AR MATERIAL GRADE OLD: SABS 1431 300WA; GENERAL: MATERIAL CERTIFICATE TO EN 10204 TYPE 3.1 TO BE S","ANGLE","M",null,"EN 10025 S355 JR+AR","Carbon Steel Sections","Structural steel","Sections",null,735,735,735,735,735,3675,null,{"$f":"+T97*N97","v":0},0,{"$f":"T97*1.06","v":0},{"$f":"(W97*O97)","v":0},0,{"$f":"W97*1.06","v":0},{"$f":"(+Z97)*P97","v":0},0,0,{"$f":"(AC97)*Q97","v":0},0,{"$f":"AC97*1.06","v":0},{"$f":"(+AF97)*R97","v":0},0,{"$f":"AG97+AD97+AA97+X97+U97","v":0},0]
["Manufacturing","011006256","BAR METAL;WD 16 X LG 6000 X THK 3 MM",null,"BAR, METALLIC; DIMENSIONS: WD 16 X LG 6000 X THK 3 MM, SHAPE: FLAT; MATERIAL GRADE NEW: EN 10025 S355 JR+AR MATERIAL GRADE OLD: SABS 1431 300WA GENERAL: MATERIAL CERTIFICATE TO EN 10204 TYPE 3.1 TO BE SUPPLIED. NO RUST OR CORROSION ON THE SURFACE ALLOWED.","BAR, ","M",null,"EN 10025 S355 JR+AR","Carbon Steel Sections","Structural steel","Sections",null,393,393,393,393,393,1965,null,{"$f":"+T98*N98","v":0},0,{"$f":"T98*1.06","v":0},{"$f":"(W98*O98)","v":0},0,{"$f":"W98*1.06","v":0},{"$f":"(+Z98)*P98","v":0},0,0,{"$f":"(AC98)*Q98","v":0},0,{"$f":"AC98*1.06","v":0},{"$f":"(+AF98)*R98","v":0},0,{"$f":"AG98+AD98+AA98+X98+U98","v":0},0]
["Project Wagons 1000","011006256","BAR METAL;WD 16 X LG 6000 X THK 3 MM",null,"BAR, METALLIC; DIMENSIONS: WD 16 X LG 6000 X THK 3 MM, SHAPE: FLAT; MATERIAL GRADE NEW: EN 10025 S355 JR+AR MATERIAL GRADE OLD: SABS 1431 300WA GENERAL: MATERIAL CERTIFICATE TO EN 10204 TYPE 3.1 TO BE SUPPLIED. NO RUST OR CORROSION ON THE SURFACE ALLOWED.","BAR, ","M",null,"EN 10025 S355 JR+AR","Carbon Steel Sections","Structural steel","Sections",null,240,240,{"$nulls":3},480,null,{"$f":"+T99*N99","v":0},0,{"$f":"T99*1.06","v":0},{"$f":"(W99*O99)","v":0},0,{"$f":"W99*1.06","v":0},{"$f":"(+Z99)*P99","v":0},0,0,{"$f":"(AC99)*Q99","v":0},0,{"$f":"AC99*1.06","v":0},{"$f":"(+AF99)*R99","v":0},0,{"$f":"AG99+AD99+AA99+X99+U99","v":0},0]
["Manufacturing","011012243","BAR METAL;WD 30 X THK 6 MM,FLAT",null,"BAR, METALLIC; DIMENSIONS: WD 30 X THK 6 MM, SHAPE: FLAT; MATERIAL GRADE NEW: EN 10025 S355 JR+AR MATERIAL GRADE OLD: COMMERCIAL QUALITY; GENERAL: MATERIAL CERTIFICATE TO EN 10204 TYPE 3.1 TO BE SUPPLIED. NO RUST OR CORROSION ON THE SURFACE ALLOWED. MAX L","BAR, ","M",null,"EN 10025 S355 JR+AR","Carbon Steel Sections","Structural Steel","Sections",null,119,34,119,119,119,510,null,{"$f":"+T100*N100","v":0},0,{"$f":"T100*1.06","v":0},{"$f":"(W100*O100)","v":0},0,{"$f":"W100*1.06","v":0},{"$f":"(+Z100)*P100","v":0},0,0,{"$f":"(AC100)*Q100","v":0},0,{"$f":"AC100*1.06","v":0},{"$f":"(+AF100)*R100","v":0},0,{"$f":"AG100+AD100+AA100+X100+U100","v":0},0]
["Manufacturing","011837086","BAR METAL;DIA 24 X LG 6000 MM,RND",null,"BAR, METALLIC; DIMENSIONS: DIA 24 X LG 6000 MM, MATERIAL: EN 10025 S355 JR+AR, SHAPE: ROUND; GENERAL: MATERIAL CERTIFICATE TO EN 10204 TYPE 3.1 TO BE SUPPLIED. NO RUST OR CORROSION ON THE SURFACE ALLOWED","BAR, ","M",null,"EN 10025 S355 JR+AR","Carbon Steel Sections","Structural Steel","Sections",null,5,5,5,5,5,25,null,{"$f":"+T101*N101","v":0},0,{"$f":"T101*1.06","v":0},{"$f":"(W101*O101)","v":0},0,{"$f":"W101*1.06","v":0},{"$f":"(+Z101)*P101","v":0},0,0,{"$f":"(AC101)*Q101","v":0},0,{"$f":"AC101*1.06","v":0},{"$f":"(+AF101)*R101","v":0},0,{"$f":"AG101+AD101+AA101+X101+U101","v":0},0]
["Project Wagons 1000","011012243","BAR METAL;WD 30 X THK 6 MM,FLAT",null,"BAR, METALLIC; DIMENSIONS: WD 30 X THK 6 MM, SHAPE: FLAT; MATERIAL GRADE NEW: EN 10025 S355 JR+AR MATERIAL GRADE OLD: COMMERCIAL QUALITY; GENERAL: MATERIAL CERTIFICATE TO EN 10204 TYPE 3.1 TO BE SUPPLIED. NO RUST OR CORROSION ON THE SURFACE ALLOWED. MAX L","BAR, ","M",null,"EN 10025 S355 JR+AR","Carbon Steel Sections","Structural Steel","Sections",null,1800,1800,{"$nulls":3},3600,null,{"$f":"+T102*N102","v":0},0,{"$f":"T102*1.06","v":0},{"$f":"(W102*O102)","v":0},0,{"$f":"W102*1.06","v":0},{"$f":"(+Z102)*P102","v":0},0,0,{"$f":"(AC102)*Q102","v":0},0,{"$f":"AC102*1.06","v":0},{"$f":"(+AF102)*R102","v":0},0,{"$f":"AG102+AD102+AA102+X102+U102","v":0},0]
["Manufacturing","011020780","BAR METAL;WD 70 X LG 6000 X THK 16 MM",null,"BAR, METALLIC; DIMENSIONS: WD 70 X LG 6000 X THK 16 MM, SHAPE: FLAT; MATERIAL GRADE NEW: EN 10025 S355 JR+AR MATERIAL GRADE OLD:  SABS 1431 300WA ; GENERAL: MATERIAL CERTIFICATE TO EN 10204 TYPE 3.1 TO BE SUPPLIED. NO RUST OR CORROSION ON THE SURFACE ALLO","BAR, ","M",null,"EN 10025 S355 JR+AR","Carbon Steel Sections","Structural steel","Sections",null,301,230,426,151,234,1342,null,{"$f":"+T103*N103","v":0},0,{"$f":"T103*1.06","v":0},{"$f":"(W103*O103)","v":0},0,{"$f":"W103*1.06","v":0},{"$f":"(+Z103)*P103","v":0},0,0,{"$f":"(AC103)*Q103","v":0},0,{"$f":"AC103*1.06","v":0},{"$f":"(+AF103)*R103","v":0},0,{"$f":"AG103+AD103+AA103+X103+U103","v":0},0]
["Manufacturing","011002929","BAR METAL;DIA 80 X LG 6000 MM,RND",null,"BAR, METALLIC; DIMENSIONS: DIA 80 X LG 6000 MM, SHAPE: ROUND; MATERIAL GRADE NEW: BS 970 070M20; MATERIAL GRADE OLD: BS 970 070M20 OR SANS 1431 240WA OR SYM6; GENERAL: MATERIAL CERTIFICATE TO EN 10204 TYPE 3.1 TO BE SUPPLIED. NO RUST OR CORROSION ON THE S","BAR, ","M",null," BS 970 070M20","Carbon Steel Sections","Low carbon mild steel","Sections",null,426,426,426,426,426,2130,null,{"$f":"+T104*N104","v":0},0,{"$f":"T104*1.06","v":0},{"$f":"(W104*O104)","v":0},0,{"$f":"W104*1.06","v":0},{"$f":"(+Z104)*P104","v":0},0,0,{"$f":"(AC104)*Q104","v":0},0,{"$f":"AC104*1.06","v":0},{"$f":"(+AF104)*R104","v":0},0,{"$f":"AG104+AD104+AA104+X104+U104","v":0},0]
["Manufacturing","011000918","BAR METAL;DIA 32 X LG 6000 MM, 080M40",null,"BAR, METALLIC; DIMENSIONS: DIA 32 X LG 6000 MM, SHAPE: ROUND; MATERIAL GRADE NEW: BS 970 080M40; MATERIAL GRADE OLD: BS 970 080M40 OR EN8 SYM4; GENERAL: MATERIAL CERTIFICATE TO EN 10204 TYPE 3.1 TO BE SUPPLIED. NO RUST OR CORROSION ON THE SURFACE ALLOWED.","BAR, ","M",null,"BS 970 080M40","Carbon Steel Sections","Medium Carbon alloy steel ","Sections",null,3256,2450,4536,1756,2617,14615,null,{"$f":"+T105*N105","v":0},0,{"$f":"T105*1.06","v":0},{"$f":"(W105*O105)","v":0},0,{"$f":"W105*1.06","v":0},{"$f":"(+Z105)*P105","v":0},0,0,{"$f":"(AC105)*Q105","v":0},0,{"$f":"AC105*1.06","v":0},{"$f":"(+AF105)*R105","v":0},0,{"$f":"AG105+AD105+AA105+X105+U105","v":0},0]
["Manufacturing","311111481","BAR METAL;WD 70 X LG 6000 X THK 10 MM",null,"BAR, METALLIC; DIMENSIONS: WD 70 X LG 6000 X THK 10 MM, SHAPE: FLAT; MATERIAL GRADE NEW:  EN 10025 S355 JR+AR MATERIAL GRADE OLD: SABS 1431 GR 300WA; GENERAL: MATERIAL CERTIFICATE TO EN 10204 TYPE 3.1 TO BE SUPPLIED. NO RUST OR CORROSION ON THE SURFACE AL","BAR, ","M",null,"EN 10025 S355 JR+AR","Carbon Steel Sections","Structural steel","Sections",null,167,167,167,167,167,835,null,{"$f":"+T106*N106","v":0},0,{"$f":"T106*1.06","v":0},{"$f":"(W106*O106)","v":0},0,{"$f":"W106*1.06","v":0},{"$f":"(+Z106)*P106","v":0},0,0,{"$f":"(AC106)*Q106","v":0},0,{"$f":"AC106*1.06","v":0},{"$f":"(+AF106)*R106","v":0},0,{"$f":"AG106+AD106+AA106+X106+U106","v":0},0]
["Manufacturing","511000005","ANGLE STRUCTURAL;EQUAL,HT:50 MM,50 MM",null,"ANGLE, STRUCTURAL; TYPE: EQUAL, MATERIAL: STEEL, WIDTH: 50 MM, LENGTH: 13200 MM, THICKNESS: 5 MM, ANGLE HEIGHT: 50 MM; MATERIAL GRADE NEW: EN 10025 S355 JR+AR MATERIAL GRADE OLD: SABS 1431 300 WA; GENERAL: MATERIAL CERTIFICATE TO EN 10204 TYPE 3.1 TO BE S","ANGLE","EA",null,"EN 10025 S355 JR+AR","Carbon Steel Sections","Structural steel","Sections",null,198,198,198,198,198,990,null,{"$f":"+T107*N107","v":0},0,{"$f":"T107*1.06","v":0},{"$f":"(W107*O107)","v":0},0,{"$f":"W107*1.06","v":0},{"$f":"(+Z107)*P107","v":0},0,0,{"$f":"(AC107)*Q107","v":0},0,{"$f":"AC107*1.06","v":0},{"$f":"(+AF107)*R107","v":0},0,{"$f":"AG107+AD107+AA107+X107+U107","v":0},0]
["Maritime","511000005","ANGLE STRUCTURAL;EQUAL,HT:50 MM,50 MM",null,"ANGLE, STRUCTURAL; TYPE: EQUAL, MATERIAL: STEEL, WIDTH: 50 MM, LENGTH: 13200 MM, THICKNESS: 5 MM, ANGLE HEIGHT: 50 MM; MATERIAL GRADE NEW: EN 10025 S355 JR+AR MATERIAL GRADE OLD: SABS 1431 300 WA; GENERAL: MATERIAL CERTIFICATE TO EN 10204 TYPE 3.1 TO BE S","ANGLE","EA",null,"EN 10025 S355 JR+AR","Carbon Steel Sections","Structural steel","Sections",null,80,80,80,80,80,400,null,{"$f":"+T108*N108","v":0},0,{"$f":"T108*1.06","v":0},{"$f":"(W108*O108)","v":0},0,{"$f":"W108*1.06","v":0},{"$f":"(+Z108)*P108","v":0},0,0,{"$f":"(AC108)*Q108","v":0},0,{"$f":"AC108*1.06","v":0},{"$f":"(+AF108)*R108","v":0},0,{"$f":"AG108+AD108+AA108+X108+U108","v":0},0]
["Manufacturing","011002890","BAR METAL;DIA 55 X LG 6000 MM,RND",null,"BAR, METALLIC; DIMENSIONS: DIA 55 X LG 6000 MM, SHAPE: ROUND; MATERIAL GRADE NEW:  BS 970 070M20; MATERIAL GRADE OLD: BS 970 070M20 OR SANS 1431 240WA OR SYM6; GENERAL: MATERIAL CERTIFICATE TO EN 10204 TYPE 3.1 TO BE SUPPLIED. NO RUST OR CORROSION ON THE","BAR, ","M",null," BS 970 070M20","Carbon Steel Sections","Low carbon mild steel","Sections",null,12,8,14,11,14,59,null,{"$f":"+T109*N109","v":0},0,{"$f":"T109*1.06","v":0},{"$f":"(W109*O109)","v":0},0,{"$f":"W109*1.06","v":0},{"$f":"(+Z109)*P109","v":0},0,0,{"$f":"(AC109)*Q109","v":0},0,{"$f":"AC109*1.06","v":0},{"$f":"(+AF109)*R109","v":0},0,{"$f":"AG109+AD109+AA109+X109+U109","v":0},0]
["Project Wagons 1000","011002890","BAR METAL;DIA 55 X LG 6000 MM,RND",null,"BAR, METALLIC; DIMENSIONS: DIA 55 X LG 6000 MM, SHAPE: ROUND; MATERIAL GRADE NEW:  BS 970 070M20; MATERIAL GRADE OLD: BS 970 070M20 OR SANS 1431 240WA OR SYM6; GENERAL: MATERIAL CERTIFICATE TO EN 10204 TYPE 3.1 TO BE SUPPLIED. NO RUST OR CORROSION ON THE","BAR, ","M",null," BS 970 070M20","Carbon Steel Sections","Low carbon mild steel","Sections",null,190,190,{"$nulls":3},380,null,{"$f":"+T110*N110","v":0},0,{"$f":"T110*1.06","v":0},{"$f":"(W110*O110)","v":0},0,{"$f":"W110*1.06","v":0},{"$f":"(+Z110)*P110","v":0},0,0,{"$f":"(AC110)*Q110","v":0},0,{"$f":"AC110*1.06","v":0},{"$f":"(+AF110)*R110","v":0},0,{"$f":"AG110+AD110+AA110+X110+U110","v":0},0]
["Maritime","011846431","BAR METAL;DIA 20 MM X LG 6 M,RND",null,"BAR, METALLIC; DIMENSIONS: DIA 20 MM X LG 6 M, MATERIAL: STEEL SANS 50025 GRADE S355 JR+AR, SHAPE: ROUND","BAR, ","M",null,"EN 10025 S355 JR+AR","Carbon Steel Sections","Structural steel","Sections",null,45,45,45,45,45,225,null,{"$f":"+T111*N111","v":0},0,{"$f":"T111*1.06","v":0},{"$f":"(W111*O111)","v":0},0,{"$f":"W111*1.06","v":0},{"$f":"(+Z111)*P111","v":0},0,0,{"$f":"(AC111)*Q111","v":0},0,{"$f":"AC111*1.06","v":0},{"$f":"(+AF111)*R111","v":0},0,{"$f":"AG111+AD111+AA111+X111+U111","v":0},0]
["Manufacturing","011012684","BAR METAL;WD 100 X LG 6000 X THK 20 MM",null,"BAR, METALLIC; DIMENSIONS: WD 100 X LG 6000 X THK 20 MM, SHAPE: FLAT; MATERIAL GRADE NEW: EN 10025 S355 JR+AR MATERIAL GRADE OLD: SABS 1431 300WA; GENERAL: MATERIAL CERTIFICATE TO EN 10204 TYPE 3.1 TO BE SUPPLIED. NO RUST OR CORROSION ON THE SURFACE ALLOW","BAR, ","M",null,"EN 10025 S355 JR+AR","Carbon Steel Sections","Structural steel","Sections",null,73,73,73,73,73,365,null,{"$f":"+T112*N112","v":0},0,{"$f":"T112*1.06","v":0},{"$f":"(W112*O112)","v":0},0,{"$f":"W112*1.06","v":0},{"$f":"(+Z112)*P112","v":0},0,0,{"$f":"(AC112)*Q112","v":0},0,{"$f":"AC112*1.06","v":0},{"$f":"(+AF112)*R112","v":0},0,{"$f":"AG112+AD112+AA112+X112+U112","v":0},0]
["Manufacturing","011013717","BAR METAL;WD 50 X LG 6000 X THK 20 MM",null,"BAR, METALLIC; DIMENSIONS: WD 50 X LG 6000 X THK 20 MM, SHAPE: FLAT; MATERIAL GRADE NEW: EN 10025 S355 JR+AR MATERIAL GRADE OLD: SABS 1431 300WA; GENERAL: MATERIAL CERTIFICATE TO EN 10204 TYPE 3.1 TO BE SUPPLIED. NO RUST OR CORROSION ON THE SURFACE ALLOWE","BAR, ","M",null,"EN 10025 S355 JR+AR","Carbon Steel Sections","Structural steel","Sections",null,101,76,107,129,93,506,null,{"$f":"+T113*N113","v":0},0,{"$f":"T113*1.06","v":0},{"$f":"(W113*O113)","v":0},0,{"$f":"W113*1.06","v":0},{"$f":"(+Z113)*P113","v":0},0,0,{"$f":"(AC113)*Q113","v":0},0,{"$f":"AC113*1.06","v":0},{"$f":"(+AF113)*R113","v":0},0,{"$f":"AG113+AD113+AA113+X113+U113","v":0},0]
["Project Wagons 1000","011012684","BAR METAL;WD 100 X LG 6000 X THK 20 MM",null,"BAR, METALLIC; DIMENSIONS: WD 100 X LG 6000 X THK 20 MM, SHAPE: FLAT; MATERIAL GRADE NEW: EN 10025 S355 JR+AR MATERIAL GRADE OLD: SABS 1431 300WA; GENERAL: MATERIAL CERTIFICATE TO EN 10204 TYPE 3.1 TO BE SUPPLIED. NO RUST OR CORROSION ON THE SURFACE ALLOW","BAR, ","M",null,"EN 10025 S355 JR+AR","Carbon Steel Sections","Structural steel","Sections",null,140.5,140.5,{"$nulls":3},281,null,{"$f":"+T114*N114","v":0},0,{"$f":"T114*1.06","v":0},{"$f":"(W114*O114)","v":0},0,{"$f":"W114*1.06","v":0},{"$f":"(+Z114)*P114","v":0},0,0,{"$f":"(AC114)*Q114","v":0},0,{"$f":"AC114*1.06","v":0},{"$f":"(+AF114)*R114","v":0},0,{"$f":"AG114+AD114+AA114+X114+U114","v":0},0]
["Project Wagons 1000","011013717","BAR METAL;WD 50 X LG 6000 X THK 20 MM",null,"BAR, METALLIC; DIMENSIONS: WD 50 X LG 6000 X THK 20 MM, SHAPE: FLAT; MATERIAL GRADE NEW: EN 10025 S355 JR+AR MATERIAL GRADE OLD: SABS 1431 300WA; GENERAL: MATERIAL CERTIFICATE TO EN 10204 TYPE 3.1 TO BE SUPPLIED. NO RUST OR CORROSION ON THE SURFACE ALLOWE","BAR, ","M",null,"EN 10025 S355 JR+AR","Carbon Steel Sections","Structural steel","Sections",null,432,432,{"$nulls":3},864,null,{"$f":"+T115*N115","v":0},0,{"$f":"T115*1.06","v":0},{"$f":"(W115*O115)","v":0},0,{"$f":"W115*1.06","v":0},{"$f":"(+Z115)*P115","v":0},0,0,{"$f":"(AC115)*Q115","v":0},0,{"$f":"AC115*1.06","v":0},{"$f":"(+AF115)*R115","v":0},0,{"$f":"AG115+AD115+AA115+X115+U115","v":0},0]
["Manufacturing","011011706","BAR METAL;DIA 45 X LG 6000 MM,RND",null,"BAR, METALLIC; DIMENSIONS: DIA 45 X LG 6000 MM, SHAPE: ROUND; STEEL GRADE S355 JR+AR; GENERAL: MATERIAL CERTIFICATE TO EN 10204 TYPE 3.1 TO BE SUPPLIED. NO RUST OR CORROSION ON THE SURFACE ALLOWED. MATERIAL TO BE BOUND. MAX LOAD ON PALLETS MAY NOT EXCEED","BAR, ","M",null,"EN 10025 S355 JR+AR","Carbon Steel Sections","Structural steel","Sections",null,467,467,467,467,467,2335,null,{"$f":"+T116*N116","v":0},0,{"$f":"T116*1.06","v":0},{"$f":"(W116*O116)","v":0},0,{"$f":"W116*1.06","v":0},{"$f":"(+Z116)*P116","v":0},0,0,{"$f":"(AC116)*Q116","v":0},0,{"$f":"AC116*1.06","v":0},{"$f":"(+AF116)*R116","v":0},0,{"$f":"AG116+AD116+AA116+X116+U116","v":0},0]
["Project Wagons 1000","011011706","BAR METAL;DIA 45 X LG 6000 MM,RND",null,"BAR, METALLIC; DIMENSIONS: DIA 45 X LG 6000 MM, SHAPE: ROUND; STEEL GRADE S355 JR+AR; GENERAL: MATERIAL CERTIFICATE TO EN 10204 TYPE 3.1 TO BE SUPPLIED. NO RUST OR CORROSION ON THE SURFACE ALLOWED. MATERIAL TO BE BOUND. MAX LOAD ON PALLETS MAY NOT EXCEED","BAR, ","M",null,"EN 10025 S355 JR+AR","Carbon Steel Sections","Structural steel","Sections",null,25,25,{"$nulls":3},50,null,{"$f":"+T117*N117","v":0},0,{"$f":"T117*1.06","v":0},{"$f":"(W117*O117)","v":0},0,{"$f":"W117*1.06","v":0},{"$f":"(+Z117)*P117","v":0},0,0,{"$f":"(AC117)*Q117","v":0},0,{"$f":"AC117*1.06","v":0},{"$f":"(+AF117)*R117","v":0},0,{"$f":"AG117+AD117+AA117+X117+U117","v":0},0]
["Manufacturing","011003062","BAR METAL;DIA 30 X LG 6000 MM,RND",null,"BAR, METALLIC; DIMENSIONS: DIA 30 X LG 6000 MM, SHAPE: ROUND; MATERIAL GRADE NEW: BS 970 070M20; MATERIAL GRADE OLD: BS 970 070M20 OR SANS 1431 240WA OR SYM6; GENERAL: MATERIAL CERTIFICATE TO EN 10204 TYPE 3.1 TO BE SUPPLIED. NO RUST OR CORROSION ON THE S","BAR, ","M",null," BS 970 070M20","Carbon Steel Sections","Low carbon mild steel","Sections",null,54,54,121,172,176,577,null,{"$f":"+T118*N118","v":0},{"$f":"U118*1.15","v":0},{"$f":"T118*1.06","v":0},{"$f":"(W118*O118)","v":0},{"$f":"X118*1.15","v":0},{"$f":"W118*1.06","v":0},{"$f":"(+Z118)*P118","v":0},{"$f":"AA118*1.15","v":0},{"$f":"Z118*1.06","v":0},{"$f":"(AC118)*Q118","v":0},{"$f":"AD118*1.15","v":0},{"$f":"AC118*1.06","v":0},{"$f":"(+AF118)*R118","v":0},{"$f":"AG118*1.15","v":0},{"$f":"AG118+AD118+AA118+X118+U118","v":0},{"$f":"AI118*1.15","v":0}]
["Manufacturing","013001236","PIPE METAL;SMLS,PIPE SZ:DIA 10 MM,6 M",null,"PIPE, METALLIC; TYPE: SEAMLESS, PIPE SIZE: DIA 10 MM, LENGTH: 6 M, WALL THICKNESS: 2.31 MM, PIPE MATERIAL: STEEL HEAVY, MATERIAL GRADE: SANS 62, SCHEDULE: 40","PIPE,","M",null,"SABS 62","Carbon Steel Sections","Structural steel","Pipe & Tube",null,536,400,644,820,637,3037,null,0,0,0,0,0,0,0,0,0,0,0,0,0,0,0,0]
["Manufacturing","046029607","BAR METAL;DIA 70 X LG 3000 MM,RND",null,"BAR, METALLIC; DIMENSIONS: DIA 70 X LG 3000 MM, SHAPE: ROUND; MATERIAL GRADE NEW: EN 16482 GJL 250 MATERIAL GRADE OLD: GRADE 250 GREY 70 SABS 1034; GENERAL: MATERIAL CERTIFICATE TO SABS 1034 TO BE SUPPLIED. NO RUST OR CORROSION ON THE SURFACE ALLOWED","BAR, ","M",null,"EN 16482 GJL 250","Carbon Steel Sections","Gray Cast Iron","Sections",null,79,79,79,79,79,395,null,0,0,0,0,0,0,0,0,0,0,0,0,0,0,0,0]
["Manufacturing","311200013","BAR METAL;DIA 25 MM,RND",null,"BAR, METALLIC; DIMENSIONS: DIA 25 MM, SHAPE: ROUND; MATERIAL GRADE NEW:  BS 970 070M20; GENERAL: MATERIAL CERTIFICATE TO EN 10204 TYPE 3.1 TO BE SUPPLIED. NO RUST OR CORROSION ON THE SURFACE ALLOWED. BRIGHT BAR C/ROLL","BAR, ","M",null," BS 970 070M20","Carbon Steel Sections","Low carbon mild steel","Sections",null,387,239,395,505,295,1821,null,0,0,0,0,0,0,0,0,0,0,0,0,0,0,0,0]
["Manufacturing","611000059","PIPE METAL;PIPE SZ:20 MM,6100 MM,STL",null,"PIPE, METALLIC; PIPE SIZE: 20 MM, LENGTH: 6100 MM, PIPE MATERIAL: STEEL; MATERIAL GRADE NEW: BS1387 GR  S195T MATERIAL GRADE OLD:  B S1387 STEEL;GENERAL: MATERIAL CERTIFICATE TO EN 10204 TYPE 3.1 TO BE SUPPLIED. NO RUST OR CORROSION ON THE SURFACE ALLOWED","PIPE,","M",null,"BS 1387 S195T","Carbon Steel Sections","Carbon steel – non-alloy structural steel","Pipe & Tube",null,34,0,34,34,34,136,null,0,0,0,0,0,0,0,0,0,0,0,0,0,0,0,0]
["Manufacturing","611000058","PIPE METAL;PIPE SZ:10 MM,6100 MM,STL",null,"PIPE, METALLIC; PIPE SIZE: 10 MM, LENGTH: 6100 MM, WALL THICKNESS: 2 MM, PIPE MATERIAL: STEEL; MATERIAL GRADE NEW: BS1387 GR S195T MATERIAL GRADE OLD: BS1387 STEEL; GENERAL: MATERIAL CERTIFICATE TO EN 10204 TYPE 3.1 TO BE SUPPLIED. NO RUST OR CORROSION ON","PIPE,","M",null," BS 1387 S195T","Carbon Steel Sections","Carbon steel – non-alloy structural steel","Pipe & Tube",null,15,0,15,15,15,60,null,0,0,0,0,0,0,0,0,0,0,0,0,0,0,0,0]
["Manufacturing","011004144","CHANNEL STRUCTURAL;TAPER FLANGE,U,76 MM",null,"CHANNEL, STRUCTURAL; TYPE: TAPER FLANGE, CROSS SECTION SHAPE: U, WIDTH: 76 MM, HEIGHT: 38 MM, LENGTH: 13000 MM, MATERIAL: STEEL; MATERIAL GRADE NEW: EN 10025 S355 JR+AR; MATERIAL GRADE OLD: SABS 1431 300WA; THICKNESS: REFER TO MASS / LENGTH; GENERAL: MATE","CHANN","M",null,"EN 10025 S355 JR+AR","Carbon Steel Sections","Structural steel","Sections",null,17,17,17,34,34,119,null,0,0,0,0,0,0,0,0,0,0,0,0,0,0,0,0]
["Manufacturing","011012344","BAR METAL;WD 30 X LG 6000 X THK 10 MM",null,"BAR, METALLIC; DIMENSIONS: WD 30 X LG 6000 X THK 10 MM, SHAPE: FLAT; GENERAL: MATERIAL CERTIFICATE TO EN 10204 TYPE 3.1 TO BE SUPPLIED. NO RUST OR CORROSION ON THE SURFACE ALLOWED. MAX LOAD ON PALLETS MAY NOT EXCEED 4 TONS","BAR, ","M",null,"Not Specfied","Carbon Steel Sections","Not Specified type of Steel","Sections",null,53,46,55,6,6,166,null,0,0,0,0,0,0,0,0,0,0,0,0,0,0,0,0]
["Manufacturing","013003575","PIPE METAL;H/DUTY,PIPE SZ:80 MM,BLACK",null,"PIPE, METALLIC; TYPE: HEAVY DUTY, PIPE SIZE: 80 MM, PIPE LENGHT: 6 M PIPE MATERIAL: STEEL SABS 62, COLOR: BLACK","PIPE,","M",null,"SABS 62","Carbon Steel Sections","Structural steel","Pipe & Tube",null,6,6,6,6,6,30,null,0,0,0,0,0,0,0,0,0,0,0,0,0,0,0,0]
["Manufacturing","011001961","BAR METAL;WD 65 X LG 6000 X THK 12 MM",null,"BAR, METALLIC; DIMENSIONS: WD 65 X LG 6000 X THK 12 MM, SHAPE: FLAT; MATERIAL GRADE NEW: EN 10025 S355 JR+AR; MATERIAL GRADE OLD: SABS 1431 300WA; GENERAL: MATERIAL CERTIFICATE TO EN 10204 TYPE 3.1 TO BE SUPPLIED. NO RUST OR CORROSION ON THE SURFACE ALLOW","BAR, ","M",null,"EN 10025 S355 JR+AR","Carbon Steel Sections","Structural steel","Sections",null,1,1,2,3,3,10,null,0,0,0,0,0,0,0,0,0,0,0,0,0,0,0,0]
["Manufacturing","011004561","BAR METAL;WD 200 X LG 6000 X THK 16 MM",null,"BAR, METALLIC; DIMENSIONS: WD 200 X LG 6000 X THK 16 MM, SHAPE: FLAT; MATERIAL GRADE NEW: EN 10025 S355 JR+AR ; MATERIAL GRADE OLD: SANS 1431 300WA; GENERAL: MATERIAL CERTIFICATE TO EN 10204 TYPE 3.1 TO BE SUPPLIED. NO RUST OR CORROSION ON THE SURFACE ALL","BAR, ","M",null,"EN 10025 S355 JR+AR","Carbon Steel Sections","Structural steel","Sections",null,481,415,484,74,74,1528,null,0,0,0,0,0,0,0,0,0,0,0,0,0,0,0,0]
["Manufacturing","011002776","BAR METAL;DIA 20 X LG 6000 MM,RND",null,"BAR, METALLIC; DIMENSIONS: DIA 20 X LG 6000 MM, SHAPE: ROUND; MATERIAL GRADE NEW: BS 970 070M20; MATERIAL GRADE OLD: BS 970 070M20 OR SANS 1431 240WA OR SYM6; GENERAL: MATERIAL CERTIFICATE TO EN 10204 TYPE 3.1 TO BE SUPPLIED. NO RUST OR CORROSION ON THE S","BAR, ","M",null," BS 970 070M20","Carbon Steel Sections","Low carbon mild steel","Sections",null,130,127,156,175,177,765,null,0,0,0,0,0,0,0,0,0,0,0,0,0,0,0,0]
["Manufacturing","011002966","BAR METAL;DIA 130 X LG 6000 MM,RND",null,"BAR, METALLIC; DIMENSIONS: DIA 130 X LG 6000 MM, SHAPE: ROUND; MATERIAL GRADE NEW: BS 970 070M20; MATERIAL GRADE OLD: BS 970 070M20 OR SANS 1431 240WA OR SYM6; GENERAL: MATERIAL CERTIFICATE TO EN 10204 TYPE 3.1 TO BE SUPPLIED. NO RUST OR CORROSION ON THE","BAR, ","M",null," BS 970 070M20","Carbon Steel Sections","Low carbon mild steel","Sections",null,19,12,19,25,14,89,null,0,0,0,0,0,0,0,0,0,0,0,0,0,0,0,0]
["Manufacturing","011001329","BAR METAL;SQ 40 X LG 6000 MM,SQ",null,"BAR, METALLIC; DIMENSIONS: SQ 40 X LG 6000 MM, SHAPE: SQUARE; MATERIAL GRADE NEW: BS 970 070M20 MATERIAL GRADE OLD: BS 970 070M20 OR SANS 1431 240WA OR SYM6; GENERAL: MATERIAL CERTIFICATE TO EN 10204 TYPE 3.1 TO BE SUPPLIED. NO RUST OR CORROSION ON THE SU","BAR, ","M",null," BS 970 070M20","Carbon Steel Sections","Low carbon mild steel","Sections",null,55,55,55,55,55,275,null,0,0,0,0,0,0,0,0,0,0,0,0,0,0,0,0]
["Manufacturing","511050145","BAR METAL;DIA 60 X6000 MM,RND 070M20",null,"BAR, METALLIC; DIMENSIONS: DIA 60 X LG 6000 MM, SHAPE: ROUND; MATERIAL GRADE NEW: BS 970 070M20\nMATERIAL GRADE OLD: BS 970 070M20 O R SANS 1431 240WA;\nDIAMETER: 60MM\nGENERAL: MATERIAL CERTIFICATE TO EN 10204 TYPE 3.1 TO BE SUPPLIED. NO RUST OR CORROSION O","BAR, ","M",null," BS 970 070M20","Carbon Steel Sections","Low carbon mild steel","Sections",null,25,25,25,25,25,{"$f":"N132+O132+P132+Q132+R132","v":125},null,0,0,0,0,0,0,0,0,0,0,0,0,0,0,0,0]
["Manufacturing","011012255","BAR METAL;WD 40 X LG 6000 X THK 6 MM",null,"BAR, METALLIC; DIMENSIONS: WD 40 X LG 6000 X THK 6 MM, SHAPE: FLAT; GENERAL: MATERIAL CERTIFICATE TO EN 10204 TYPE 3.1 TO BE SUPPLI ED. NO RUST OR CORROSION ON THE SURFACE ALLOWED. MAX LOAD ON PALLETS MAY NOT EXCEED 4 TONS.","BAR, ","M",null,"Not Specfied","Carbon Steel Sections","Not Specified type of Steel","Sections",null,132,84,142,184,117,659,null,0,0,0,0,0,0,0,0,0,0,0,0,0,0,0,0]
["Project Wagons 1000","011012255","BAR METAL;WD 40 X LG 6000 X THK 6 MM",null,"BAR, METALLIC; DIMENSIONS: WD 40 X LG 6000 X THK 6 MM, SHAPE: FLAT; GENERAL: MATERIAL CERTIFICATE TO EN 10204 TYPE 3.1 TO BE SUPPLI ED. NO RUST OR CORROSION ON THE SURFACE ALLOWED. MAX LOAD ON PALLETS MAY NOT EXCEED 4 TONS.","BAR, ","M",null,"Not Specfied","Carbon Steel Sections","Not Specified type of Steel","Sections",null,899,899,{"$nulls":3},1798,null,0,0,0,0,0,0,0,0,0,0,0,0,0,0,0,0]
["Manufacturing","011011136","ANGLE STRUCTURAL;EQUAL,HT:50 MM,50 MM",null,"ANGLE, STRUCTURAL; TYPE: EQUAL, MATERIAL: EN 10025 S355 JR+AR, OLD SABS 1431 300WA, WIDTH: 50 MM, LENGTH: 6000 MM, THICKNESS: 8 MM, ANGLE HEIGHT: 50 MM, MATERIAL GRADE: 300WA; GENERAL: MATERIAL CERTIFICATE TO EN 10204 TYPE 3.1 TO BE SUPPLIED. NO RUST OR C","ANGLE","M",null,"EN 10025 S355 JR+AR","Carbon Steel Sections","Structural steel","Sections",null,350,211,357,454,268,1640,null,0,0,0,0,0,0,0,0,0,0,0,0,0,0,0,0]
["Manufacturing","011015094","ANGLE STRUCTURAL;EQUAL,HT:80 MM,80 MM",null,"ANGLE, STRUCTURAL; TYPE: EQUAL, MATERIAL: STEEL, WIDTH: 80 MM, LENGTH: 4500 MM, THICKNESS: 8 MM, ANGLE HEIGHT: 80 MM; MATERIAL GRADE NEW: EN 10025 S355 JR+AR MATERIAL GRADE OLD: SABS 1431  300WA; GENERAL: MATERIAL CERTIFICATE TO EN 10204 TYPE 3.1 TO BE SU","ANGLE","M",null,"EN 10025 S355 JR+AR","Carbon Steel Sections","Structural steel","Sections",null,1225,754,1249,1597,931,5756,null,0,0,0,0,0,0,0,0,0,0,0,0,0,0,0,0]
["Manufacturing","011012660","BAR METAL;WD 80 X LG 6000 X THK 20 MM",null,"BAR, METALLIC; DIMENSIONS: WD 80 X LG 6000 X THK 20 MM, SHAPE: FLAT; MATERIAL GRADE NEW: EN 10025 S355 JR+AR MATERIAL GRADE OLD: SABS 1431 300WA; GENERAL: MATERIAL CERTIFICATE TO EN 10204 TYPE 3.1 TO BE SUPPLIED. NO RUST OR CORROSION ON THE SURFACE ALLOWE","BAR, ","M",null,"EN 10025 S355 JR+AR","Carbon Steel Sections","Structural steel","Sections",null,310,206,352,457,311,1636,null,0,0,0,0,0,0,0,0,0,0,0,0,0,0,0,0]
["Manufacturing","811011342","BAR METAL;WD 30 X LG 6000 X THK 8 MM",null,"BAR, METALLIC; DIMENSIONS: WD 30 X LG 6000 X THK 8 MM, SHAPE: FLAT; MATERIAL GRADE NEW: EN 10025 S355 JR+AR MATERIAL GRADE OLD: SABS 1431 300WA OR SYM8; GENERAL: MATERIAL CERTIFICATE TO EN 10204 TYPE 3.1 TO BE SUPPLIED. NO RUST OR CORROSION ON THE SURFACE","BAR, ","M",null,"EN 10025 S355 JR+AR","Carbon Steel Sections","Structural steel","Sections",null,49,32,56,74,51,262,null,0,0,0,0,0,0,0,0,0,0,0,0,0,0,0,0]
["Project Wagons 1000","811011342","BAR METAL;WD 30 X LG 6000 X THK 8 MM",null,"BAR, METALLIC; DIMENSIONS: WD 30 X LG 6000 X THK 8 MM, SHAPE: FLAT; MATERIAL GRADE NEW: EN 10025 S355 JR+AR MATERIAL GRADE OLD: SABS 1431 300WA OR SYM8; GENERAL: MATERIAL CERTIFICATE TO EN 10204 TYPE 3.1 TO BE SUPPLIED. NO RUST OR CORROSION ON THE SURFACE","BAR, ","M",null,"EN 10025 S355 JR+AR","Carbon Steel Sections","Structural steel","Sections",null,37.5,37.5,{"$nulls":3},75,null,0,0,0,0,0,0,0,0,0,0,0,0,0,0,0,0]
["Manufacturing","011113914","CHANNEL STEEL;TAPER,WD:127 MM,LG:13 M",null,"CHANNEL, STEEL; CROSS SECTION SHAPE: TAPER, MATERIAL: STEEL SANS 50025/EN 10025 GRADE S355 JR+AR, WIDTH: 127 MM, LENGTH: 13 M, HEIG HT: 64 MM, MATERIAL THICKNESS: 14.93 KG/M","CHANN","M",null,"EN 10025 S355 JR+AR","Carbon Steel Sections","Structural steel","Sections",null,219,219,489,697,712,2336,null,0,0,0,0,0,0,0,0,0,0,0,0,0,0,0,0]
["Manufacturing","011012494","BAR METAL;WD 40 X LG 6000 X THK 12 MM",null,"BAR, METALLIC; DIMENSIONS: WD 40 X LG 6000 X THK 12 MM, SHAPE: FLAT; MATERIAL GRADE NEW: EN 10025 S355 JR+AR MATERIAL GRADE OLD: SABS 1431 300WA; GENERAL: MATERIAL CERTIFICATE TO EN 10204 TYPE 3.1 TO BE SUPPLIED. NO RUST OR CORROSION ON THE SURFACE ALLOWE","BAR, ","M",null,"EN 10025 S355 JR+AR","Carbon Steel Sections","Structural steel","Sections",null,5,5,10,14,14,48,null,0,0,0,0,0,0,0,0,0,0,0,0,0,0,0,0]
["Manufacturing","911100058","ANGLE STRUCTURAL;EQUAL,HT:80 MM,80 MM",null,"ANGLE, STRUCTURAL; TYPE: EQUAL, MATERIAL: STEEL, WIDTH: 80 MM, LENGTH: 6000 MM, THICKNESS: 10 MM, ANGLE HEIGHT: 80 MM, FLANGE TYPE:TAPER; MATERIAL GRADE NEW: EN 10025 S355 JR+AR MATERIAL GRADE OLD: SABS 1431 CORTEN  OR SABS 1431 WR50B1 OR SABS 1431 350 WA","ANGLE","M",null,"EN 10025 S355 JR+AR","Carbon Steel Sections","Structural steel","Sections",null,813,501,829,1060,618,3821,null,0,0,0,0,0,0,0,0,0,0,0,0,0,0,0,0]
["Manufacturing","011012785","BAR METAL;WD 80 X LG 6000 X THK 40 MM",null,"BAR, METALLIC; DIMENSIONS: WD 80 X LG 6000 X THK 40 MM, SHAPE: FLAT; MATERIAL GRADE NEW: EN 10025 S355 JR+AR MATERIAL GRADE OLD: COMMERCIAL QUALITY; GENERAL: MATERIAL CERTIFICATE TO EN 10204 TYPE 3.1 TO BE SUPPLIED. NO RUST OR CORROSION ON THE SURFACE ALL","BAR, ","M",null,"EN 10025 S355 JR+AR","Carbon Steel Sections","Structural Steel","Sections",null,292,201,312,388,265,1458,null,0,0,0,0,0,0,0,0,0,0,0,0,0,0,0,0]
["Project Wagons 1000","011012785","BAR METAL;WD 80 X LG 6000 X THK 40 MM",null,"BAR, METALLIC; DIMENSIONS: WD 80 X LG 6000 X THK 40 MM, SHAPE: FLAT; MATERIAL GRADE NEW: EN 10025 S355 JR+AR MATERIAL GRADE OLD: COMMERCIAL QUALITY; GENERAL: MATERIAL CERTIFICATE TO EN 10204 TYPE 3.1 TO BE SUPPLIED. NO RUST OR CORROSION ON THE SURFACE ALL","BAR, ","M",null,"EN 10025 S355 JR+AR","Carbon Steel Sections","Structural Steel","Sections",null,462,462,{"$nulls":3},924,null,0,0,0,0,0,0,0,0,0,0,0,0,0,0,0,0]
["Manufacturing","011000704","BAR METAL;DIA 40 X LG 6000 MM,RND",null,"BAR, METALLIC; DIMENSIONS: DIA 40 X LG 6000 MM, SHAPE: ROUND; MATERIAL GRADE NEW: BS 970 080M40; MATERIAL GRADE OLD: BS 970 080M40; GENERAL: MATERIAL CERTIFICATE TO EN 10204 TYPE 3.1 TO BE SUPPLIED. NO RUST OR CORROSION ON THE SURFACE ALLOWED. MATERIAL TO","BAR, ","M",null,"BS 970 080M40","Carbon Steel Sections","Medium Carbon alloy steel ","Sections",null,126,81,137,178,115,637,null,0,0,0,0,0,0,0,0,0,0,0,0,0,0,0,0]
["Manufacturing","011003037","BAR METAL;DIA 22 X LG 6000 MM,RND",null,"BAR, METALLIC; DIMENSIONS: DIA 22 X LG 6000 MM, SHAPE: ROUND; MATERIAL GRADE NEW: BS 970 070M20; MATERIAL GRADE OLD: BS 970 070M20 OR SANS 1431 240WA OR SYM6; GENERAL: MATERIAL CERTIFICATE TO EN 10204 TYPE 3.1 TO BE SUPPLIED. NO RUST OR CORROSION ON THE S","BAR, ","M",null," BS 970 070M20","Carbon Steel Sections","Low carbon mild steel","Sections",null,422,272,433,547,335,2009,null,0,0,0,0,0,0,0,0,0,0,0,0,0,0,0,0]
["Manufacturing","011002715","BAR METAL;DIA 6 X LG 6000 MM,RND",null,"BAR, METALLIC; DIMENSIONS: DIA 6 X LG 6000 MM, SHAPE: ROUND; MATERIAL GRADE NEW: BS 970 070M20; MATERIAL GRADE OLD: BS 970 070M20 OR SANS 1431 240WA OR SYM6; GENERAL: MATERIAL CERTIFICATE TO EN 10204 TYPE 3.1 TO BE SUPPLIED. NO RUST OR CORROSION ON THE SU","BAR, ","M",null," BS 970 070M20","Carbon Steel Sections","Low carbon mild steel","Sections",null,59,41,70,84,62,316,null,0,0,0,0,0,0,0,0,0,0,0,0,0,0,0,0]
["Project Wagons 1000","011003037","BAR METAL;DIA 22 X LG 6000 MM,RND",null,"BAR, METALLIC; DIMENSIONS: DIA 22 X LG 6000 MM, SHAPE: ROUND; MATERIAL GRADE NEW: BS 970 070M20; MATERIAL GRADE OLD: BS 970 070M20 OR SANS 1431 240WA OR SYM6; GENERAL: MATERIAL CERTIFICATE TO EN 10204 TYPE 3.1 TO BE SUPPLIED. NO RUST OR CORROSION ON THE S","BAR, ","M",null," BS 970 070M20","Carbon Steel Sections","Low carbon mild steel","Sections",null,1706,1706,{"$nulls":3},3412,null,0,0,0,0,0,0,0,0,0,0,0,0,0,0,0,0]
["Manufacturing","513662640","TUBE METAL;RND,6000 MM,26.6 MM",null,"TUBE, METALLIC; SHAPE: ROUND, TUBE LENGTH: 6000 MM, OUTSIDE DIAMETER: 26.6 MM; (TUBE = PIPE);\nMATERIAL GRADE NEW: ASTM A53 GR A\nMAT ERIAL GRADE OLD: ASTM A53 GRADE A/GRADE B ;\nGENERAL: MATERIAL CERTIFICATE TO EN 10204 TYPE 3.1 TO BE SUPPLIED. NO RUST OR C","TUBE,","M",null,"ASTM A53 GR A","Carbon Steel Sections","Carbon Steel","Pipe & Tube",null,1474,911,1514,1939,1143,6981,null,0,0,0,0,0,0,0,0,0,0,0,0,0,0,0,0]
["Project Wagons 1000","513662640","TUBE METAL;RND,6000 MM,26.6 MM",null,"TUBE, METALLIC; SHAPE: ROUND, TUBE LENGTH: 6000 MM, OUTSIDE DIAMETER: 26.6 MM; (TUBE = PIPE);\nMATERIAL GRADE NEW: ASTM A53 GR A\nMAT ERIAL GRADE OLD: ASTM A53 GRADE A/GRADE B ;\nGENERAL: MATERIAL CERTIFICATE TO EN 10204 TYPE 3.1 TO BE SUPPLIED. NO RUST OR C","TUBE,","M",null,"ASTM A53 GR A","Carbon Steel Sections","Carbon Steel","Pipe & Tube",null,6971,6971,{"$nulls":3},13942,null,0,0,0,0,0,0,0,0,0,0,0,0,0,0,0,0]
["Manufacturing","511660278","BAR METAL;WD 90 X LG 6000 X THK 10 MM",null,"BAR, METALLIC; DIMENSIONS: WD 90 X LG 6000 X THK 10 MM, SHAPE: FLAT; MATERIAL GRADE NEW: EN 10025 S355 JR+AR MATERIAL GRADE OLD: SABS 1431 300 WA; GENERAL: MATERIAL CERTIFICATE TO EN 10204 TYPE 3.1 TO BE SUPPLIED. NO RUST OR CORROSION ON THE SURFACE ALLOW","BAR, ","M",null,"EN 10025 S355 JR+AR","Carbon Steel Sections","Structural steel","Sections",null,50,31,51,65,38,235,null,0,0,0,0,0,0,0,0,0,0,0,0,0,0,0,0]
["Manufacturing","513662641","TUBE METAL;RND,6000 MM,33.4 MM",null,"TUBE, METALLIC; SHAPE: ROUND, TUBE LENGTH: 6000 MM, OUTSIDE DIAMETER: 33.4 MM, WALL THICKNESS: 3.2 MM; (TUBE = PIPE); MATERIAL GRADE NEW: ASTM A53 GR A MATERIAL GRADE OLD: ASTM A53 GRADE A/GRADE B; GENERAL: MATERIAL CERTIFICATE TO EN 10204 TYPE 3.1 TO BE","TUBE,","M",null,"ASTM A53 GR A","Carbon Steel Sections","Carbon Steel","Pipe & Tube",null,204,126,208,266,155,959,null,0,0,0,0,0,0,0,0,0,0,0,0,0,0,0,0]
["Manufacturing","511664252","BAR METAL;DIA 35 X LG 6000 MM,RND",null,"BAR, METALLIC; DIMENSIONS: DIA 35 X LG 6000 MM, SHAPE: ROUND; MATERIAL GRADE NEW: BS 970 709M40 MATERIAL GRADE OLD: BS970-3 817M40; GENERAL: MATERIAL CERTIFICATE TO EN 10204 TYPE 3.1 TO BE SUPPLIED. NO RUST OR CORROSION ON THE SURFACE ALLOWED. MATERIAL TO","BAR, ","M",null,"BS 970 709M40","Carbon Steel Sections","Chromium-Molybdenum alloy steel","Sections",null,261,165,277,357,222,1282,null,0,0,0,0,0,0,0,0,0,0,0,0,0,0,0,0]
["Project Wagons 1000","511664252","BAR METAL;DIA 35 X LG 6000 MM,RND",null,"BAR, METALLIC; DIMENSIONS: DIA 35 X LG 6000 MM, SHAPE: ROUND; MATERIAL GRADE NEW: BS 970 709M40 MATERIAL GRADE OLD: BS970-3 817M40; GENERAL: MATERIAL CERTIFICATE TO EN 10204 TYPE 3.1 TO BE SUPPLIED. NO RUST OR CORROSION ON THE SURFACE ALLOWED. MATERIAL TO","BAR, ","M",null,"BS 970 709M40","Carbon Steel Sections","Chromium-Molybdenum alloy steel","Sections",null,600,600,{"$nulls":3},1200,null,0,0,0,0,0,0,0,0,0,0,0,0,0,0,0,0]
["Manufacturing","013002711","PIPE METAL;PIPE SZ:15 MM,6000 MM",null,"PIPE, METALLIC; PIPE SIZE: 15 MM, LENGTH: 6000 MM, WALL THICKNESS: 2.77 MM, SCHEDULE: 40; GENERAL: MATERIAL CERTIFICATE TO EN 10204  TYPE 3.1 TO BE SUPPLIED. NO RUST OR CORROSION ON THE SURFACE ALLOWED. STEEL, SPECIFICATION: SABS 62 TABLE 5;\nITEM REQUIRE","PIPE,","M",null,"SABS 62","Carbon Steel Sections","Structural steel","Pipe & Tube",null,1013,1013,1013,1013,1013,5065,null,0,0,0,0,0,0,0,0,0,0,0,0,0,0,0,0]
["Project Wagons 1000","013002711","PIPE METAL;PIPE SZ:15 MM,6000 MM",null,"PIPE, METALLIC; PIPE SIZE: 15 MM, LENGTH: 6000 MM, WALL THICKNESS: 2.77 MM, SCHEDULE: 40; GENERAL: MATERIAL CERTIFICATE TO EN 10204  TYPE 3.1 TO BE SUPPLIED. NO RUST OR CORROSION ON THE SURFACE ALLOWED. STEEL, SPECIFICATION: SABS 62 TABLE 5;\nITEM REQUIRE","PIPE,","M",null,"SABS 62","Carbon Steel Sections","Structural steel","Pipe & Tube",null,10,10,{"$nulls":3},20,null,0,0,0,0,0,0,0,0,0,0,0,0,0,0,0,0]
["Manufacturing","011014824","BAR METAL;DIA 32 X LG 6000 MM,RND",null,"BAR, METALLIC; DIMENSIONS: DIA 32 X LG 6000 MM, SHAPE: ROUND; MATERIAL GRADE NEW: BS 970  070M20; GENERAL: MATERIAL CERTIFICATE TO EN 10204 TYPE 3.1 TO BE SUPPLIED. NO RUST OR CORROSION ON THE SURFACE ALLOWED. MATERIAL TO BE BOUND. MAX LOAD ON PALLETS MAY","BAR, ","M",null," BS 970 070M20","Carbon Steel Sections","Low carbon mild steel","Sections",null,275,208,289,375,231,1378,null,0,0,0,0,0,0,0,0,0,0,0,0,0,0,0,0]
["Project Wagons 1000","011014824","BAR METAL;DIA 32 X LG 6000 MM,RND",null,"BAR, METALLIC; DIMENSIONS: DIA 32 X LG 6000 MM, SHAPE: ROUND; MATERIAL GRADE NEW: BS 970  070M20; GENERAL: MATERIAL CERTIFICATE TO EN 10204 TYPE 3.1 TO BE SUPPLIED. NO RUST OR CORROSION ON THE SURFACE ALLOWED. MATERIAL TO BE BOUND. MAX LOAD ON PALLETS MAY","BAR, ","M",null," BS 970 070M20","Carbon Steel Sections","Low carbon mild steel","Sections",null,1191,1191,{"$nulls":3},2382,null,0,0,0,0,0,0,0,0,0,0,0,0,0,0,0,0]
["Manufacturing","011014104","BAR METAL;WD 50 X LG 6000 X THK 16 MM",null,"BAR, METALLIC; DIMENSIONS: WD 50 X LG 6000 X THK 16 MM, SHAPE: FLAT; MATERIAL GRADE NEW: EN 10025 S355 JR+AR MATERIAL GRADE OLD: SABS 1431 300WA; GENERAL: MATERIAL CERTIFICATE TO EN 10204 TYPE 3.1 TO BE SUPPLIED. NO RUST OR CORROSION ON THE SURFACE ALLOWE","BAR, ","M",null,"EN 10025 S355 JR+AR","Carbon Steel Sections","Structural steel","Sections",null,2096,1528,2739,1685,1727,9775,null,0,0,0,0,0,0,0,0,0,0,0,0,0,0,0,0]
["Manufacturing","011012509","BAR METAL;WD 50 X LG 6000 X THK 12 MM",null,"BAR, METALLIC; DIMENSIONS: WD 50 X LG 6000 X THK 12 MM, SHAPE: FLAT; MATERIAL GRADE NEW: EN 10025 S355 JR+AR MATERIAL GRADE OLD: SABS 1431 300WA; GENERAL: MATERIAL CERTIFICATE TO EN 10204 TYPE 3.1 TO BE SUPPLIED. NO RUST OR CORROSION ON THE SURFACE ALLOWE","BAR, ","M",null,"EN 10025 S355 JR+AR","Carbon Steel Sections","Structural steel","Sections",null,200,170,404,561,573,1908,null,0,0,0,0,0,0,0,0,0,0,0,0,0,0,0,0]
["Project Wagons 1000","011012509","BAR METAL;WD 50 X LG 6000 X THK 12 MM",null,"BAR, METALLIC; DIMENSIONS: WD 50 X LG 6000 X THK 12 MM, SHAPE: FLAT; MATERIAL GRADE NEW: EN 10025 S355 JR+AR MATERIAL GRADE OLD: SABS 1431 300WA; GENERAL: MATERIAL CERTIFICATE TO EN 10204 TYPE 3.1 TO BE SUPPLIED. NO RUST OR CORROSION ON THE SURFACE ALLOWE","BAR, ","M",null,"EN 10025 S355 JR+AR","Carbon Steel Sections","Structural steel","Sections",null,926,926,{"$nulls":3},1852,null,0,0,0,0,0,0,0,0,0,0,0,0,0,0,0,0]
["Project Wagons 1000","011014104","BAR METAL;WD 50 X LG 6000 X THK 16 MM",null,"BAR, METALLIC; DIMENSIONS: WD 50 X LG 6000 X THK 16 MM, SHAPE: FLAT; MATERIAL GRADE NEW: EN 10025 S355 JR+AR MATERIAL GRADE OLD: SABS 1431 300WA; GENERAL: MATERIAL CERTIFICATE TO EN 10204 TYPE 3.1 TO BE SUPPLIED. NO RUST OR CORROSION ON THE SURFACE ALLOWE","BAR, ","M",null,"EN 10025 S355 JR+AR","Carbon Steel Sections","Structural steel","Sections",null,550,550,{"$nulls":3},1100,null,0,0,0,0,0,0,0,0,0,0,0,0,0,0,0,0]
["Manufacturing","011002942","BAR METAL;WD 100 X LG 6000 MM,RND",null,"BAR, METALLIC; DIMENSIONS: WD 100 X LG 6000 MM, SHAPE: ROUND; MATERIAL GRADE NEW: BS 970 709M40; MATERIAL GRADE OLD: BAR MATERIAL STEEL EN19 OR BRIGHT BAR OR BLACK; GENERAL: MATERIAL CERTIFICATE TO EN 10204 TYPE 3.1 TO BE SUPPLIED. NO RUST OR CORROSION ON","BAR, ","M",null," BS 970 709M40","Carbon Steel Sections","Chromium-Molybdenum alloy steel","Sections",null,178,178,178,178,178,890,null,0,0,0,0,0,0,0,0,0,0,0,0,0,0,0,0]
["Maritime","011113668","BAR METAL;DIA 200 MM X LG 1 M,RND",null,"BAR, METALLIC; DIMENSIONS: DIA 200 MM X LG 1 M, MATERIAL: STEEL GRADE 300WA, SHAPE: ROUND","BAR, ","EA",null,"EN 10025 S355 JR+AR","Carbon Steel Sections","Structural steel","Sections",null,36,36,36,36,36,180,null,0,0,0,0,0,0,0,0,0,0,0,0,0,0,0,0]
["Manufacturing","011001795","BAR METAL;DIA 40 X LG 6000 MM,RND",null,"BAR, METALLIC; DIMENSIONS: DIA 40 X LG 6000 MM, SHAPE: ROUND; MATERIAL GRADE NEW: BS 970 070M20; MATERIAL GRADE OLD: BS 970 070M20 OR SANS 1431 240WA OR SYM6; GENERAL: MATERIAL CERTIFICATE TO EN 10204 TYPE 3.1 TO BE SUPPLIED. NO RUST OR CORROSION ON THE S","BAR, ","M",null," BS 970 070M20","Carbon Steel Sections","Low carbon mild steel","Sections",null,2,2,2,2,2,10,null,0,0,0,0,0,0,0,0,0,0,0,0,0,0,0,0]
["Manufacturing","011012368","BAR METAL;WD 40 X LG 6000 X THK 10 MM",null,"BAR, METALLIC; DIMENSIONS: WD 40 X LG 6000 X THK 10 MM, MATERIAL: EN 10025 S355 JR+AR, SHAPE: FLAT; GENERAL: MATERIAL CERTIFICATE TO EN 10204 TYPE 3.1 TO BE SUPPLIED. NO RUST OR CORROSION ON THE SURFACE ALLOWED. MAX LOAD ON PALLETS MAY NOT EXCEED 4 TONS.","BAR, ","M",null,"EN 10025 S355 JR+AR","Carbon Steel Sections","Structural steel","Sections",null,73,45,75,95,56,344,null,0,0,0,0,0,0,0,0,0,0,0,0,0,0,0,0]
["Manufacturing","011014747","CHANNEL STRUCTURAL;TAPER FLANGE,U,300 MM",null,"CHANNEL, STRUCTURAL; TYPE: TAPER FLANGE, CROSS SECTION SHAPE: U, WIDTH: 300 MM, HEIGHT: 100 MM, LENGTH: 6000 MM, MATERIAL: STEEL, M ATERIAL GRADE: EN 10025 S355 JR+AR; GENERAL: MATERIAL CERTIFICATE TO EN 10204 TYPE 3.1 TO BE SUPPLIED. NO RUST OR CORROSION","CHANN","M",null,"EN 10025 S355 JR+AR","Carbon Steel Sections","Structural steel","Sections",null,13,0,13,13,13,52,null,0,0,0,0,0,0,0,0,0,0,0,0,0,0,0,0]
["Manufacturing","011012724","BAR METAL;WD 80 X LG 6000 X THK 25 MM",null,"BAR, METALLIC; DIMENSIONS: WD 80 X LG 6000 X THK 25 MM, SHAPE: FLAT; MATERIAL GRADE NEW: EN 10025 S355 JR+AR MATERIAL GRADE OLD: SABS 1431 300WA; GENERAL: MATERIAL CERTIFICATE TO EN 10204 TYPE 3.1 TO BE SUPPLIED. NO RUST OR CORROSION ON THE SURFACE ALLOWE","BAR, ","M",null,"EN 10025 S355 JR+AR","Carbon Steel Sections","Structural steel","Sections",null,306,189,312,399,233,1439,null,0,0,0,0,0,0,0,0,0,0,0,0,0,0,0,0]
["Manufacturing","011001455","BAR METAL;DIA 100 X LG 6000 MM,RND",null,"BAR, METALLIC; DIMENSIONS: DIA 100 X LG 6000 MM, SHAPE: ROUND; MATERIAL GRADE NEW: BS 970 080M40; MATERIAL GRADE OLD: BS 970 080M40; GENERAL: MATERIAL CERTIFICATE TO EN 10204 TYPE 3.1 TO BE SUPPLIED. NO RUST OR CORROSION ON THE SURFACE ALLOWED. NB.BIND IN","BAR, ","M",null,"BS 970 080M40","Carbon Steel Sections","Medium Carbon alloy steel ","Sections",null,53,53,53,53,53,265,null,0,0,0,0,0,0,0,0,0,0,0,0,0,0,0,0]
["Manufacturing","011014646","ANGLE STRUCTURAL;UNEQUAL,HT:150 MM,75 MM",null,"ANGLE, STRUCTURAL; TYPE: UNEQUAL, MATERIAL: STEEL SABS 1431, WIDTH: 75 MM, LENGTH: 6000 MM, THICKNESS: 10 MM, ANGLE HEIGHT: 150 MM;  MATERIAL GRADE NEW:  EN 10025 S355 JR+AR MATERIAL GRADE OLD:SABS 1431 300WA; GENERAL: MATERIAL CERTIFICATE TO EN 10204 TYP","ANGLE","M",null,"EN 10025 S355 JR+AR","Carbon Steel Sections","Structural steel","Sections",null,540,333,551,704,410,2538,null,0,0,0,0,0,0,0,0,0,0,0,0,0,0,0,0]
["Manufacturing","011001771","BAR METAL;DIA 16 X LG 6000 MM,RND",null,"BAR, METALLIC; DIMENSIONS: DIA 16 X LG 6000 MM, SHAPE: ROUND; MATERIAL GRADE NEW: BS 970 070M20; MATERIAL GRADE OLD: BS 970 070M20OR SANS 1431 240WA OR SYM6; GENERAL: MATERIAL CERTIFICATE TO EN 10204 TYPE 3.1 TO BE SUPPLIED. NO RUST OR CORROSION ON THE SU","BAR, ","M",null," BS 970 070M20","Carbon Steel Sections","Low carbon mild steel","Sections",null,224,150,268,352,253,1247,null,0,0,0,0,0,0,0,0,0,0,0,0,0,0,0,0]
["Manufacturing","011002740","BAR METAL;DIA 12 X LG 6000 MM,RND",null,"BAR, METALLIC; DIMENSIONS: DIA 12 X LG 6000 MM, SHAPE: ROUND; MATERIAL GRADE NEW: BS 970 070M20; MATERIAL GRADE OLD: BS 970 070M20 OR SANS 1431 240WA OR SYM6; GENERAL: MATERIAL CERTIFICATE TO EN 10204 TYPE 3.1 TO BE SUPPLIED. NO RUST OR CORROSION ON THE S","BAR, ","M",null," BS 970 070M20","Carbon Steel Sections","Low carbon mild steel","Sections",null,808,546,878,1115,749,4096,null,0,0,0,0,0,0,0,0,0,0,0,0,0,0,0,0]
["Manufacturing","011004208","CHANNEL STRUCTURAL;TAPER FLANGE,U,152 MM",null,"CHANNEL, STRUCTURAL; TYPE: TAPER FLANGE, CROSS SECTION SHAPE: U, WIDTH: 152 MM, HEIGHT: 76 MM, LENGTH: 13000 MM, MATERIAL: STEEL SANS 50025, SPECIAL FEATURES: 17.86 KG/M; MATERIAL GRADE NEW: EN 10025 S355 JR+AR; MATERIAL GRADE OLD: EN 10025 / SANS 50025 S","CHANN","M",null,"EN 10025 S355 JR+AR","Carbon Steel Sections","Structural steel","Sections",null,438,438,974,1387,1418,4655,null,0,0,0,0,0,0,0,0,0,0,0,0,0,0,0,0]
["Manufacturing","011007629","CHANNEL STRUCTURAL;TAPER FLANGE,U,200 MM",null,"CHANNEL, STRUCTURAL; TYPE: TAPER FLANGE, CROSS SECTION SHAPE: U, WIDTH: 200 MM, HEIGHT: 75 MM, LENGTH: 6000 MM, MATERIAL: STEEL, SPECIAL FEATURES: 24.3 KG/M; MATERIAL GRADE NEW: EN 10025 S355 JR+AR MATERIAL GRADE OLD: EN 10025 / SANS 50025 S355 JR+AR OR E","CHANN","M",null,"EN 10025 S355 JR+AR","Carbon Steel Sections","Structural steel","Sections",null,634,492,640,485,335,2586,null,0,0,0,0,0,0,0,0,0,0,0,0,0,0,0,0]
["Manufacturing","311110603","BAR METAL ROUND STEEL DIA 38 MM  EN3A;",null,"BAR METAL ROUND STEEL DIA 38 MM  EN3A;","BAR M","M",null," BS 970 070M20","Carbon Steel Sections","Low carbon mild steel","Sections",null,1,1,2,2,2,8,null,0,0,0,0,0,0,0,0,0,0,0,0,0,0,0,0]
["Manufacturing","513662642","TUBE METAL;RND,6000 MM,42.1 MM",null,"TUBE, METALLIC; SHAPE: ROUND, TUBE LENGTH: 6000 MM, OUTSIDE DIAMETER: 42.1 MM, WALL THICKNESS: 3.2 MM; (TUBE=PIPE); MATERIAL GRADE NEW: ASTM A53 GR A MATERIAL GRADE OLD: ASTM A53 GRADE A/GRADE B; GENERAL: MATERIAL CERTIFICATE TO EN 10204 TYPE 3.1 TO BE SU","TUBE,","M",null,"ASTM A53 GR A","Carbon Steel Sections","Carbon Steel","Pipe & Tube",null,2767,1707,2826,3614,2114,13028,null,0,0,0,0,0,0,0,0,0,0,0,0,0,0,0,0]
["Manufacturing","513663091","TUBE METAL;RND,6100 MM,17.4 MM",null,"TUBE, METALLIC; SHAPE: ROUND, TUBE LENGTH: 6100 MM, OUTSIDE DIAMETER: 17.4 MM, WALL THICKNESS: 2.6 MM; (TUBE=PIPE); MATERIAL GRADE NEW: ASTM A53 GR A MATERIAL GRADE OLD: ASTM A53 GRADE A/GRADE B; GENERAL: MATERIAL CERTIFICATE TO EN 10204 TYPE 3.1 TO BE SU","TUBE,","M",null,"ASTM A53 GR A","Carbon Steel Sections","Carbon Steel","Pipe & Tube",null,1768,1091,1810,2316,1358,8343,null,0,0,0,0,0,0,0,0,0,0,0,0,0,0,0,0]
["Project Wagons 1000","513662642","TUBE METAL;RND,6000 MM,42.1 MM",null,"TUBE, METALLIC; SHAPE: ROUND, TUBE LENGTH: 6000 MM, OUTSIDE DIAMETER: 42.1 MM, WALL THICKNESS: 3.2 MM; (TUBE=PIPE); MATERIAL GRADE NEW: ASTM A53 GR A MATERIAL GRADE OLD: ASTM A53 GRADE A/GRADE B; GENERAL: MATERIAL CERTIFICATE TO EN 10204 TYPE 3.1 TO BE SU","TUBE,","M",null,"ASTM A53 GR A","Carbon Steel Sections","Carbon Steel","Pipe & Tube",null,7117,7117,{"$nulls":3},14234,null,0,0,0,0,0,0,0,0,0,0,0,0,0,0,0,0]
["Project Wagons 1000","513663091","TUBE METAL;RND,6100 MM,17.4 MM",null,"TUBE, METALLIC; SHAPE: ROUND, TUBE LENGTH: 6100 MM, OUTSIDE DIAMETER: 17.4 MM, WALL THICKNESS: 2.6 MM; (TUBE=PIPE); MATERIAL GRADE NEW: ASTM A53 GR A MATERIAL GRADE OLD: ASTM A53 GRADE A/GRADE B; GENERAL: MATERIAL CERTIFICATE TO EN 10204 TYPE 3.1 TO BE SU","TUBE,","M",null,"ASTM A53 GR A","Carbon Steel Sections","Carbon Steel","Pipe & Tube",null,3050,3050,{"$nulls":3},6100,null,0,0,0,0,0,0,0,0,0,0,0,0,0,0,0,0]
["Manufacturing","011014683","CHANNEL STRUCTURAL;PARALLEL FLANGE,U,STL",null,"CHANNEL, STRUCTURAL; TYPE: PARALLEL FLANGE, CROSS SECTION SHAPE: U, WIDTH: 100 MM, HEIGHT: 50 MM, LENGTH: 6000 M, MATERIAL: STEEL; MATERIAL GRADE NEW: EN 10025 S355 JR+AR MATERIAL GRADE OLD: SABS 1431 300WA OR SABS 1431 350WA; GENERAL: MATERIAL CERTIFICAT","CHANN","M",null,"EN 10025 S355 JR+AR","Carbon Steel Sections","Structural steel","Sections",null,9319,6269,11633,12428,9916,49565,null,0,0,0,0,0,0,0,0,0,0,0,0,0,0,0,0]
["Manufacturing","011014723","CHANNEL STEEL;TAPER FLANGE,180 MM,70 MM",null,"CHANNEL, STEEL; CROSS SECTION SHAPE: TAPER FLANGE, WIDTH: 180 MM, LENGTH: 6000 MM, HEIGHT: 70 MM; MATERIAL GRADE NEW: EN 10025 S355 JR+AR MATERIAL GRADE OLD: SABS 1431 300WA (SYM8); GENERAL: MATERIAL CERTIFICATE TO EN 10204 TYPE 3.1 TO BE SUPPLIED. NO RUS","CHANN","M",null,"EN 10025 S355 JR+AR","Carbon Steel Sections","Structural steel","Sections",null,641,641,641,641,641,3205,null,0,0,0,0,0,0,0,0,0,0,0,0,0,0,0,0]
["Manufacturing","011113481","CHANNEL STRUCTURAL;TAPERED,U,152 MM,10 M",null,"CHANNEL, STRUCTURAL; TYPE: TAPERED, CROSS SECTION SHAPE: U, WIDTH: 152 MM, HEIGHT: 76 MM, LENGTH: 10 M, MATERIAL: STEEL; MATERIAL G RADE NEW: EN 10025 S355 JR+AR\nMATERIAL GRADE OLD: SABS 1431 350WA;\nGENERAL: MATERIAL CERTIFICATE TO EN 10204 TYPE 3.1 TO BE","CHANN","M",null,"EN 10025 S355 JR+AR","Carbon Steel Sections","Structural steel","Sections",null,770,770,1714,2443,2496,8193,null,{"$f":"+T182*N182","v":0},{"$f":"U182*1.15","v":0},{"$f":"T182*1.06","v":0},{"$f":"(W182*O182)","v":0},{"$f":"X182*1.15","v":0},{"$f":"W182*1.06","v":0},{"$f":"(+Z182)*P182","v":0},{"$f":"AA182*1.15","v":0},{"$f":"Z182*1.06","v":0},{"$f":"(AC182)*Q182","v":0},{"$f":"AD182*1.15","v":0},{"$f":"AC182*1.06","v":0},{"$f":"(+AF182)*R182","v":0},{"$f":"AG182*1.15","v":0},{"$f":"AG182+AD182+AA182+X182+U182","v":0},{"$f":"AI182*1.15","v":0}]
["Manufacturing","011012534","BAR METAL;WD 100 X LG 6000 X THK 12 MM",null,"BAR, METALLIC; DIMENSIONS: WD 100 X LG 6000 X THK 12 MM, SHAPE: FLAT; MATERIAL GRADE NEW: EN 10025 S355 JR+AR MATERIAL GRADE OLD: SABS 1431 300WA; GENERAL: MATERIAL CERTIFICATE TO EN 10204 TYPE 3.1 TO BE SUPPLIED. NO RUST OR CORROSION ON THE SURFACE ALLOW","BAR, ","M",null,"EN 10025 S355 JR+AR","Carbon Steel Sections","Structural steel","Sections",null,121,121,121,121,121,605,null,0,0,0,0,0,0,0,0,0,0,0,0,0,0,0,0]
["Manufacturing","011014521","ANGLE STRUCTURAL;EQUAL,HT:80 MM,80 MM",null,"ANGLE, STRUCTURAL; TYPE: EQUAL, MATERIAL: STEEL, WIDTH: 80 MM, LENGTH: 6000 MM, THICKNESS: 10 MM, ANGLE HEIGHT: 80 MM; MATERIAL GRA DE NEW: EN 10025 S355 JR+AR\nMATERIAL GRADE OLD: SABS 1431 300WA;\nGENERAL: MATERIAL CERTIFICATE TO EN 10204 TYPE 3.1 TO BE S","ANGLE","M",null,"EN 10025 S355 JR+AR","Carbon Steel Sections","Structural steel","Sections",null,2227,1373,2276,2911,1702,10489,null,0,0,0,0,0,0,0,0,0,0,0,0,0,0,0,0]
["Manufacturing","711050075","ANGLE STRUCTURAL;EQUAL,HT:60 MM,60 MM",null,"ANGLE, STRUCTURAL; TYPE: EQUAL, MATERIAL: STEEL, WIDTH: 60 MM, LENGTH: 9000 MM, THICKNESS: 5 MM, ANGLE HEIGHT: 60 MM; MATERIAL GRADE NEW: EN 10025 S355 JR+AR MATERIAL GRADE OLD: STEEL MATERIAL; GENERAL: MATERIAL CERTIFICATE TO EN 10204 TYPE 3.1 TO BE SUPP","ANGLE","M",null,"EN 10025 S355 JR+AR","Carbon Steel Sections","Structural steel","Sections",null,250,250,250,250,250,1250,null,0,0,0,0,0,0,0,0,0,0,0,0,0,0,0,0]
["Manufacturing","011013665","BAR METAL;DIA 50 X LG 6000 MM,RND",null,"BAR, METALLIC; DIMENSIONS: DIA 50 X LG 6000 MM, MATERIAL: BS 970 080M40, SHAPE: ROUND; GENERAL: MATERIAL CERTIFICATE TO EN 10204 TYPE 3.1 TO BE SUPPLIED. NO RUST OR CORROSION ON THE SURFACE ALLOWED. MATERIAL TO BE BOUND. MAX LOAD ON PALLETS MAY NOT EXCEED","BAR, ","M",null,"BS 970 080M40","Carbon Steel Sections","Medium Carbon alloy steel ","Sections",null,44,44,44,44,44,220,null,0,0,0,0,0,0,0,0,0,0,0,0,0,0,0,0]
["Manufacturing","011002283","BAR METAL;WD 150 X LG 6000 X THK 20 MM",null,"BAR, METALLIC; DIMENSIONS: WD 150 X LG 6000 X THK 20 MM, SHAPE: FLAT; MATERIAL GRADE NEW: EN 10025 S235 JR+AR; MATERIAL GRADE OLD:EN 10025 S235 JR OR EN 10025 S235 JR+AR OR EN 10025 S235 J2+N; GENERAL: MATERIAL CERTIFICATE TO EN 10204 TYPE 3.1 TO BE SUPPL","BAR, ","M",null,"EN 10025 S235 JR+AR","Carbon Steel Sections","Structural steel","Sections",null,260,260,260,260,260,1300,null,0,0,0,0,0,0,0,0,0,0,0,0,0,0,0,0]
["Manufacturing","011809212","CHANNEL STRUCTURAL;PARALLEL,U,WD:300 MM",null,"CHANNEL, STRUCTURAL; TYPE: PARALLEL FLANGE, CROSS SECTION SHAPE: U, WIDTH: 300 MM, HEIGHT: 100 MM, LENGTH: 13000 MM, MATERIAL: STEEL, MATERIAL GRADE: 350WA; THICKNESS 45.4 KG/M","CHANN","EA",null," EN 10025 S355 JR","Carbon Steel Sections","Structural steel","Sections",null,399,246,407,520,303,1875,null,0,0,0,0,0,0,0,0,0,0,0,0,0,0,0,0]
["Manufacturing","013011144","PIPE METAL;SMLS,PIPE SZ:ID 25 MM,6000 MM",null,"PIPE, METALLIC; TYPE: SEAMLESS, PIPE SIZE: ID 25 MM, LENGTH: 6000 MM, WALL THICKNESS: 3.5 MM, MATERIAL GRADE: SANS 62; GENERAL: MATERIAL CERTIFICATE TO EN 10204 TYPE 3.1 TO BE SUPPLIED. NO RUST OR CORROSION ON THE SURFACE ALLOWED. SPECIAL FEATURES: INTERN","PIPE,","EA",null,"SABS 62","Carbon Steel Sections","Structural steel","Pipe & Tube",null,72,44,74,94,55,339,null,0,0,0,0,0,0,0,0,0,0,0,0,0,0,0,0]
["Manufacturing","568390039","CHANNEL STRUCTURAL;TAPER FLANGE,U,160 MM",null,"CHANNEL, STRUCTURAL; TYPE: TAPER FLANGE, CROSS SECTION SHAPE: U, WIDTH: 160 MM, HEIGHT: 65 MM, LENGTH: 6000 MM, MATERIAL: STEEL, MATERIAL GRADE: EN 10025-2 S355 JR + AR, FLANGE THICKNESS: 10.5 MM; GENERAL: MATERIAL CERTIFICATE TO EN 10204 TYPE 3.1 TO BE S","CHANN","M",null,"EN 10025 S355 JR+AR","Carbon Steel Sections","Structural steel","Sections",null,1088,1088,1088,1088,1088,5440,null,0,0,0,0,0,0,0,0,0,0,0,0,0,0,0,0]
["Maritime","011846284","TUBE METAL;RECT,WD:150 MM,HT:100 MM,6 M",null,"TUBE, METALLIC; SHAPE: RECTANGULAR, WIDTH: 150 MM, HEIGHT: 100 MM, TUBE LENGTH: 6 M, WALL THICKNESS: 4 MM, TUBE MATERIAL: STEEL, SPECIAL FEATURES: 14.63 KG/M","TUBE,","M",null,"not specified","Carbon Steel Sections","Not Specified type of Steel","Pipe & Tube",null,62,62,62,62,62,310,null,0,0,0,0,0,0,0,0,0,0,0,0,0,0,0,0]
["Manufacturing","811380305","ANGLE, STRUCTURAL 60 X 60 X 5",null,"ANGLE, STRUCTURAL; TYPE: EQUAL, MATERIAL: STEEL, WIDTH: 60 MM, LENGTH: 6000 MM, THICKNESS: 5 MM, ANGLE HEIGHT: 60 MM; MATERIAL GRADE NEW: EN 10025 S355 JR+AR MATERIAL GRADE OLD: SABS 1431 350 WA; GENERAL: MATERIAL CERTIFICATE TO EN 10204 TYPE 3.1 TO BE SU","ANGLE","M",null,"EN 10025 S355 JR+AR","Carbon Steel Sections","Structural steel","Sections",null,84,84,84,84,84,420,null,0,0,0,0,0,0,0,0,0,0,0,0,0,0,0,0]
["Manufacturing","311111226","BAR METAL;WD 40 X LG 6000 X THK 5 MM",null,"BAR, METALLIC; DIMENSIONS: WD 40 X LG 6000 X THK 5 MM, SHAPE: FLAT; MATERIAL GRADE NEW:  EN 10025 S355 JR+AR; GENERAL: MATERIAL CERTIFICATE TO EN 10204 TYPE 3.1 TO BE SUPPLIED. NO RUST OR CORROSION ON THE SURFACE ALLOWED.","BAR, ","M",null,"EN 10025 S355 JR+AR","Carbon Steel Sections","Structural steel","Sections",null,364,364,364,364,364,1820,null,0,0,0,0,0,0,0,0,0,0,0,0,0,0,0,0]
["Manufacturing","611000154","BAR METAL;WD 30 X LG 6000 X THK 5 MM",null,"BAR, METALLIC; DIMENSIONS: WD 30 X LG 6000 X THK 5 MM, SHAPE: FLAT; MATERIAL GRADE NEW: EN 10025 S355 JR+AR MATERIAL GRADE OLD: SABS 1431 300 WA; GENERAL: MATERIAL CERTIFICATE TO EN 10204 TYPE 3.1 TO BE SUPPLIED. NO RUST OR CORROSION ON THE SURFACE ALLOWE","BAR, ","M",null,"EN 10025 S355 JR+AR","Carbon Steel Sections","Structural steel","Sections",null,401,401,401,401,401,2005,null,0,0,0,0,0,0,0,0,0,0,0,0,0,0,0,0]
["Manufacturing","611000191","CHANNEL STRUCTURAL;PARALLEL FLANGE,U,STL",null,"CHANNEL, STRUCTURAL; TYPE: PARALLEL FLANGE, CROSS SECTION SHAPE: U, WIDTH: 100 MM, HEIGHT: 50 MM, LENGTH: 13000 MM, MATERIAL: STEEL,MATERIAL THICKNESS: 5 MM; MATERIAL GRADE NEW: EN 10025 S355 JR+AR MATERIAL GRADE OLD: SABS 1413 WR50B1 OR SABS 1431 350WA;","CHANN","M",null,"EN 10025 S355 JR+AR","Carbon Steel Sections","Structural steel","Sections",null,45,45,45,45,45,225,null,0,0,0,0,0,0,0,0,0,0,0,0,0,0,0,0]
["Manufacturing","311029204","ANGLE STRUCTURAL;EQUAL,HT:50 MM,50 MM",null,"ANGLE, STRUCTURAL; TYPE: EQUAL, MATERIAL: EN 10025 S355 JR+AR, WIDTH: 50 MM, LENGTH: 8000 MM, THICKNESS: 8 MM, ANGLE HEIGHT: 50 MM; GENERAL: MATERIAL CERTIFICATE TO EN 10204 TYPE 3.1 TO BE SUPPLIED. NO RUST OR CORROSION ON THE SURFACE ALLOWED. MASS 5.819","ANGLE","M",null,"EN 10025 S355 JR+AR","Carbon Steel Sections","Structural steel","Sections",null,801,494,817,1045,609,{"$f":"N196+O196+P196+Q196+R196","v":3766},null,0,0,0,0,0,0,0,0,0,0,0,0,0,0,0,0]
["Maritime","011835901","CHANNEL STEEL;U,WD:180MM,LG:9M,HT:70MM",null,"CHANNEL, STEEL; TYPE: PARALLEL FLANGE, CROSS SECTION SHAPE: U, MATERIAL: STEEL SANS 50025/EN 10025 GRADE S355 JR+AR, WIDTH: 180MM, LENGTH: 9M, HEIGHT: 70MM, MATERIAL THICKNESS: 8MM; 21 KG/M","CHANN","EA",null,"EN 10025 S355 JR+AR","Carbon Steel Sections","Structural steel","Sections",null,65,65,65,65,65,325,null,0,0,0,0,0,0,0,0,0,0,0,0,0,0,0,0]
["Manufacturing","011014609","ANGLE STRUCTURAL;UNEQUAL,HT:80 MM,60 MM",null,"ANGLE, STRUCTURAL; TYPE: UNEQUAL, MATERIAL: EN 10025 GRADE S355 JR+AR, WIDTH: 60 MM, LENGTH: 6000 MM, THICKNESS: 8 MM, ANGLE HEIGHT: 80 MM; GENERAL: MATERIAL CERTIFICATE TO EN 10204 TYPE 3.1 TO BE SUPPLIED. NO RUST OR CORROSION ON THE SURFACE ALLOWED. BS","ANGLE","M",null,"EN 10025 S355 JR+AR","Carbon Steel Sections","Structural steel","Sections",null,190,190,190,190,190,950,null,0,0,0,0,0,0,0,0,0,0,0,0,0,0,0,0]
["Manufacturing","011012279","BAR METAL;WD 50X LG 6000 X THK 6 MM,FLAT",null,"BAR, METALLIC; DIMENSIONS: WD 50X LG 6000 X THK 6 MM, MATERIAL: BS 4360 43A, SHAPE: FLAT; MATERIAL GRADE NEW: BS 4360 43A; GENERAL: MATERIAL CERTIFICATE TO EN 10204 TYPE 3.1 TO BE SUPPLIED. NO RUST OR CORROSION ON THE SURFACE ALLOWED. MAX LOAD ON PALLETS","BAR, ","M",null,"BS 4360 GRADE 43A","Carbon Steel Sections","structural mild steel","Sections",null,2364,2107,2421,2626,2305,11823,null,0,0,0,0,0,0,0,0,0,0,0,0,0,0,0,0]
["Manufacturing","011001253","BAR METAL;12 MM,SQ",null,"BAR, METALLIC; DIMENSIONS: 12 MM, SHAPE: SQUARE; CERTIFICATTBSENT WITH MATERIAL DELIVERE- BLOEMFONTEIN ,BAR MATERIAL MILD STEEL BS9 70 GR070M20","BAR, ","M",null," BS 970 070M20","Carbon Steel Sections","Low carbon mild steel","Sections",null,9,9,9,9,9,45,null,0,0,0,0,0,0,0,0,0,0,0,0,0,0,0,0]
["Project Wagons 1000","011012279","BAR METAL;WD 50X LG 6000 X THK 6 MM,FLAT",null,"BAR, METALLIC; DIMENSIONS: WD 50X LG 6000 X THK 6 MM, MATERIAL: BS 4360 43A, SHAPE: FLAT; MATERIAL GRADE NEW: BS 4360 43A; GENERAL: MATERIAL CERTIFICATE TO EN 10204 TYPE 3.1 TO BE SUPPLIED. NO RUST OR CORROSION ON THE SURFACE ALLOWED. MAX LOAD ON PALLETS","BAR, ","M",null,"BS 4360 GRADE 43A","Carbon Steel Sections","structural mild steel","Sections",null,2253,2253,{"$nulls":3},4506,null,0,0,0,0,0,0,0,0,0,0,0,0,0,0,0,0]
["Manufacturing","011011982","CHANNEL STRUCTURAL;TAPER FLANGE,U,127 MM",null,"CHANNEL, STRUCTURAL; TYPE: TAPER FLANGE, CROSS SECTION SHAPE: U, WIDTH: 127 MM, HEIGHT: 64 MM, LENGTH: 6000 MM, MATERIAL: EN 10025 S355 JR+AR, OLD SABS 1431 300 WA; GENERAL: MATERIAL CERTIFICATE TO EN 10204 TYPE 3.1 TO BE SUPPLIED. NO RUST OR CORROSION ON","CHANN","M",null,"EN 10025 S355 JR+AR","Carbon Steel Sections","Structural steel","Sections",null,25,25,56,80,81,267,null,0,0,0,0,0,0,0,0,0,0,0,0,0,0,0,0]
["Manufacturing","011014634","ANGLE STRUCTURAL;UNEQUAL,HT:125 MM,75 MM",null,"ANGLE, STRUCTURAL; TYPE: UNEQUAL, MATERIAL: STEEL, WIDTH: 75 MM, LENGTH: 6000 MM, THICKNESS: 10 MM, ANGLE HEIGHT: 125 MM; MATERIAL GRADE NEW:  EN 10025 S355 JR+AR MATERIAL GRADE OLD: SABS 1431 300WA; GENERAL: MATERIAL CERTIFICATE TO EN 10204 TYPE 3.1 TO B","ANGLE","M",null,"EN 10025 S355 JR+AR","Carbon Steel Sections","Structural steel","Sections",null,439,270,447,572,333,2061,null,0,0,0,0,0,0,0,0,0,0,0,0,0,0,0,0]
["Manufacturing","811010660","CHANNEL STRUCTURAL;TAPER FLANGE,U,100 MM",null,"CHANNEL, STRUCTURAL; TYPE: TAPER FLANGE, CROSS SECTION SHAPE: U, WIDTH: 100 MM, HEIGHT: 50 MM, LENGTH: 6500 MM, MATERIAL: STEEL; MATERIAL GRADE NEW: EN 10025 S355 JR+AR MATERIAL GRADE OLD: SABS 1431 300 WA; GENERAL: MATERIAL CERTIFICATE TO EN 10204 TYPE 3","CHANN","M",null,"EN 10025 S355 JR+AR","Carbon Steel Sections","Structural steel","Sections",null,1095,643,1244,1151,1281,5414,null,0,0,0,0,0,0,0,0,0,0,0,0,0,0,0,0]
["Manufacturing","111000154","BAR METAL;DIA 50 X LG 6000 MM,RND",null,"BAR, METALLIC; DIMENSIONS: DIA 50 X LG 6000 MM, SHAPE: ROUND; MATERIAL GRADE NEW: BS 970 070M20 MATERIAL GRADE OLD: EN3; GENERAL: MATERIAL CERTIFICATE TO EN 10204 TYPE 3.1 TO BE SUPPLIED. NO RUST OR CORROSION ON THE SURFACE ALLOWED. STEEL EN3; 050 15.41KG","BAR, ","M",null," BS 970 070M20","Carbon Steel Sections","Low carbon mild steel","Sections",null,410,410,410,410,410,2050,null,0,0,0,0,0,0,0,0,0,0,0,0,0,0,0,0]
["Manufacturing","011002727","BAR METAL;DIA 8 X LG 6000 MM,RND",null,"BAR, METALLIC; DIMENSIONS: DIA 8 X LG 6000 MM, SHAPE: ROUND; MATERIAL GRADE NEW: EN 10025 S355 JR+AR; MATERIAL GRADE OLD: EN 10025 / SANS 50025 S355 JR+AR OR EN 10028 P355NL1; GENERAL: MATERIAL CERTIFICATE TO EN 10204 TYPE 3.1 TO BE SUPPLIED. NO RUST OR C","BAR, ","M",null,"EN 10025 S355 JR+AR","Carbon Steel Sections","Structural Steel","Sections",null,1249,1046,1943,875,1299,6412,null,0,0,0,0,0,0,0,0,0,0,0,0,0,0,0,0]
["Manufacturing","011002889","BAR METAL;DIA 50 X LG 6000 MM,RND",null,"BAR, METALLIC; DIMENSIONS: DIA 50 X LG 6000 MM, SHAPE: ROUND; MATERIAL GRADE NEW: BS 970 070M20; MATERIAL GRADE OLD: BS 970 070M20 OR SANS 1431 240WA OR SYM6; GENERAL: MATERIAL CERTIFICATE TO EN 10204 TYPE 3.1 TO BE SUPPLIED. NO RUST OR CORROSION ON THE S","BAR, ","M",null," BS 970 070M20","Carbon Steel Sections","Low carbon mild steel","Sections",null,4027,2857,5278,2666,3369,18197,null,0,0,0,0,0,0,0,0,0,0,0,0,0,0,0,0]
["Manufacturing","013001261","PIPE METAL;PIPE SZ:65 MM,6000 MM",null,"PIPE, METALLIC; PIPE SIZE: 65 MM, LENGTH: 6000 MM, WALL THICKNESS: 3.9 MM; MATERIAL GRADE NEW: SABS 62 HEAVY MATERIAL GRADE OLD: SABS 62; GENERAL: MATERIAL CERTIFICATE TO EN 10204 TYPE 3.1 TO BE SUPPLIED. NO RUST OR CORROSION ON THE SURFACE ALLOWED","PIPE,","M",null,"SABS 62","Carbon Steel Sections","Structural steel","Pipe & Tube",null,71,71,71,71,71,355,null,0,0,0,0,0,0,0,0,0,0,0,0,0,0,0,0]
["Manufacturing","011012381","BAR METAL;WD 50 X LG 6000 X THK 10 MM",null,"BAR, METALLIC; DIMENSIONS: WD 50 X LG 6000 X THK 10 MM, SHAPE: FLAT; MATERIAL GRADE NEW: EN 10025 S355 JR+AR MATERIAL GRADE OLD: SABS 1431 300WA <(>&<)> COMMERCIAL QUALITY; GENERAL: MATERIAL CERTIFICATE TO EN 10204 TYPE 3.1 TO BE SUPPLIED. NO RUST OR CORR","BAR, ","M",null,"commercial quality","Carbon Steel Sections","commercial quality","Sections",null,1516,980,1604,2043,1295,7438,null,0,0,0,0,0,0,0,0,0,0,0,0,0,0,0,0]
["Manufacturing","011012408","BAR METAL;WD 80 X LG 6000 X THK 10 MM",null,"BAR, METALLIC; DIMENSIONS: WD 80 X LG 6000 X THK 10 MM, SHAPE: FLAT; MATERIAL GRADE NEW: EN 10025 S355 JR+AR MATERIAL GRADE OLD: SABS 1431 300WA; GENERAL: MATERIAL CERTIFICATE TO EN 10204 TYPE 3.1 TO BE SUPPLIED. NO RUST OR CORROSION ON THE SURFACE ALLOWE","BAR, ","M",null,"EN 10025 S355 JR+AR","Carbon Steel Sections","Structural steel","Sections",null,105,105,105,105,105,525,null,0,0,0,0,0,0,0,0,0,0,0,0,0,0,0,0]
["Project Wagons 1000","011012319","BAR METAL;WD 100 X LG 6000 X THK 6 MM",null,"BAR, METALLIC; DIMENSIONS: WD 100 X LG 6000 X THK 6 MM, SHAPE: FLAT; MATERIAL GRADE NEW: EN 10025 S355 JR+AR MATERIAL GRADE OLD: SABS 1431 300WA; GENERAL: MATERIAL CERTIFICATE TO EN 10204 TYPE 3.1 TO BE SUPPLIED. NO RUST OR CORROSION ON THE SURFACE ALLOWE","BAR, ","M",null,"EN 10025 S355 JR+AR","Carbon Steel Sections","Structural Steel","Sections",null,550,550,{"$nulls":3},1100,null,0,0,0,0,0,0,0,0,0,0,0,0,0,0,0,0]
["Manufacturing","011014533","ANGLE STRUCTURAL;EQUAL,HT:100 MM,100 MM",null,"ANGLE, STRUCTURAL; TYPE: EQUAL, MATERIAL: STEEL, WIDTH: 100 MM, LENGTH: 6000 MM, THICKNESS: 10 MM, ANGLE HEIGHT: 100 MM; MATERIAL GRADE NEW: EN 10025 S355 JR+AR MATERIAL GRADE OLD: SABS 1431 300WA; GENERAL: MATERIAL CERTIFICATE TO EN 10204 TYPE 3.1 TO BE","ANGLE","M",null,"EN 10025 S355 JR+AR","Carbon Steel Sections","Structural steel","Sections",null,3,3,3,3,3,15,null,0,0,0,0,0,0,0,0,0,0,0,0,0,0,0,0]
["Manufacturing","311009566","BAR METAL;WD 60 X LG 6000 X HT 60 MM,SQ",null,"BAR, METALLIC; DIMENSIONS: WD 60 X LG 6000 X HT 60 MM, SHAPE: SQUARE; MATERIAL GRADE : BS970 070M20; GENERAL: MATERIAL CERTIFICATE TO EN 10204 TYPE 3.1 TO BE SUPPLIED. NO RUST OR CORROSION ON THE SURFACE ALLOWED","BAR, ","M",null," BS 970 070M20","Carbon Steel Sections","Low carbon mild steel","Sections",null,10,10,10,10,10,50,null,0,0,0,0,0,0,0,0,0,0,0,0,0,0,0,0]
["Manufacturing","811200105","ANGLE STRUCTURAL;EQUAL,HT:50 MM,50 MM",null,"ANGLE, STRUCTURAL; TYPE: EQUAL, MATERIAL: STEEL, WIDTH: 50 MM, LENGTH: 6000 MM, THICKNESS: 5 MM, ANGLE HEIGHT: 50 MM, MATERIAL GRADE: EN 10025 S355 JR+AR; GENERAL: MATERIAL CERTIFICATE TO EN 10204 TYPE 3.1 TO BE SUPPLIED. NO RUST OR CORROSION ON THE SURFA","ANGLE","M",null,"EN 10025 S355 JR+AR","Carbon Steel Sections","Structural steel","Sections",null,4,2,5,4,2,17,null,0,0,0,0,0,0,0,0,0,0,0,0,0,0,0,0]
["Manufacturing","011002739","BAR METAL;DIA 10 X LG 6000 MM,RND",null,"BAR, METALLIC; DIMENSIONS: DIA 10 X LG 6000 MM, SHAPE: ROUND; MATERIAL GRADE NEW: BS 970 070M20; MATERIAL GRADE OLD: BS 970 070M20 OR SANS 1431 240WA OR SYM6; GENERAL: MATERIAL CERTIFICATE TO EN 10204 TYPE 3.1 TO BE SUPPLIED. NO RUST OR CORROSION ON THE S","BAR, ","M",null," BS 970 070M20","Carbon Steel Sections","Low carbon mild steel","Sections",null,996,683,1319,615,829,4442,null,0,0,0,0,0,0,0,0,0,0,0,0,0,0,0,0]
["Manufacturing","011011718","BAR METAL;DIA 70 X LG 6000 MM,RND",null,"BAR, METALLIC; DIMENSIONS: DIA 70 X LG 6000 MM, SHAPE: ROUND; MATERIAL GRADE NEW: BS 970 070M20 MATERIAL GRADE OLD: SANS 1431 070M20 OR BS 970 240WA; GENERAL: MATERIAL CERTIFICATE TO EN 10204 TYPE 3.1 TO BE SUPPLIED. NO RUST OR CORROSION ON THE SURFACE AL","BAR, ","M",null," BS 970 070M20","Carbon Steel Sections","Low carbon mild steel","Sections",null,427,427,427,427,427,2135,null,0,0,0,0,0,0,0,0,0,0,0,0,0,0,0,0]
["Manufacturing","011012736","BAR METAL;WD 100 X LG 6000 X THK 25 MM",null,"BAR, METALLIC; DIMENSIONS: WD 100 X LG 6000 X THK 25 MM, SHAPE: FLAT; MATERIAL GRADE NEW: EN 10025 S355 JR+AR MATERIAL GRADE OLD: SABS 1431 300WA; GENERAL: MATERIAL CERTIFICATE TO EN 10204 TYPE 3.1 TO BE SUPPLIED. NO RUST OR CORROSION ON THE SURFACE ALLOW","BAR, ","M",null,"EN 10025 S355 JR+AR","Carbon Steel Sections","Structural steel","Sections",null,585,458,588,229,134,1994,null,0,0,0,0,0,0,0,0,0,0,0,0,0,0,0,0]
["Manufacturing","911500565","BAR METAL;WD 200 X LG 6000 X THK 16 MM",null,"BAR, METALLIC; DIMENSIONS: WD 200 X LG 6000 X THK 16 MM, SHAPE: FLAT; MATERIAL GRADE NEW: EN 10025 S355 JR+AR MATERIAL GRADE OLD: SABS 1431 300 WA; GENERAL: MATERIAL CERTIFICATE TO EN 10204 TYPE 3.1 TO BE SUPPLIED. NO RUST OR CORROSION ON THE SURFACE ALLO","BAR, ","M",null,"EN 10025 S355 JR+AR","Carbon Steel Sections","Structural steel","Sections",null,118,73,120,154,90,555,null,0,0,0,0,0,0,0,0,0,0,0,0,0,0,0,0]
["Manufacturing","011014481","ANGLE STRUCTURAL;EQUAL,HT:50 MM,50 MM",null,"ANGLE, STRUCTURAL; TYPE: EQUAL, MATERIAL: STEEL, WIDTH: 50 MM, LENGTH: 6000 MM, THICKNESS: 6 MM, ANGLE HEIGHT: 50 MM, MATERIAL GRADE: EN 10025 S355 JR+AR; GENERAL: MATERIAL CERTIFICATE TO EN 10204 TYPE 3.1 TO BE SUPPLIED. NO RUST OR CORROSION ON THE SURFA","ANGLE","M",null,"EN 10025 S355 JR+AR","Carbon Steel Sections","Structural steel","Sections",null,52,37,57,65,55,266,null,0,0,0,0,0,0,0,0,0,0,0,0,0,0,0,0]
["Manufacturing","011014493","ANGLE STRUCTURAL;EQUAL,HT:60 MM,60 MM",null,"ANGLE, STRUCTURAL; TYPE: EQUAL, MATERIAL: STEEL, WIDTH: 60 MM, LENGTH: 6000 MM, THICKNESS: 8 MM, ANGLE HEIGHT: 60 MM; MATERIAL GRADE NEW: EN 10025 S355 JR+AR MATERIAL GRADE OLD: SABS 1431 300WA; GENERAL: MATERIAL CERTIFICATE TO EN 10204 TYPE 3.1 TO BE SUP","ANGLE","M",null,"EN 10025 S355 JR+AR","Carbon Steel Sections","Structural steel","Sections",null,56,48,56,0,0,160,null,0,0,0,0,0,0,0,0,0,0,0,0,0,0,0,0]
["Project Wagons 1000","011012736","BAR METAL;WD 100 X LG 6000 X THK 25 MM",null,"BAR, METALLIC; DIMENSIONS: WD 100 X LG 6000 X THK 25 MM, SHAPE: FLAT; MATERIAL GRADE NEW: EN 10025 S355 JR+AR MATERIAL GRADE OLD: SABS 1431 300WA; GENERAL: MATERIAL CERTIFICATE TO EN 10204 TYPE 3.1 TO BE SUPPLIED. NO RUST OR CORROSION ON THE SURFACE ALLOW","BAR, ","M",null,"EN 10025 S355 JR+AR","Carbon Steel Sections","Structural steel","Sections",null,820,820,{"$nulls":3},1640,null,0,0,0,0,0,0,0,0,0,0,0,0,0,0,0,0]
["Project Wagons 1000","011014481","ANGLE STRUCTURAL;EQUAL,HT:50 MM,50 MM",null,"ANGLE, STRUCTURAL; TYPE: EQUAL, MATERIAL: STEEL, WIDTH: 50 MM, LENGTH: 6000 MM, THICKNESS: 6 MM, ANGLE HEIGHT: 50 MM, MATERIAL GRADE: EN 10025 S355 JR+AR; GENERAL: MATERIAL CERTIFICATE TO EN 10204 TYPE 3.1 TO BE SUPPLIED. NO RUST OR CORROSION ON THE SURFA","ANGLE","M",null,"EN 10025 S355 JR+AR","Carbon Steel Sections","Structural steel","Sections",null,25,25,{"$nulls":3},50,null,0,0,0,0,0,0,0,0,0,0,0,0,0,0,0,0]
["Project Wagons 1000","911500565","BAR METAL;WD 200 X LG 6000 X THK 16 MM",null,"BAR, METALLIC; DIMENSIONS: WD 200 X LG 6000 X THK 16 MM, SHAPE: FLAT; MATERIAL GRADE NEW: EN 10025 S355 JR+AR MATERIAL GRADE OLD: SABS 1431 300 WA; GENERAL: MATERIAL CERTIFICATE TO EN 10204 TYPE 3.1 TO BE SUPPLIED. NO RUST OR CORROSION ON THE SURFACE ALLO","BAR, ","M",null,"EN 10025 S355 JR+AR","Carbon Steel Sections","Structural steel","Sections",null,1090,1090,{"$nulls":3},2180,null,0,0,0,0,0,0,0,0,0,0,0,0,0,0,0,0]
["Manufacturing","011003049","BAR METAL;DIA 25 X LG 6000 MM,RND",null,"BAR, METALLIC; DIMENSIONS: DIA 25 X LG 6000 MM, SHAPE: ROUND; MATERIAL GRADE NEW: BS 970 070M20; MATERIAL GRADE OLD: BS 970 070M20 OR SANS 1431 240WA OR SYM6; GENERAL: MATERIAL CERTIFICATE TO EN 10204 TYPE 3.1 TO BE SUPPLIED. NO RUST OR CORROSION ON THE S","BAR, ","M",null," BS 970 070M20","Carbon Steel Sections","Low carbon mild steel","Sections",null,2393,1749,2461,1566,1130,9299,null,0,0,0,0,0,0,0,0,0,0,0,0,0,0,0,0]
["Project Wagons 1000","011003049","BAR METAL;DIA 25 X LG 6000 MM,RND",null,"BAR, METALLIC; DIMENSIONS: DIA 25 X LG 6000 MM, SHAPE: ROUND; MATERIAL GRADE NEW: BS 970 070M20; MATERIAL GRADE OLD: BS 970 070M20 OR SANS 1431 240WA OR SYM6; GENERAL: MATERIAL CERTIFICATE TO EN 10204 TYPE 3.1 TO BE SUPPLIED. NO RUST OR CORROSION ON THE S","BAR, ","M",null," BS 970 070M20","Carbon Steel Sections","Low carbon mild steel","Sections",null,3502,3502,{"$nulls":3},7004,null,0,0,0,0,0,0,0,0,0,0,0,0,0,0,0,0]
["Project Wagons 1000","011003049","BAR METAL;DIA 25 X LG 6000 MM,RND",null,"BAR, METALLIC; DIMENSIONS: DIA 25 X LG 6000 MM, SHAPE: ROUND; MATERIAL GRADE NEW: BS 970 070M20; MATERIAL GRADE OLD: BS 970 070M20 OR SANS 1431 240WA OR SYM6; GENERAL: MATERIAL CERTIFICATE TO EN 10204 TYPE 3.1 TO BE SUPPLIED. NO RUST OR CORROSION ON THE S","BAR, ","M",null," BS 970 070M20","Carbon Steel Sections","Low carbon mild steel","Sections",null,500,500,{"$nulls":3},1000,null,0,0,0,0,0,0,0,0,0,0,0,0,0,0,0,0]
["Project Wagons 1000","011011136","ANGLE STRUCTURAL;EQUAL,HT:50 MM,50 MM",null,"ANGLE, STRUCTURAL; TYPE: EQUAL, MATERIAL: EN 10025 S355 JR+AR, OLD SABS 1431 300WA, WIDTH: 50 MM, LENGTH: 6000 MM, THICKNESS: 8 MM, ANGLE HEIGHT: 50 MM, MATERIAL GRADE: 300WA; GENERAL: MATERIAL CERTIFICATE TO EN 10204 TYPE 3.1 TO BE SUPPLIED. NO RUST OR C","ANGLE","M",null,"EN 10025 S355 JR+AR","Carbon Steel Sections","Structural steel","Sections",null,67,67,{"$nulls":3},134,null,0,0,0,0,0,0,0,0,0,0,0,0,0,0,0,0]
["Project Wagons 1000","011012724","BAR METAL;WD 80 X LG 6000 X THK 25 MM",null,"BAR, METALLIC; DIMENSIONS: WD 80 X LG 6000 X THK 25 MM, SHAPE: FLAT; MATERIAL GRADE NEW: EN 10025 S355 JR+AR MATERIAL GRADE OLD: SABS 1431 300WA; GENERAL: MATERIAL CERTIFICATE TO EN 10204 TYPE 3.1 TO BE SUPPLIED. NO RUST OR CORROSION ON THE SURFACE ALLOWE","BAR, ","M",null,"EN 10025 S355 JR+AR","Carbon Steel Sections","Structural steel","Sections",null,776,776,{"$nulls":3},1552,null,0,0,0,0,0,0,0,0,0,0,0,0,0,0,0,0]
["Project Wagons 1000","011014683","CHANNEL STRUCTURAL;PARALLEL FLANGE,U,STL",null,"CHANNEL, STRUCTURAL; TYPE: PARALLEL FLANGE, CROSS SECTION SHAPE: U, WIDTH: 100 MM, HEIGHT: 50 MM, LENGTH: 6000 M, MATERIAL: STEEL; MATERIAL GRADE NEW: EN 10025 S355 JR+AR MATERIAL GRADE OLD: SABS 1431 300WA OR SABS 1431 350WA; GENERAL: MATERIAL CERTIFICAT","CHANN","M",null,"EN 10025 S355 JR+AR","Carbon Steel Sections","Structural steel","Sections",null,1060,1060,{"$nulls":3},2120,null,0,0,0,0,0,0,0,0,0,0,0,0,0,0,0,0]
["Project Wagons 1000","011003062","BAR METAL;DIA 30 X LG 6000 MM,RND",null,"BAR, METALLIC; DIMENSIONS: DIA 30 X LG 6000 MM, SHAPE: ROUND; MATERIAL GRADE NEW: BS 970 070M20; MATERIAL GRADE OLD: BS 970 070M20 OR SANS 1431 240WA OR SYM6; GENERAL: MATERIAL CERTIFICATE TO EN 10204 TYPE 3.1 TO BE SUPPLIED. NO RUST OR CORROSION ON THE S","BAR, ","M",null," BS 970 070M20","Carbon Steel Sections","Low carbon mild steel","Sections",null,672,672,{"$nulls":3},1344,null,0,0,0,0,0,0,0,0,0,0,0,0,0,0,0,0]
["Project Wagons 1000","011002776","BAR METAL;DIA 20 X LG 6000 MM,RND",null,"BAR, METALLIC; DIMENSIONS: DIA 20 X LG 6000 MM, SHAPE: ROUND; MATERIAL GRADE NEW: BS 970 070M20; MATERIAL GRADE OLD: BS 970 070M20 OR SANS 1431 240WA OR SYM6; GENERAL: MATERIAL CERTIFICATE TO EN 10204 TYPE 3.1 TO BE SUPPLIED. NO RUST OR CORROSION ON THE S","BAR, ","M",null," BS 970 070M20","Carbon Steel Sections","Low carbon mild steel","Sections",null,337.5,337.5,{"$nulls":3},675,null,0,0,0,0,0,0,0,0,0,0,0,0,0,0,0,0]
["Project Wagons 1000","011000918","BAR METAL;DIA 32 X LG 6000 MM, 080M40",null,"BAR, METALLIC; DIMENSIONS: DIA 32 X LG 6000 MM, SHAPE: ROUND; MATERIAL GRADE NEW: BS 970 080M40; MATERIAL GRADE OLD: BS 970 080M40 OR EN8 SYM4; GENERAL: MATERIAL CERTIFICATE TO EN 10204 TYPE 3.1 TO BE SUPPLIED. NO RUST OR CORROSION ON THE SURFACE ALLOWED.","BAR, ","M",null,"BS 970 080M40","Carbon Steel Sections","Medium Carbon alloy steel ","Sections",null,1450,1450,{"$nulls":3},2900,null,0,0,0,0,0,0,0,0,0,0,0,0,0,0,0,0]
["Project Wagons 1000","011007629","CHANNEL STRUCTURAL;TAPER FLANGE,U,200 MM",null,"CHANNEL, STRUCTURAL; TYPE: TAPER FLANGE, CROSS SECTION SHAPE: U, WIDTH: 200 MM, HEIGHT: 75 MM, LENGTH: 6000 MM, MATERIAL: STEEL, SPECIAL FEATURES: 24.3 KG/M; MATERIAL GRADE NEW: EN 10025 S355 JR+AR MATERIAL GRADE OLD: EN 10025 / SANS 50025 S355 JR+AR OR E","CHANN","M",null,"EN 10025 S355 JR+AR","Carbon Steel Sections","Structural steel","Sections",null,545,545,{"$nulls":3},1090,null,0,0,0,0,0,0,0,0,0,0,0,0,0,0,0,0]
["Project Wagons 1000","011002739","BAR METAL;DIA 10 X LG 6000 MM,RND",null,"BAR, METALLIC; DIMENSIONS: DIA 10 X LG 6000 MM, SHAPE: ROUND; MATERIAL GRADE NEW: BS 970 070M20; MATERIAL GRADE OLD: BS 970 070M20 OR SANS 1431 240WA OR SYM6; GENERAL: MATERIAL CERTIFICATE TO EN 10204 TYPE 3.1 TO BE SUPPLIED. NO RUST OR CORROSION ON THE S","BAR, ","M",null," BS 970 070M20","Carbon Steel Sections","Low carbon mild steel","Sections",null,857,857,{"$nulls":3},1714,null,0,0,0,0,0,0,0,0,0,0,0,0,0,0,0,0]
["Project Wagons 1000","011002283","BAR METAL;WD 150 X LG 6000 X THK 20 MM",null,"BAR, METALLIC; DIMENSIONS: WD 150 X LG 6000 X THK 20 MM, SHAPE: FLAT; MATERIAL GRADE NEW: EN 10025 S235 JR+AR; MATERIAL GRADE OLD:EN 10025 S235 JR OR EN 10025 S235 JR+AR OR EN 10025 S235 J2+N; GENERAL: MATERIAL CERTIFICATE TO EN 10204 TYPE 3.1 TO BE SUPPL","BAR, ","M",null,"EN 10025 S235 JR+AR","Carbon Steel Sections","Structural steel","Sections",null,460,460,{"$nulls":3},920,null,0,0,0,0,0,0,0,0,0,0,0,0,0,0,0,0]
["Project Wagons 1000","011000741","BAR METAL;DIA 55 X LG 6000 MM,RND",null,"BAR, METALLIC; DIMENSIONS: DIA 55 X LG 6000 MM, SHAPE: ROUND; MATERIAL GRADE NEW: BS 970 080M40; MATERIAL GRADE OLD: BS 970 080M40; GENERAL: MATERIAL CERTIFICATE TO EN 10204 TYPE 3.1 TO BE SUPPLIED. NO RUST OR CORROSION ON THE SURFACE ALLOWED. MATERIALS T","BAR, ","M",null,"BS 970 080M40","Carbon Steel Sections","Medium Carbon alloy steel ","Sections",null,90,90,{"$nulls":3},180,null,0,0,0,0,0,0,0,0,0,0,0,0,0,0,0,0]
["Project Wagons 1000","011012218","BAR METAL;WD 20 X LG 6000 X THK 6 MM",null,"BAR, METALLIC; DIMENSIONS: WD 20 X LG 6000 X THK 6 MM, SHAPE: FLAT; MATERIAL GRADE NEW: EN 10025 S355 JR+AR MATERIAL GRADE OLD: COMMERCIAL QUALITY; GENERAL: MATERIAL CERTIFICATE TO EN 10204 TYPE 3.1 TO BE SUPPLIED. NO RUST OR CORROSION ON THE SURFACE ALLO","BAR, ","M",null,"EN 10025 S355 JR+AR","Carbon Steel Sections","Structural Steel","Sections",null,355,355,{"$nulls":3},710,null,0,0,0,0,0,0,0,0,0,0,0,0,0,0,0,0]
["Project Wagons 1000","011012696","BAR METAL;WD 50 X LG 6000 X THK 25 MM",null,"BAR, METALLIC; DIMENSIONS: WD 50 X LG 6000 X THK 25 MM, MATERIAL: BS 4360 43A, SHAPE: FLAT; GENERAL: MATERIAL CERTIFICATE TO EN 10204 TYPE 3.1 TO BE SUPPLIED. NO RUST OR CORROSION ON THE SURFACE ALLOWED. MAX LOAD ON PALLETS MAY NOT EXCEED 4 TONS","BAR, ","M",null,"BS 4360 GRADE 43A","Carbon Steel Sections","structural mild steel","Sections",null,215,215,{"$nulls":3},430,null,0,0,0,0,0,0,0,0,0,0,0,0,0,0,0,0]
["Project Wagons 1000","011011718","BAR METAL;DIA 70 X LG 6000 MM,RND",null,"BAR, METALLIC; DIMENSIONS: DIA 70 X LG 6000 MM, SHAPE: ROUND; MATERIAL GRADE NEW: BS 970 070M20 MATERIAL GRADE OLD: SANS 1431 070M20 OR BS 970 240WA; GENERAL: MATERIAL CERTIFICATE TO EN 10204 TYPE 3.1 TO BE SUPPLIED. NO RUST OR CORROSION ON THE SURFACE AL","BAR, ","M",null," BS 970 070M20","Carbon Steel Sections","Low carbon mild steel","Sections",null,120,120,{"$nulls":3},240,null,0,0,0,0,0,0,0,0,0,0,0,0,0,0,0,0]
["Project Wagons 1000","011002727","BAR METAL;DIA 8 X LG 6000 MM,RND",null,"BAR, METALLIC; DIMENSIONS: DIA 8 X LG 6000 MM, SHAPE: ROUND; MATERIAL GRADE NEW: EN 10025 S355 JR+AR; MATERIAL GRADE OLD: EN 10025 / SANS 50025 S355 JR+AR OR EN 10028 P355NL1; GENERAL: MATERIAL CERTIFICATE TO EN 10204 TYPE 3.1 TO BE SUPPLIED. NO RUST OR C","BAR, ","M",null,"EN 10025 S355 JR+AR","Carbon Steel Sections","Structural Steel","Sections",null,1045.5,1045.5,{"$nulls":3},2091,null,0,0,0,0,0,0,0,0,0,0,0,0,0,0,0,0]
["Project Wagons 1000","811012379","BAR METAL;DIA 32 X LG 6000 MM,RND",null,"BAR, METALLIC; DIMENSIONS: DIA 32 X LG 6000 MM, SHAPE: ROUND; MATERIAL GRADE NEW: BS 970 070M55 MATERIAL GRADE OLD: BS970-3 070M55; GENERAL: MATERIAL CERTIFICATE TO EN 10204 TYPE 3.1 TO BE SUPPLIED. NO RUST OR CORROSION ON THE SURFACE ALLOWED","BAR, ","M",null,"BS 970 070M55 EN9","Carbon Steel Sections","High Carbon Alloy steel","Sections",null,4000,4000,{"$nulls":3},8000,null,0,0,0,0,0,0,0,0,0,0,0,0,0,0,0,0]
["Project Wagons 1000","011001771","BAR METAL;DIA 16 X LG 6000 MM,RND",null,"BAR, METALLIC; DIMENSIONS: DIA 16 X LG 6000 MM, SHAPE: ROUND; MATERIAL GRADE NEW: BS 970 070M20; MATERIAL GRADE OLD: BS 970 070M20OR SANS 1431 240WA OR SYM6; GENERAL: MATERIAL CERTIFICATE TO EN 10204 TYPE 3.1 TO BE SUPPLIED. NO RUST OR CORROSION ON THE SU","BAR, ","M",null," BS 970 070M20","Carbon Steel Sections","Low carbon mild steel","Sections",null,1285,1285,{"$nulls":3},2570,null,0,0,0,0,0,0,0,0,0,0,0,0,0,0,0,0]
["Project Wagons 1000","011002889","BAR METAL;DIA 50 X LG 6000 MM,RND",null,"BAR, METALLIC; DIMENSIONS: DIA 50 X LG 6000 MM, SHAPE: ROUND; MATERIAL GRADE NEW: BS 970 070M20; MATERIAL GRADE OLD: BS 970 070M20 OR SANS 1431 240WA OR SYM6; GENERAL: MATERIAL CERTIFICATE TO EN 10204 TYPE 3.1 TO BE SUPPLIED. NO RUST OR CORROSION ON THE S","BAR, ","M",null," BS 970 070M20","Carbon Steel Sections","Low carbon mild steel","Sections",null,1247,1247,{"$nulls":3},2494,null,0,0,0,0,0,0,0,0,0,0,0,0,0,0,0,0]
["Project Wagons 1000","011012231","BAR METAL;WD 25 X LG 6000 X THK 6 MM",null,"BAR, METALLIC; DIMENSIONS: WD 25 X LG 6000 X THK 6 MM, SHAPE: FLAT; MATERIAL GRADE NEW: BS 4360 43A; GENERAL: MATERIAL CERTIFICATE TO EN 10204 TYPE 3.1 TO BE SUPPLIED. NO RUST OR CORROSION ON THE SURFACE ALLOWED. MAX LOAD ON PALLETS MAY NOT EXCEED 4 TONS.","BAR, ","M",null,"BS 4360 GRADE 43A","Carbon Steel Sections","structural mild steel","Sections",null,237,237,{"$nulls":3},474,null,0,0,0,0,0,0,0,0,0,0,0,0,0,0,0,0]
["Project Wagons 1000","011012470","BAR METAL;WD 30 X LG 6000 X THK 12 MM",null,"BAR, METALLIC; DIMENSIONS: WD 30 X LG 6000 X THK 12 MM, SHAPE: FLAT; MATERIAL GRADE NEW: EN 10025 S355 JR+AR MATERIAL GRADE OLD: SABS 1431 300WA; GENERAL: MATERIAL CERTIFICATE TO EN 10204 TYPE 3.1 TO BE SUPPLIED. NO RUST OR CORROSION ON THE SURFACE ALLOWE","BAR, ","EA",null,null,"Carbon Steel Sections","Carbon Steel","Sections",null,195,195,{"$nulls":3},390,null,0,0,0,0,0,0,0,0,0,0,0,0,0,0,0,0]
["I hereby acknowledge as a bidder that I have read and understood all the contents of this Purchase Order Long text Description . Furthermore, I (bidder) certifies and guarantees acceptance and compliance with this specification. Total value of these items must be carried over to page 33 of the RFP document.\n                                                                                                                                                                                                                                                                                                                                                                                         SIGNED THIS DAY _______________________ AT_________________________________\n                                                                                                                                                                                                                                                                                                        BY________________________________________________ (Full name in block letters)\n                                                                                                                                                                                                                                                                                                                                                                                                    IN MY CAPACITY AS ___________________________________ (Official designation)\n                                                                                                                                                                                                                                                                                                                                                                                               FOR THE COMPANY ___________________________________\n\nSIGNED _____________________________________________\n                                                                                                                                                                                                                                                                                                                                                                                            PLEASE NOTE: A Bidder must sign on the above and return this page together with a quote. "]